Workbook

Sheet VBA (hidden)
A1: Sheet Names
A2: GL
A3: AUTO
A4: FIRE
A5: CRIME
A6: INLAND
A7: BOILER
A8: FIDELITY
A9: SURETY
A10: FARM
A11: PMF
A12: NonFiled Inland
A13: BOP

Sheet User_Guide
B2: Report cutoff date | D2: 2018-09-14 | G2: We have included all the LCMs and associated rates which have effective date on or before the cut off date.
B4: Tabs Description:
B6: S.NO. | C6: Tab Name | D6: Description
B7: 1 | C7: LOB_Company_LCM_Summary (e.g. - GL_Company_LCM_Summary) | D7: These tabs are carrying the latest effective state specific LCMs for all paper companies for the respective LOB.
B8: 2 | C8: LOB (e.g. - GL) | D8: These tabs are carrying the latest effective state specific base LCMs and associated circular & rate details until column H. Column I until R are carrying details of upcoming rates / LCMs.
B9: 3 | C9: LOB-DEVS (e.g. - GL-DEVS) | D9: These tabs are carrying latest effective state specific company deviations.
B11: Legend Colors Description:
B13: 1 | C13: Tabs colored in | E13: Are the tabs which are updated in this month.
B14: 2 | C14: Tabs which are not colored | E14: Are the tabs which are not updated in this month.
B15: 3 | C15: Cells Colored in | E15: Representing Companies which are not licensed to operate in the particular state.
B16: 4 | C16: Cells highlighted with Red border | E16: Represents rates/LCMs which went into effect in last 90 days.
B17: 5 | C17: Records highlighted in bold | E17: Represents rates/LCMs which was not there in the last circulation of the report.
B18: 6 | C18: Records/cells highlighted in | E18: Refers to circulars which are not yet filed.
B19: 7 | C19: LCMs for Garage in Comm. Auto are highlighted in | E19: Garage LCMs reverted back to original.
B20: 8 | C20: LCMs for Auto ISOP are highlighted in | E20: LCMs are under scrutiny
B21: 9 | C21: Cells Colored in | E21: Representing Companies which are not filed in the particular state.
B23: For any queries please drop an email to -
B25: 1 | C25: Ashim Kumar Barman | D25: Ashim.Barman@aig.com
B26: 2 | C26: Marc Fournier | D26: Marc.Fournier@aig.com
B27: 3 | C27: Mary Gaillard | D27: Mary.Gaillard@AIG.com

Sheet GL_Company_LCM_Summary
A2: * * * * * * * * * * * COMMERCIAL General Liability Premises LOSS COST MODIFICATIONS * * * * * * * * * * *
A5: State | B5: Latest Effective Date | D5: INIC (0127) | F5: GSIC(0122) | H5: NHIC(0229) | J5: AIG AC (0157) | L5: AIG PCC(0102) | N5: AHAC(0019) | P5: C&I(0107) | R5: NUFIC(0165) | T5: ISOP (0130) | V5: AIU (0013)
D6: Prem / Ops LCM | E6: Prod LCM | F6: Prem / Ops LCM | G6: Prod LCM | H6: Prem / Ops LCM | I6: Prod LCM | J6: Prem / Ops LCM | K6: Prod LCM | L6: Prem / Ops LCM | M6: Prod LCM | N6: Prem / Ops LCM | O6: Prod LCM | P6: Prem / Ops LCM | Q6: Prod LCM | R6: Prem / Ops LCM | S6: Prod LCM | T6: Prem / Ops LCM | U6: Prod LCM | V6: Prem / Ops LCM | W6: Prod LCM
A7: Alabama | B7: 2017-10-09 | C7: same latest effective date | D7: =ROUND(N7,3) -> 1.942 | E7: =ROUND(O7,3) -> 1.947 | F7: =ROUND(N7,3) -> 1.942 | G7: =ROUND(O7,3) -> 1.947 | H7: =ROUND((1-10%)*N7,3) -> 1.748 | I7: =ROUND((1-10%)*O7,3) -> 1.752 | L7: =ROUND(N7,3) -> 1.942 | M7: =ROUND(O7,3) -> 1.947 | N7: =ROUND(GL!G9,3) -> 1.942 | O7: =ROUND(GL!H9,3) -> 1.947 | P7: =ROUND(N7,3) -> 1.942 | Q7: =ROUND(O7,3) -> 1.947 | R7: =ROUND(N7,3) -> 1.942 | S7: =ROUND(O7,3) -> 1.947 | T7: =ROUND(N7,3) -> 1.942 | U7: =ROUND(O7,3) -> 1.947
A8: Alaska | B8: 2018-04-01 | C8: ISO-AK-17-GL-02 not yet app'd; please correct to UPS LCMs | D8: 2.664 | E8: =ROUND(O8*(1+15%),3) -> 2.432 | F8: =ROUND(N8,3) -> 2.317 | G8: =ROUND(O8,3) -> 2.115 | H8: =ROUND((1-10%)*N8,3) -> 2.085 | I8: 1.903 | J8: =ROUND(N8*(1-15%),3) -> 1.969 | K8: =ROUND(O8*(1-15%),3) -> 1.798 | L8: =ROUND(N8,3) -> 2.317 | M8: =ROUND(O8,3) -> 2.115 | N8: =ROUND(GL!G10,3) -> 2.317 | O8: =ROUND(GL!H10,3) -> 2.115 | P8: =ROUND(N8,3) -> 2.317 | Q8: =ROUND(O8,3) -> 2.115 | R8: =ROUND(N8,3) -> 2.317 | S8: =ROUND(O8,3) -> 2.115 | T8: =ROUND(N8,3) -> 2.317 | U8: =ROUND(O8,3) -> 2.115 | V8: =ROUND(N8,3) -> 2.317 | W8: =ROUND(O8,3) -> 2.115
A9: Arizona | B9: 9/1/2017 | C9: same latest effective date | D9: =ROUND(N9*(1+15%),3) -> 3.008 | E9: =ROUND(O9*(1+15%),3) -> 1.8 | F9: 2.616 | G9: 1.565 | H9: =ROUND((1-15%)*N9,3) -> 2.224 | I9: 1.331 | J9: =ROUND(N9*(1-25%),3) -> 1.962 | K9: =ROUND(O9*(1-25%),3) -> 1.174 | L9: 2.616 | M9: 1.565 | N9: =ROUND(GL!G11,3) -> 2.616 | O9: =ROUND(GL!H11,3) -> 1.565 | P9: 2.616 | Q9: 1.565 | R9: 2.616 | S9: 1.565 | T9: 2.616 | U9: 1.565
A10: Arkansas | B10: 9/1/2017 | C10: Latest Effective date is 5/23/11 and Written date is 11/16/12 | F10: 1.57 | G10: 1.369 | H10: 1.334 | I10: =ROUND((1-15%)*O10,3) -> 1.164 | J10: 1.177 | K10: =ROUND(O10*(1-25%),3) -> 1.027 | L10: 1.57 | M10: 1.369 | N10: =ROUND(GL!G12,3) -> 1.57 | O10: =ROUND(GL!H12,3) -> 1.369 | P10: 1.57 | Q10: 1.369 | R10: 1.57 | S10: 1.369 | T10: 1.57 | U10: 1.369 | V10: 1.57 | W10: 1.369
A11: California | B11: 2018-02-26 | C11: Latest Effective date is 08/25/2014 and Written date is 05/01/2017 | F11: 3.818 | G11: 2.769 | H11: =ROUND(N11,3) -> 3.818 | I11: =ROUND(O11,3) -> 2.769 | L11: 3.818 | M11: 2.769 | N11: =ROUND(GL!G13,3) -> 3.818 | O11: =ROUND(GL!H13,3) -> 2.769 | P11: 3.818 | Q11: 2.769 | R11: 3.818 | S11: 2.769 | T11: 3.818 | U11: 2.769
A12: Colorado | B12: 2017-10-23 | C12: same latest effective date | D12: =ROUND(N12,3) -> 1.632 | E12: =ROUND(O12,3) -> 1.482 | F12: 1.632 | G12: 1.482 | H12: =ROUND((1-15%)*N12,3) -> 1.387 | I12: 1.259 | J12: =ROUND(N12*(1-25%),3) -> 1.224 | K12: 1.111 | L12: 1.632 | M12: 1.482 | N12: =ROUND(GL!G14,3) -> 1.632 | O12: =ROUND(GL!H14,3) -> 1.482 | P12: 1.632 | Q12: 1.482 | R12: 1.632 | S12: 1.482 | T12: 1.632 | U12: 1.482
A13: Connecticut | B13: 2018-05-01 | C13: Latest Effective date is 5/23/11 and Written date is 11/16/12 | D13: 1.808 | E13: 1.604 | F13: 1.808 | G13: 1.604 | H13: =ROUND((1-15%)*N13,3) -> 1.537 | I13: =ROUND((1-15%)*O13,3) -> 1.363 | J13: =ROUND(N13*(1-25%),3) -> 1.356 | K13: =ROUND(O13*(1-25%),3) -> 1.203 | L13: 1.808 | M13: 1.604 | N13: =ROUND(GL!G15,3) -> 1.808 | O13: =ROUND(GL!H15,3) -> 1.604 | P13: 1.808 | Q13: 1.604 | R13: 1.808 | S13: 1.604 | T13: 1.808 | U13: 1.604 | V13: 1.808 | W13: 1.604
A14: Delaware | B14: 2018-03-01 | C14: Latest Effective date is 5/23/11 and Written date is 02/01/2017 | D14: =ROUND(N14*(1+15%),3) -> 2.68 | E14: =ROUND(O14*(1+15%),3) -> 2.489 | F14: 2.33 | G14: 2.164 | H14: 2.097 | I14: =ROUND((1-10%)*O14,3) -> 1.948 | J14: =ROUND(N14*(1-15%),3) -> 1.981 | K14: 1.84 | L14: 2.33 | M14: 2.164 | N14: =ROUND(GL!G16,3) -> 2.33 | O14: =ROUND(GL!H16,3) -> 2.164 | P14: 2.33 | Q14: 2.164 | R14: 2.33 | S14: 2.164 | T14: 2.33 | U14: 2.164
A15: DC | B15: 2018-02-26 | C15: same latest effective date | D15: 1.696 | E15: 1.771 | F15: 1.696 | G15: 1.771 | H15: =ROUND((1-15%)*N15,3) -> 1.442 | I15: =ROUND((1-15%)*O15,3) -> 1.505 | J15: =ROUND(N15,3) -> 1.696 | K15: =ROUND(O15,3) -> 1.771 | L15: 1.696 | M15: 1.771 | N15: =ROUND(GL!G17,3) -> 1.696 | O15: =ROUND(GL!H17,3) -> 1.771 | P15: 1.696 | Q15: 1.771 | R15: 1.696 | S15: 1.771 | T15: 1.696 | U15: 1.771 | V15: 1.696 | W15: 1.771
A16: Florida | B16: 2017-04-01 | C16: Latest Effective date is 05/01/2016 and Written date is 04/01/2017 | D16: =ROUND(N16*(1+15%),3) -> 2.674 | E16: =ROUND(O16*(1+15%),3) -> 1.765 | F16: 2.325 | G16: 1.535 | H16: =ROUND(N16,3) -> 2.325 | I16: =ROUND(O16,3) -> 1.535 | J16: 2.325 | K16: 1.535 | L16: 2.325 | M16: 1.535 | N16: =ROUND(GL!G18,3) -> 2.325 | O16: =ROUND(GL!H18,3) -> 1.535 | P16: 2.325 | Q16: 1.535 | R16: 2.325 | S16: 1.535 | T16: 2.325 | U16: 1.535
A17: Georgia | B17: 2018-02-01 | C17: Latest Effective date is 5/23/11 and Written date is 11/16/12 | D17: =ROUND(N17*(1+15%),3) -> 2.278 | E17: =ROUND(O17*(1+15%),3) -> 1.801 | F17: 1.981 | G17: 1.566 | H17: =ROUND((1-15%)*N17,3) -> 1.684 | I17: =ROUND((1-15%)*O17,3) -> 1.331 | J17: 1.485 | K17: =ROUND(O17*(1-25%),3) -> 1.175 | L17: 1.981 | M17: 1.566 | N17: =ROUND(GL!G19,3) -> 1.981 | O17: =ROUND(GL!H19,3) -> 1.566 | P17: 1.981 | Q17: 1.566 | R17: 1.981 | S17: 1.566 | T17: 1.981 | U17: 1.566 | V17: 1.981 | W17: 1.566
A18: Hawaii | B18: 2016-05-01 | C18: same latest effective date | D18: 1.791 | E18: 1.791 | F18: 1.791 | G18: 1.791 | H18: =ROUND((1-10%)*N18,3) -> 1.612 | I18: =ROUND((1-10%)*O18,3) -> 1.612 | J18: =ROUND(N18*(1-15%),3) -> 1.522 | K18: =ROUND(O18*(1-15%),3) -> 1.522 | N18: =ROUND(GL!G20,3) -> 1.791 | O18: =ROUND(GL!H20,3) -> 1.791 | P18: 1.791 | Q18: 1.791 | R18: 1.791 | S18: 1.791 | T18: 1.791 | U18: 1.791
A19: Idaho | B19: 9/1/2017 | C19: Latest Effective date is 5/23/11 and Written date is 11/16/12 | D19: 1.721 | E19: 1.578 | F19: 1.721 | G19: 1.578 | H19: =ROUND((1-15%)*N19,3) -> 1.463 | I19: 1.342 | J19: =ROUND(N19*(1-25%),3) -> 1.291 | K19: =ROUND(O19*(1-25%),3) -> 1.184 | L19: 1.721 | M19: 1.578 | N19: =ROUND(GL!G21,3) -> 1.721 | O19: =ROUND(GL!H21,3) -> 1.578 | P19: 1.721 | Q19: 1.578 | R19: 1.721 | S19: 1.578 | T19: 1.721 | U19: 1.578 | V19: 1.721 | W19: 1.578
A20: Illinois | B20: 2018-04-01 | C20: ISO-IL-17-GL-02; please correct some co's to UPS LCM | D20: 2.705 | E20: 1.872 | F20: 2.705 | G20: 1.872 | H20: =ROUND((1-15%)*N20,3) -> 2.299 | I20: 2.153 | J20: =ROUND(N20*(1-25%),3) -> 2.029 | K20: =ROUND(O20*(1-25%),3) -> 1.404 | L20: 2.705 | M20: 1.872 | N20: =ROUND(GL!G22,3) -> 2.705 | O20: =ROUND(GL!H22,3) -> 1.872 | P20: 2.705 | Q20: 1.872 | R20: 2.705 | S20: 1.872 | T20: 2.705 | U20: 1.872 | V20: 2.705 | W20: 1.872
A21: Indiana | B21: 2018-03-01 | C21: Latest Effective date is 5/23/11 and Written date is 11/16/12 | D21: =ROUND(N21*(1+15%),3) -> 2.084 | E21: =ROUND(O21*(1+15%),3) -> 2.101 | F21: 1.812 | G21: 1.827 | H21: =ROUND((1-15%)*N21,3) -> 1.54 | I21: =ROUND((1-15%)*O21,3) -> 1.553 | J21: =ROUND(N21*(1-25%),3) -> 1.359 | K21: =ROUND(O21*(1-25%),3) -> 1.37 | L21: 1.812 | M21: 1.827 | N21: =ROUND(GL!G23,3) -> 1.812 | O21: =ROUND(GL!H23,3) -> 1.827 | P21: 1.812 | Q21: 1.827 | R21: 1.812 | S21: 1.827 | T21: 1.812 | U21: 1.827 | V21: 1.812 | W21: 1.827
A22: Iowa | B22: 2018-06-01 | C22: efft date 05/23/2011 wri date 02/01/2017 | D22: 1.908 | E22: 1.708 | F22: 1.908 | G22: 1.708 | H22: 1.622 | I22: 1.452 | J22: 1.431 | K22: 1.281 | L22: 1.908 | M22: 1.708 | N22: =ROUND(GL!G24,3) -> 1.908 | O22: =ROUND(GL!H24,3) -> 1.708 | P22: 1.908 | Q22: 1.708 | R22: 1.908 | S22: 1.708 | T22: 1.908 | U22: 1.708 | V22: 1.908 | W22: 1.708
A23: Kansas | B23: 2018-08-01 | C23: efft date 05/23/2011 wri date 05/04/2017 | D23: 2.046 | E23: 1.882 | F23: 2.046 | G23: 1.882 | H23: 1.739 | I23: 1.599 | J23: 1.534 | K23: 1.411 | L23: 2.046 | M23: 1.882 | N23: =ROUND(GL!G25,3) -> 2.046 | O23: =ROUND(GL!H25,3) -> 1.882 | P23: 2.046 | Q23: 1.882 | R23: 2.046 | S23: 1.882 | T23: 2.046 | U23: 1.882 | V23: 2.046 | W23: 1.882
A24: Kentucky | B24: 2018-01-29 | C24: Latest Effective date is 5/23/11 and Written date is 11/16/12 | D24: =ROUND(N24*(1+15%),3) -> 2.264 | E24: =ROUND(O24*(1+15%),3) -> 1.939 | F24: 1.969 | G24: 1.686 | H24: 1.673 | I24: 1.433 | J24: 1.477 | K24: 1.265 | L24: 1.969 | M24: 1.686 | N24: =ROUND(GL!G26,3) -> 1.969 | O24: =ROUND(GL!H26,3) -> 1.686 | P24: 1.969 | Q24: 1.686 | R24: 1.969 | S24: 1.686 | T24: 1.969 | U24: 1.686 | V24: 1.969 | W24: 1.686
A25: Louisiana | B25: 2016-08-01 | C25: same latest effective date | D25: 3.139 | E25: 1.93 | F25: 3.139 | G25: 1.93 | H25: =ROUND(N25,3) -> 3.139 | I25: =ROUND(O25,3) -> 1.93 | J25: 3.139 | K25: 1.93 | L25: 3.139 | M25: 1.93 | N25: =ROUND(GL!G27,3) -> 3.139 | O25: =ROUND(GL!H27,3) -> 1.93 | P25: 3.139 | Q25: 1.93 | R25: 3.139 | S25: 1.93 | T25: 3.139 | U25: 1.93
A26: Maine | B26: 2017-09-01 | C26: same latest effective date | D26: 1.851 | E26: 1.697 | F26: 1.851 | G26: 1.697 | H26: =ROUND((1-15%)*N26,3) -> 1.573 | I26: =ROUND((1-15%)*O26,3) -> 1.442 | L26: 1.851 | M26: 1.697 | N26: =ROUND(GL!G28,3) -> 1.851 | O26: =ROUND(GL!H28,3) -> 1.697 | P26: 1.851 | Q26: 1.697 | R26: 1.851 | S26: 1.697 | T26: 1.851 | U26: 1.697 | V26: 1.851 | W26: 1.697
A27: Maryland | B27: 2017-10-09 | C27: Latest Effective date is 5/23/11 and Written date is 11/16/12 | D27: =ROUND(N27*(1+15%),3) -> 1.915 | E27: 1.654 | F27: 1.665 | G27: 1.439 | H27: =ROUND((1-15%)*N27,3) -> 1.415 | I27: =ROUND((1-15%)*O27,3) -> 1.223 | J27: =ROUND(N27*(1-25%),3) -> 1.249 | K27: =ROUND(O27*(1-25%),3) -> 1.079 | L27: 1.665 | M27: 1.439 | N27: =ROUND(GL!G29,3) -> 1.665 | O27: =ROUND(GL!H29,3) -> 1.439 | P27: 1.665 | Q27: 1.439 | R27: 1.665 | S27: 1.439 | T27: 1.665 | U27: 1.439
A28: Massachusetts | B28: 2017-12-11 | C28: same latest effective date | D28: 1.889 | E28: 2.036 | F28: 1.889 | G28: 2.036 | H28: =ROUND(N28,3) -> 1.889 | I28: =ROUND(O28,3) -> 2.036 | L28: 1.889 | M28: 2.036 | N28: =ROUND(GL!G30,3) -> 1.889 | O28: =ROUND(GL!H30,3) -> 2.036 | P28: 1.889 | Q28: 2.036 | R28: 1.889 | S28: 2.036 | T28: 1.889 | U28: 2.036 | V28: =ROUND(N28*(1-25%),3) -> 1.417 | W28: =ROUND(O28*(1-25%),3) -> 1.527
A29: Michigan | B29: 2017-12-01 | C29: same latest effective date | D29: 2.042 | E29: 1.702 | F29: 2.042 | G29: 1.702 | H29: =ROUND((1-15%)*N29,3) -> 1.736 | I29: =ROUND((1-15%)*O29,3) -> 1.447 | J29: =ROUND(N29*(1-25%),3) -> 1.532 | K29: =ROUND(O29*(1-25%),3) -> 1.277 | L29: 2.042 | M29: 1.702 | N29: =ROUND(GL!G31,3) -> 2.042 | O29: =ROUND(GL!H31,3) -> 1.702 | P29: 2.042 | Q29: 1.702 | R29: 2.042 | S29: 1.702 | T29: 2.042 | U29: 1.702 | V29: 2.042 | W29: 1.702
A30: Minnesota | B30: 2018-04-01 | C30: Latest Effective date is 5/23/11 and Written date is 11/16/12 | D30: 2.366 | E30: =ROUND(O30*(1+15%),3) -> 2.339 | F30: 2.058 | G30: 2.034 | H30: =ROUND((1-15%)*N30,3) -> 1.749 | I30: =ROUND((1-15%)*O30,3) -> 1.729 | L30: 2.058 | M30: 2.034 | N30: =ROUND(GL!G32,3) -> 2.058 | O30: =ROUND(GL!H32,3) -> 2.034 | P30: 2.058 | Q30: 2.034 | R30: 2.058 | S30: 2.034 | T30: 2.058 | U30: 2.034 | V30: 2.058 | W30: 2.034
A31: Mississippi | B31: 2018-02-26 | C31: Latest Effective date is 5/23/11 and Written date is 11/16/12 | F31: 1.814 | G31: 1.733 | H31: 1.542 | I31: 1.473 | J31: 1.36 | K31: =ROUND(O31*(1-25%),3) -> 1.3 | L31: 1.814 | M31: 1.733 | N31: =ROUND(GL!G33,3) -> 1.814 | O31: =ROUND(GL!H33,3) -> 1.733 | P31: 1.814 | Q31: 1.733 | R31: 1.814 | S31: 1.733 | T31: 1.814 | U31: 1.733 | V31: 1.814 | W31: 1.733
A32: Missouri | B32: 2017-11-01 | C32: Latest Effective date is 5/23/11 and Written date is 11/16/12 | D32: 1.821 | E32: =ROUND(O32*(1+15%),3) -> 1.811 | F32: 1.583 | G32: 1.575 | H32: 1.346 | I32: 1.339 | J32: 1.188 | K32: =ROUND(O32*(1-25%),3) -> 1.181 | L32: 1.583 | M32: 1.575 | N32: =ROUND(GL!G34,3) -> 1.583 | O32: =ROUND(GL!H34,3) -> 1.575 | P32: 1.583 | Q32: 1.575 | R32: 1.583 | S32: 1.575 | T32: 1.583 | U32: 1.575
A33: Montana | B33: 2017-08-07 | C33: Latest Effective date is 5/23/11 and Written date is 11/16/12 | D33: 1.649 | E33: 1.492 | F33: 1.649 | G33: 1.492 | H33: 1.401 | I33: 1.268 | J33: =ROUND(N33*(1-25%),3) -> 1.237 | K33: 1.119 | L33: 1.649 | M33: 1.492 | N33: =ROUND(GL!G35,3) -> 1.649 | O33: =ROUND(GL!H35,3) -> 1.492 | P33: 1.649 | Q33: 1.492 | R33: 1.649 | S33: 1.492 | T33: 1.649 | U33: 1.492
A34: Nebraska | B34: 2017-12-01 | C34: Latest Effective date is 5/23/11 and Written date is 11/17/12 | D34: 1.625 | E34: 1.571 | F34: 1.625 | G34: 1.571 | H34: =ROUND(N34,3) -> 1.625 | I34: =ROUND(O34,3) -> 1.571 | J34: 1.625 | K34: 1.571 | L34: 1.625 | M34: 1.571 | N34: =ROUND(GL!G36,3) -> 1.625 | O34: =ROUND(GL!H36,3) -> 1.571 | P34: 1.625 | Q34: 1.571 | R34: 1.625 | S34: 1.571 | T34: 1.625 | U34: 1.571 | V34: 1.625 | W34: 1.571
A35: Nevada | B35: 2017-09-01 | C35: same latest effective date | D35: 2.235 | E35: 2.329 | F35: 2.235 | G35: 2.329 | H35: 1.899 | I35: =ROUND((1-15%)*O35,3) -> 1.98 | J35: =ROUND(N35*(1-25%),3) -> 1.676 | K35: =ROUND(O35*(1-25%),3) -> 1.747 | L35: 2.235 | M35: 2.329 | N35: =ROUND(GL!G37,3) -> 2.235 | O35: =ROUND(GL!H37,3) -> 2.329 | P35: 2.235 | Q35: 2.329 | R35: 2.235 | S35: 2.329 | T35: 2.235 | U35: 2.329 | V35: 2.235 | W35: 2.329
A36: New Hampshire | B36: 2017-09-01 | C36: Latest Effective date is 5/23/11 and Written date is 11/17/12 | D36: 1.744 | E36: =ROUND(O36*(1+15%),3) -> 2.024 | F36: 1.516 | G36: 1.76 | H36: 1.365 | I36: 1.584 | J36: =ROUND(N36*(1-15%),3) -> 1.289 | K36: =ROUND(O36*(1-15%),3) -> 1.496 | L36: 1.516 | M36: 1.76 | N36: =ROUND(GL!G38,3) -> 1.516 | O36: =ROUND(GL!H38,3) -> 1.76 | P36: 1.516 | Q36: 1.76 | R36: 1.516 | S36: 1.76 | T36: 1.516 | U36: 1.76 | V36: 1.516 | W36: 1.76
A37: New Jersey* | B37: 2017-09-01 | C37: Latest Effective date is 5/23/11 and Written date is 11/17/12 | D37: 1.781 | E37: 1.445 | F37: 1.781 | G37: 1.445 | H37: 1.603 | I37: 1.3 | L37: 1.781 | M37: 1.445 | N37: =ROUND(GL!G39,3) -> 1.781 | O37: =ROUND(GL!H39,3) -> 1.445 | P37: 1.781 | Q37: 1.445 | R37: 1.781 | S37: 1.445 | T37: 1.781 | U37: 1.445 | V37: 1.781 | W37: 1.445
A38: New Mexico | B38: 2018-02-01 | C38: Latest Effective date is 5/23/11 and Written date is 11/17/12 | D38: 1.524 | E38: 1.49 | F38: 1.524 | G38: 1.49 | H38: =ROUND((1-15%)*N38,3) -> 1.295 | I38: =ROUND((1-15%)*O38,3) -> 1.267 | J38: =ROUND(N38*(1-25%),3) -> 1.143 | K38: =ROUND(O38*(1-25%),3) -> 1.118 | L38: 1.524 | M38: 1.49 | N38: =ROUND(GL!G40,3) -> 1.524 | O38: =ROUND(GL!H40,3) -> 1.49 | P38: 1.524 | Q38: 1.49 | R38: 1.524 | S38: 1.49 | T38: 1.524 | U38: 1.49
A39: New York | B39: 2016-12-05 | C39: same latest effective date | D39: =ROUND((1-16.7%)*N39,3) -> 1.925 | E39: 2.641 | F39: 2.311 | G39: 2.641 | H39: =ROUND(N39,3) -> 2.311 | I39: =ROUND(O39,3) -> 2.641 | L39: 2.311 | M39: 2.641 | N39: =ROUND(GL!G41,3) -> 2.311 | O39: =ROUND(GL!H41,3) -> 2.641 | P39: 2.311 | Q39: 2.641 | R39: 2.311 | S39: 2.641 | T39: 2.311 | U39: 2.641
A40: North Carolina | B40: 2017-12-01 | C40: same latest effective date | F40: 2.053 | G40: 1.979 | H40: =ROUND((1-15%)*N40,3) -> 1.745 | I40: =ROUND((1-15%)*O40,3) -> 1.682 | J40: =ROUND(N40*(1-25%),3) -> 1.54 | K40: =ROUND(O40*(1-25%),3) -> 1.484 | L40: 2.053 | M40: 1.979 | N40: =ROUND(GL!G42,3) -> 2.053 | O40: =ROUND(GL!H42,3) -> 1.979 | P40: 2.053 | Q40: 1.979 | R40: 2.053 | S40: 1.979 | T40: 2.053 | U40: 1.979 | V40: 2.053 | W40: 1.979
A41: North Dakota | B41: 2017-09-01 | C41: Latest Effective date is 5/23/11 and Written date is 11/23/12 | D41: 1.853 | E41: =ROUND(O41*(1+15%),3) -> 1.689 | F41: 1.612 | G41: 1.469 | H41: =ROUND((1-15%)*N41,3) -> 1.37 | I41: =ROUND((1-15%)*O41,3) -> 1.249 | J41: 1.209 | K41: 1.102 | L41: 1.612 | M41: 1.469 | N41: =ROUND(GL!G43,3) -> 1.612 | O41: =ROUND(GL!H43,3) -> 1.469 | P41: 1.612 | Q41: 1.469 | R41: 1.612 | S41: 1.469 | T41: 1.612 | U41: 1.469
A42: Ohio | B42: 2018-04-01 | C42: same latest effective date | D42: =ROUND(N42*(1+15%),3) -> 2.049 | E42: 1.982 | F42: 1.782 | G42: 1.723 | H42: 1.515 | I42: 1.465 | J42: 1.337 | K42: 1.292 | L42: 1.782 | M42: 1.723 | N42: =ROUND(GL!G44,3) -> 1.782 | O42: =ROUND(GL!H44,3) -> 1.723 | P42: 1.782 | Q42: 1.723 | R42: 1.782 | S42: 1.723 | T42: 1.782 | U42: 1.723 | V42: 1.782 | W42: 1.723
A43: Oklahoma | B43: 2018-05-01 | C43: ISO-OK-17-GL-02 not yet app'd; please correct to UPS LCMs | D43: 1.993 | E43: 1.605 | F43: 1.993 | G43: 1.605 | H43: =ROUND(N43,3) -> 1.993 | I43: =ROUND(O43,3) -> 1.605 | J43: 1.993 | K43: 1.605 | L43: 1.993 | M43: 1.605 | N43: =ROUND(GL!G45,3) -> 1.993 | O43: =ROUND(GL!H45,3) -> 1.605 | P43: 1.993 | Q43: 1.605 | R43: 1.993 | S43: 1.605 | T43: 1.993 | U43: 1.605 | V43: 1.993 | W43: 1.605
A44: Oregon | B44: 2018-08-01 | C44: same latest effective date | D44: =ROUND(N44*(1+15%),3) -> 2.569 | E44: =ROUND(O44*(1+15%),3) -> 1.861 | F44: 2.234 | G44: 1.618 | H44: =ROUND((1-15%)*N44,3) -> 1.899 | I44: =ROUND((1-15%)*O44,3) -> 1.375 | J44: 1.675 | K44: 1.214 | L44: 2.234 | M44: 1.618 | N44: =ROUND(GL!G46,3) -> 2.234 | O44: =ROUND(GL!H46,3) -> 1.618 | P44: 2.234 | Q44: 1.618 | R44: 2.234 | S44: 1.618 | T44: 2.234 | U44: 1.618
A45: Pennsylvania | B45: 2018-03-01 | C45: Latest Effective date is 5/23/11 and Written date is 11/19/12 | D45: 2.449 | E45: 2.339 | F45: 2.13 | G45: 2.034 | H45: 1.917 | I45: 1.831 | J45: 1.81 | K45: =ROUND(O45*(1-15%),3) -> 1.729 | L45: 2.13 | M45: 2.034 | N45: =ROUND(GL!G47,3) -> 2.13 | O45: =ROUND(GL!H47,3) -> 2.034 | P45: 2.13 | Q45: 2.034 | R45: 2.13 | S45: 2.034 | T45: 2.13 | U45: 2.034 | V45: 2.13 | W45: 2.034
A46: Rhode Island | B46: 2017-12-11 | C46: same latest effective date | D46: 1.978 | E46: 1.652 | F46: 1.978 | G46: 1.652 | H46: =ROUND((1-15%)*N46,3) -> 1.681 | I46: =ROUND((1-15%)*O46,3) -> 1.404 | J46: 1.483 | K46: =ROUND(O46*(1-25%),3) -> 1.239 | L46: 1.978 | M46: 1.652 | N46: =ROUND(GL!G48,3) -> 1.978 | O46: =ROUND(GL!H48,3) -> 1.652 | P46: 1.978 | Q46: 1.652 | R46: 1.978 | S46: 1.652 | T46: 1.978 | U46: 1.652
A47: South Carolina | B47: 2017-09-01 | C47: efft date 05/23/2011 wri date 11/15/2012 | D47: 1.573 | E47: 1.429 | F47: 1.573 | G47: 1.429 | H47: =ROUND((1-15%)*N47,3) -> 1.337 | I47: =ROUND((1-15%)*O47,3) -> 1.215 | J47: 1.179 | K47: =ROUND(O47*(1-25%),3) -> 1.072 | L47: 1.573 | M47: 1.429 | N47: =ROUND(GL!G49,3) -> 1.573 | O47: =ROUND(GL!H49,3) -> 1.429 | P47: 1.573 | Q47: 1.429 | R47: 1.573 | S47: 1.429 | T47: 1.573 | U47: 1.429
A48: South Dakota | B48: 2018-07-23 | C48: efft date 05/23/2011 wri date 11/15/2012 | D48: 1.858 | E48: =ROUND(O48*(1+15%),3) -> 1.915 | F48: 1.615 | G48: 1.665 | H48: 1.373 | I48: 1.415 | J48: 1.212 | K48: 1.249 | L48: 1.615 | M48: 1.665 | N48: =ROUND(GL!G50,3) -> 1.615 | O48: =ROUND(GL!H50,3) -> 1.665 | P48: 1.615 | Q48: 1.665 | R48: 1.615 | S48: 1.665 | T48: 1.615 | U48: 1.665 | V48: 1.615 | W48: 1.665
A49: Tennessee | B49: 2018-06-01 | C49: efft date 05/23/2011 wri date 06/01/2017 | D49: =ROUND(N49*(1+15%),3) -> 2.163 | E49: =ROUND(O49*(1+15%),3) -> 2.153 | F49: 1.881 | G49: 1.872 | H49: 1.598 | I49: 1.591 | J49: 1.41 | K49: 1.404 | L49: 1.881 | M49: 1.872 | N49: =ROUND(GL!G51,3) -> 1.881 | O49: =ROUND(GL!H51,3) -> 1.872 | P49: 1.881 | Q49: 1.872 | R49: 1.881 | S49: 1.872 | T49: 1.881 | U49: 1.872 | V49: 1.881 | W49: 1.872
A50: Texas | B50: 2018-06-01 | C50: same latest effective date | D50: 3.673 | E50: 3.388 | F50: 3.194 | G50: 2.946 | H50: 2.715 | I50: 2.504 | J50: 2.396 | K50: 2.21 | L50: 3.194 | M50: 2.946 | N50: =ROUND(GL!G52,3) -> 3.194 | O50: =ROUND(GL!H52,3) -> 2.946 | P50: 3.194 | Q50: 2.946 | R50: 3.194 | S50: 2.946 | T50: 3.194 | U50: 2.946 | V50: 3.194 | W50: 2.946
A51: Utah | B51: 2018-03-01 | C51: efft date 05/23/2011 wri date 11/15/2012 | D51: 2.424 | E51: 1.816 | F51: 2.107 | G51: 1.579 | H51: 1.791 | I51: 1.342 | J51: 1.581 | K51: 1.184 | L51: 2.107 | M51: 1.579 | N51: =ROUND(GL!G53,3) -> 2.107 | O51: =ROUND(GL!H53,3) -> 1.579 | P51: 2.107 | Q51: 1.579 | R51: 2.107 | S51: 1.579 | T51: 2.107 | U51: 1.579 | V51: 2.107 | W51: 1.579
A52: Vermont | B52: 2017-09-01 | C52: same latest effective date | D52: 1.822 | E52: 2.03 | F52: 1.822 | G52: 2.03 | H52: 1.549 | I52: 1.726 | L52: 1.822 | M52: 2.03 | N52: =ROUND(GL!G54,3) -> 1.822 | O52: =ROUND(GL!H54,3) -> 2.03 | P52: 1.822 | Q52: 2.03 | R52: 1.822 | S52: 2.03 | T52: 1.822 | U52: 2.03 | V52: 1.822 | W52: 2.03
A53: Virginia | B53: 2017-10-09 | C53: efft date 05/23/2011 wri date 11/14/2012 | F53: 1.442 | G53: 1.707 | H53: 1.226 | I53: 1.451 | J53: =ROUND(N53*(1-25%),3) -> 1.082 | K53: =ROUND(O53*(1-25%),3) -> 1.28 | L53: 1.442 | M53: 1.707 | N53: =ROUND(GL!G55,3) -> 1.442 | O53: =ROUND(GL!H55,3) -> 1.707 | P53: 1.442 | Q53: 1.707 | R53: 1.442 | S53: 1.707 | T53: 1.442 | U53: 1.707 | V53: =ROUND(N53*(1-15%),3) -> 1.226 | W53: =ROUND(O53*(1-15%),3) -> 1.451
A54: Washington | B54: 2018-06-01 | C54: efft date 05/23/2011 wri date 03/06/2017 | D54: 1.639 | E54: 1.388 | F54: 1.639 | G54: 1.388 | H54: 1.393 | I54: 1.18 | J54: 1.639 | K54: 1.388 | L54: 1.639 | M54: 1.388 | N54: =ROUND(GL!G56,3) -> 1.639 | O54: =ROUND(GL!H56,3) -> 1.388 | P54: 1.639 | Q54: 1.388 | R54: 1.639 | S54: 1.388 | T54: 1.639 | U54: 1.388 | V54: 1.639 | W54: 1.388
A55: West Virginia | B55: 2017-12-01 | C55: efft date 05/23/2011 wri date 05/04/2017 | D55: =ROUND(N55*(1+15%),3) -> 2.367 | E55: 2.119 | F55: 2.058 | G55: 1.842 | H55: 1.749 | I55: 1.566 | J55: =ROUND(N55*(1-25%),3) -> 1.544 | K55: =ROUND(O55*(1-25%),3) -> 1.382 | L55: 2.058 | M55: 1.842 | N55: =ROUND(GL!G57,3) -> 2.058 | O55: =ROUND(GL!H57,3) -> 1.842 | P55: 2.058 | Q55: 1.842 | R55: 2.058 | S55: 1.842 | T55: 2.058 | U55: 1.842 | V55: 2.058 | W55: 1.842
A56: Wisconsin | B56: 2018-04-01 | C56: efft date 05/23/2011 wri date 05/01/2017 | D56: 1.976 | E56: 1.9 | F56: 1.718 | G56: 1.653 | H56: 1.461 | I56: 1.405 | J56: 1.289 | K56: 1.239 | L56: 1.718 | M56: 1.653 | N56: =ROUND(GL!G58,3) -> 1.718 | O56: =ROUND(GL!H58,3) -> 1.653 | P56: 1.718 | Q56: 1.653 | R56: 1.718 | S56: 1.653 | T56: 1.718 | U56: 1.653 | V56: 1.718 | W56: 1.653
A57: Wyoming | B57: 2017-12-01 | C57: efft date 05/23/2011 wri date 11/12/2012 | D57: 1.824 | E57: 1.735 | F57: =ROUND(N57,3) -> 1.824 | G57: =ROUND(O57,3) -> 1.735 | H57: =ROUND(N57,3) -> 1.824 | I57: =ROUND(O57,3) -> 1.735 | J57: 1.824 | K57: 1.735 | L57: 1.824 | M57: 1.735 | N57: =ROUND(GL!G59,3) -> 1.824 | O57: =ROUND(GL!H59,3) -> 1.735 | P57: 1.824 | Q57: 1.735 | R57: 1.824 | S57: 1.735 | T57: 1.824 | U57: 1.735
B60: Company is not licensed or, we have not filed for this company in the respective state.
A61: * | B61: A maximum of 30% rate change allowed to all renewals as per state DOI norms.

Sheet GL
H1: POOLED COMPANIES | Q1: As of: | R1: =Cutoff_Date -> 2018-09-14
A3: CURRENT: | I3: PENDING:
F4: Total
D5: Loss | F5: Basic | G5: LOSS COST | I5: Actuarial | K5: Status | L5: Proposed/ | N5: Loss | P5: Total | Q5: LOSS COST
B6: Effective | C6: Circular #'s | D6: Cost | E6: Expense | F6: Limits | G6: MULTIPLIER | I6: Support | L6: Effective | M6: Circular #'s | N6: Cost | O6: Expense | P6: B/L / T/L | Q6: MULTIPLIER
A7: State | B7: Date | C7: (Edition Date) | D7: Change | E7: Change | F7: Change | G7: PREM | H7: PROD | I7: Prepared | L7: Date | M7: (Edition Date) | N7: Change | O7: Change | P7: Change | Q7: PREM | R7: PROD
A9: Alabama | B9: 2017-10-09 | C9: 2017-059 (9/17) | D9: 0.013 | E9: 0.1351876775 | F9: 0.15 | G9: 1.942 | H9: 1.947 | K9: Not Yet Filed | M9: 2018-032 (9/18) | N9: -0.031
A10: Alaska | B10: 2018-04-01 | C10: 2017-123 (4/18) | D10: -0.09 | E10: 0.163764474 | F10: 0.0589263824 | G10: 2.317 | H10: 2.115
A11: Arizona | B11: 9/1/2017 | C11: 2017-052 (9/17) | D11: -0.023 | E11: 0.3317437883 | F11: 0.3 | G11: 2.616 | H11: 1.565 | K11: Exempt | L11: 2018-10-08 | M11: 2018-026 (9/18) | N11: 0.002 | O11: 0.1556 | P11: 0.1599933758 | Q11: 3.023 | R11: 1.847
A12: Arkansas | B12: 9/1/2017 | C12: 2017-036 (8/17) | D12: -0.003 | E12: 0.02283700502 | F12: 0.02 | G12: 1.57 | H12: 1.369 | K12: Exempt | L12: 2018-10-08 | M12: 2018-024 (8/18) | N12: -0.007 | O12: 0.04025089377 | P12: 0.03017878566 | Q12: 1.573 | R12: 2.031
A13: California | B13: 2018-02-26 | C13: 2016-050 (11/16) & 2017-025 (6/17) | D13: -0.237754 | E13: 0.4636686599 | F13: 0.142 | G13: 3.818 | H13: 2.769 | K13: Not Yet Filed | M13: 2018-039 (9/18) | N13: 0.011
A14: Colorado | B14: 2017-10-23 | C14: 2017-008 (7/17) | D14: -0.011 | E14: 0.06170631271 | F14: 0.05 | G14: 1.632 | H14: 1.482 | K14: Not Yet Filed | M14: 2018-013 (7/18) | N14: -0.077
A15: Connecticut | B15: 2018-05-01 | C15: N/A | D15: 0 | E15: 0 | F15: 0.2 | G15: 1.808 | H15: 1.604 | K15: Not Yet Filed | M15: 2018-037 (11/18) | N15: -3.6%
A16: Delaware | B16: 2018-03-01 | C16: 2017-061 (7/17) | D16: 0.0131 | E16: 0.135 | F16: 0.2 | G16: 2.33 | H16: 2.164 | K16: Pending | L16: 2018-08-01 | M16: 2018-018 (7/18) | N16: -0.033 | O16: 0.06737942633 | P16: 0.03035804075 | Q16: 2.446 | R16: 2.477
A17: DC | B17: 2018-02-26 | C17: N/A | D17: 0 | E17: 0.02 | F17: 0.02 | G17: 1.696 | H17: 1.771 | K17: Pending | L17: 2018-10-08 | M17: 2018-048 (9/18) | N17: 0.03 | O17: 0.04898797056 | P17: 0.04962227311 | Q17: 1.779 | R17: 2.093
A18: Florida | B18: 2017-04-01 | C18: 2016-068 (4/17) | D18: -0.04 | E18: 0.198 | F18: 0.15 | G18: 2.325 | H18: 1.535 | K18: Approved Not Yet Filed | L18: 2018-12-11 | M18: 2017-096 (2/18) 2018-055 (2/19) | N18: -0.2% -1.3% | O18: 0.1521933139 | P18: 0.15 | Q18: 2.671957978 | R18: 1.811125022
A19: Georgia | B19: 2018-02-01 | C19: 2017-062 (2/18) | D19: 0.021 | E19: 0.2222862129 | F19: 0.1357 | G19: 1.981 | H19: 1.566 | K19: Not Yet Filed | M19: 2018-038 (2/19) | N19: 0.04
A20: Hawaii | B20: 2016-05-01 | C20: HIB-GL-2015-02 (ILF) | D20: 0 | E20: 0.018 | F20: 0.017 | G20: 1.791 | H20: 1.791
A21: Idaho | B21: 9/1/2017 | C21: 2017-037 (8/17) | D21: -0.065 | E21: 0.1017362514 | F21: 0.03 | G21: 1.721 | H21: 1.578 | K21: Not Yet Filed | M21: 2018-029 (8/18) | N21: -0.073
A22: Illinois | B22: 2018-04-01 | C22: 2017-110 (4/18) | D22: -0.058 | E22: 0.09430681409 | F22: 0.03 | G22: 2.705 | H22: 1.872 | K22: Not Yet Filed | M22: 2018-100 (4/19) | N22: -0.055
A23: Indiana | B23: 2018-03-01 | C23: 2017-114 (3/18) | D23: -0.003 | E23: 0.1889011957 | F23: 0.184 | G23: 1.812 | H23: 1.827
A24: Iowa | B24: 2018-06-01 | C24: N/A | D24: 0 | E24: 0.1 | F24: 0.1 | G24: 1.908 | H24: 1.708 | K24: Not Yet Filed | M24: 2018-054 (12/18) | N24: -0.024
A25: Kansas | B25: 2018-08-01 | C25: N/A | D25: 0 | E25: 0.1 | F25: 0.1 | G25: 2.046 | H25: 1.882 | K25: Not Yet Filed | M25: 2018-073(12/18) | N25: -0.048
A26: Kentucky | B26: 2018-01-29 | C26: 2017-103(2/18) | D26: -0.009 | E26: 0.2054342165 | F26: 0.2 | G26: 1.969 | H26: 1.686 | K26: Not Yet Filed | M26: 2018-064(2/19) | N26: -0.01
A27: Louisiana | B27: 2016-08-01 | C27: 2015-119 (2/16) | D27: -0.041 | E27: 0.117 | F27: 0.07 | G27: 3.139 | H27: 1.93 | K27: Pending Not Yet Filed | L27: 2/1/2018 | M27: 2017-104 (2/18) 2018-068(2/19) | N27: 1.3% -2.1% | O27: 0.08381299419 | P27: 0.1 | Q27: 3.43 | R27: 1.985
A28: Maine | B28: 2017-09-01 | C28: 2017-047 (8/17) | D28: -0.06 | E28: 0.0965139125 | F28: 0.03 | G28: 1.851 | H28: 1.697 | K28: Not Yet Filed | M28: 2018-036 (8/18) | N28: -0.03
A29: Maryland | B29: 2017-10-09 | C29: 2017-021 (8/17) | D29: 0.041 | E29: 0.05628171695 | F29: 0.1 | G29: 1.665 | H29: 1.439 | K29: Not Yet Filed | M29: 2018-014 (8/18) | N29: -0.008
A30: Massachusetts | B30: 2017-12-11 | C30: 2017-100 (10/17) | D30: -0.008 | E30: 0.108840475 | F30: 0.1 | G30: 1.889 | H30: 2.036 | K30: Approved | L30: 2018-10-29 | M30: 2018-041 (10/18) | N30: -0.007780024748 | O30: 0.03808594559 | P30: 0.02951499144 | Q30: 1.878 | R30: 2.476
A31: Michigan | B31: 2017-12-01 | C31: 2017-097 (12/17) | D31: -0.08 | E31: 0.197 | F31: 0.1 | G31: 2.042 | H31: 1.702 | K31: Not Yet Filed | M31: 2018-062 (12/18) | N31: -0.031
A32: Minnesota | B32: 2018-04-01 | C32: 2017-111 (4/18) | D32: -0.039 | E32: 0.09955995115 | F32: 0.057 | G32: 2.058 | H32: 2.034 | K32: Not Yet Filed | M32: 2018-101 (4/19) | N32: -0.065
A33: Mississippi | B33: 2018-02-26 | C33: 2017-107 (12/17) | D33: -0.045 | E33: 0.183 | F33: 0.13 | G33: 1.814 | H33: 1.733 | K33: Not Yet Filed | M33: 2018-092 (12/18) | N33: -0.001
A34: Missouri | B34: 2017-11-01 | C34: 2017-014 (7/17) | D34: -0.033 | E34: 0.033 | F34: 0 | G34: 1.583 | H34: 1.575 | K34: Not Yet Filed | M34: 2018-006 (7/18) | N34: -0.041
A35: Montana | B35: 2017-08-07 | C35: 2017-028 (7/17) | D35: -0.06 | E35: 0.06555006322 | F35: 0 | G35: 1.649 | H35: 1.492 | K35: Not Yet Filed | M35: 2018-003 (7/18) | N35: 0
A36: Nebraska | B36: 2017-12-01 | C36: 2017-085 (12/17) | D36: -0.035 | E36: 0.03641977634 | F36: 0 | G36: 1.625 | H36: 1.571 | K36: Not Yet Filed | M36: 2018-065(12/18) | N36: -0.073
A37: Nevada | B37: 2017-09-01 | C37: 2017-033 (8/17) | D37: -0.05 | E37: 0.3156615336 | F37: 0.25 | G37: 2.235 | H37: 2.329 | K37: Exempt | L37: 2018-12-03 | M37: 2018-022 (8/18) | N37: 0.01621234384 | O37: 0.01574151829 | P37: 0.03 | Q37: 2.235 | R37: 3.074177276
A38: New Hampshire | B38: 2017-09-01 | C38: 2017-035 (9/17) | D38: -0.022 | E38: 0.04650832341 | F38: 0.02 | G38: 1.516 | H38: 1.76 | K38: Not Yet Filed | M38: 2018-030 (9/18) | N38: -0.042
A39: New Jersey* | B39: 2017-09-01 | C39: 2017-027 (7/17) | D39: 0.09 | E39: 0.1447103936 | F39: 0.25 | G39: 1.781 | H39: 1.445 | K39: Not Yet Filed | M39: 2018-016 (7/18) | N39: -0.029
A40: New Mexico | B40: 2018-02-01 | C40: 2017-007 (6/17) | D40: -0.016 | E40: 0.01594752126 | F40: 0 | G40: 1.524 | H40: 1.49 | K40: Exempt | L40: 2018-10-29 | M40: 2018-007 (6/18) | N40: -0.05 | O40: 0.1579473615 | P40: 0.09970373989 | Q40: 1.755 | R40: 1.78
A41: New York | B41: 2016-12-05 | C41: 2014-153 (10/15) | D41: -0.171 | E41: 0.212 | F41: -0.1% | G41: 2.311 | H41: 2.641 | K41: Approved | L41: 2018-10-01 | M41: 2017-125 (10/18) | N41: 0.05862797502 | O41: 0.08332073412 | P41: 0.15 | Q41: 2.499 | R41: 2.947
A42: North Carolina | B42: 2017-12-01 | C42: 2017-082 (12/17) | D42: -0.054 | E42: 0.058 | F42: 0 | G42: 2.053 | H42: 1.979 | K42: Not Yet Filed | M42: 2018-019 (12/18) | N42: -0.002
A43: North Dakota | B43: 2017-09-01 | C43: 2017-019 (6/17) | D43: -0.054 | E43: 0.05868359557 | F43: 0 | G43: 1.612 | H43: 1.469 | K43: Not Yet Filed | M43: 2018-002 (6/18) | N43: -0.06
A44: Ohio | B44: 2018-04-01 | C44: N/A | D44: 0 | E44: 0.074 | F44: 0.074 | G44: 1.782 | H44: 1.723
A45: Oklahoma | B45: 2018-05-01 | C45: 2017-122 (3/18) & 2016-121 (4/17) | D45: -0.118 | E45: 0.291 | F45: 0.134 | G45: 1.993 | H45: 1.605 | K45: Pending | L45: 7/1/2017 | M45: 2017-034 (4/17) | N45: -0.024 | O45: 0.107 | P45: 0.08 | Q45: 1.511 | R45: 1.511
A46: Oregon | B46: 2018-08-01 | C46: N/A | D46: 0 | E46: 0.15 | F46: 0.15 | G46: 2.234 | H46: 1.618 | K46: Not Yet Filed | M46: 2018-053 (12/18) | N46: -0.07
A47: Pennsylvania | B47: 2018-03-01 | C47: N/A | D47: 0 | E47: 0.0649504693 | F47: 0.065 | G47: 2.13 | H47: 2.034
A48: Rhode Island | B48: 2017-12-11 | C48: 2017-049 (9/17) | D48: 0.007 | E48: 0.142 | F48: 0.15 | G48: 1.978 | H48: 1.652 | K48: Not Yet Filed | M48: 2018-035 (9/18) | N48: 0.021
A49: South Carolina | B49: 2017-09-01 | C49: 2017-038 (9/17) | D49: 0.046 | E49: 0.003954780998 | F49: 0.05 | G49: 1.573 | H49: 1.429 | K49: Pending | L49: 2018-10-08 | M49: 2018-044 (9/18) | N49: 0.05735047481 | O49: -0.002149081779 | P49: 0.055 | Q49: 1.566 | R49: 1.495
A50: South Dakota | B50: 2018-07-23 | C50: 2018-010 (6/18) | D50: -0.01494322951 | E50: 0.04488583611 | F50: 0.03 | G50: 1.615 | H50: 1.665
A51: Tennessee | B51: 2018-06-01 | C51: 2017-090 (6/18) | D51: -0.035 | E51: 0.1194637406 | F51: 0.08 | G51: 1.881 | H51: 1.872 | K51: Not Yet Filed | M51: 2018-063(6/19) | N51: -0.01
A52: Texas | B52: 2018-06-01 | C52: N/A | D52: 0 | E52: 0.1 | F52: 0.1 | G52: 3.194 | H52: 2.946 | K52: Not Yet Filed | M52: 2018-098 (4/19) | N52: 0.006
A53: Utah | B53: 2018-03-01 | C53: N/A | D53: 0 | E53: 0.075 | F53: 0.075 | G53: 2.107 | H53: 1.579
A54: Vermont | B54: 2017-09-01 | C54: 2017-067 (9/17) | D54: -0.067 | E54: 0.1039560158 | F54: 0.03 | G54: 1.822 | H54: 2.03 | K54: Not Yet Filed | M54: 2018-031 (9/18) | N54: -0.045
A55: Virginia | B55: 2017-10-09 | C55: 2017-068 (9/17) | D55: 0.045 | E55: -0.02223647544 | F55: 0.02 | G55: 1.442 | H55: 1.707 | K55: Not Yet Filed | M55: 2018-042 (9/18) | N55: -1.7%
A56: Washington | B56: 2018-06-01 | C56: N/A | D56: 0 | E56: 0.014 | F56: 0.014 | G56: 1.639 | H56: 1.388 | K56: Not Yet Filed | M56: 2018-045 (9/18) | N56: -0.028
A57: West Virginia | B57: 2017-12-01 | C57: 2017-102 (12/17) | D57: -0.053 | E57: 0.1839990238 | F57: 0.12 | G57: 2.058 | H57: 1.842 | K57: Not Yet Filed | M57: 2018-069(12/18) | N57: -0.062
A58: Wisconsin | B58: 2018-04-01 | C58: 2017-116 (4/18) | D58: 0.001 | E58: 0.02869300662 | F58: 0.03 | G58: 1.718 | H58: 1.653 | K58: Not Yet Filed | M58: 2018-104 (4/19) | N58: -0.034
A59: Wyoming | B59: 2017-12-01 | C59: 2017-101 (12/17) | D59: -0.06 | E59: 0.2228862775 | F59: 0.15 | G59: 1.824 | H59: 1.735 | K59: Not Yet Filed | M59: 2018-061 (1/19) | N59: -0.06
A61: * New Jersey state DOI has a maximum total rate change cap of 30% per policy.

Sheet GL-DEVS
G1: As of: | H1: =Cutoff_Date -> 2018-09-14
A2: * * * * * * * * * * * COMMERCIAL General Liability LOSS COST MODIFICATIONS * * * * * * * * * * *
B4: Loss Cost | C4: NEW HAMPSHIRE COMPANIES | G4: NEW YORK COMPANIES +
A5: State | B5: Modification * | C5: Sub-Standard | D5: Standard | E5: Preferred | F5: Super-Preferred | G5: Standard | H5: Preferred
A7: ALABAMA | B7: Prem = 11.5% Prod = 11.8% | D7: GSIC / INIC | E7: NHIC -10% | G7: AIG PCC / AIU / AHAC / C&I / NUFIC / ISOP
A8: ALASKA | B8: Prem = 35.0% Prod = 23.3% | C8: INIC +15% | D8: GSIC | E8: NHIC -10% | F8: AIG AC -15% | G8: AIG PCC / AIU / AHAC / C&I / NUFIC / ISOP
A9: ARIZONA | B9: Prem = 83.3% Prod = 12.0% | C9: INIC +15% | D9: GSIC | E9: NHIC -15% | F9: AIG AC -25% | G9: AIG PCC / AIU / AHAC / C&I / NUFIC / ISOP
A10: ARKANSAS | B10: Prem = -4.6% Prod = -23.3% | D10: GSIC | E10: NHIC -15% | F10: AIG AC -25% | G10: AIG PCC / AIU / AHAC / C&I / NUFIC / ISOP
A11: CALIFORNIA | B11: Prem = 123.9%, Prod = 62.4% | D11: NHIC / GSIC | G11: AIG PCC / AIU / AHAC / C&I / NUFIC / ISOP
A12: COLORADO | B12: Prem = -2.1% Prod = -11.1% | D12: GSIC / INIC | E12: NHIC -15% | F12: AIG AC -25% | G12: AIG PCC / AIU / AHAC / C&I / NUFIC / ISOP
A13: CONNECTICUT | B13: Prem= 7.1% Prod= -5.0% | D13: GSIC / INIC | E13: NHIC -15% | F13: AIG AC -25% | G13: AIG PCC / AIU / AHAC / C&I / NUFIC / ISOP
A14: DELAWARE | B14: Prem = 40.0% Prod = 30.0% | C14: INIC +15% | D14: GSIC | E14: NHIC -10% | F14: AIG AC -15% | G14: AIG PCC / AHAC / C&I / NUFIC / ISOP
A15: DIST. OF COLUMBIA | B15: Prem = 0.6% Prod = 5.0% | D15: GSIC / INIC / AIG AC | E15: NHIC -15% | G15: AIG PCC / AIU / AHAC / C&I / NUFIC / ISOP
A16: FLORIDA | B16: Prem = 58.3%, Prod = 7.3% | C16: INIC +15% | D16: NHIC / GSIC / AIG AC | G16: AIG PCC / AIU / AHAC / C&I / NUFIC / ISOP
A17: GEORGIA | B17: Prem = 16.4% Prod = -8.0% | C17: INIC +15% | D17: GSIC | E17: NHIC -15% | F17: AIG AC -25% | G17: AIG PCC / AIU / AHAC / C&I / NUFIC / ISOP
A18: HAWAII | B18: Prem = 0% Prod = 0% | D18: GSIC / INIC | E18: NHIC -10% | F18: AIG AC -15% | G18: AHAC / C&I / NUFIC / ISOP
A19: IDAHO | B19: Prem = 2.4% Prod = -6.1% | D19: GSIC / INIC | E19: NHIC -15% | F19: AIG AC -25% | G19: AIG PCC / AIU / AHAC / C&I / NUFIC / ISOP
A20: ILLINOIS | B20: Prem = 63.6% Prod = 13.2% | D20: GSIC / INIC | E20: NHIC -15% | F20: AIG AC -25% | G20: AIG PCC / AIU / AHAC / C&I / NUFIC / ISOP
A21: INDIANA | B21: Prem=8.2% Prod= 9.1% | C21: INIC +15% | D21: GSIC | E21: NHIC -15% | F21: AIG AC -25% | G21: AIG PCC / AIU / AHAC / C&I / NUFIC / ISOP
A22: IOWA | B22: Prem = 14.5% Prod = 2.5% | D22: GSIC / INIC | E22: NHIC -15% | F22: AIG AC -25% | G22: AIG PCC / AIU / AHAC / C&I / NUFIC / ISOP
A23: KANSAS | B23: Prem = 20.7% Prod = 11% | D23: GSIC / INIC | E23: NHIC -15% | F23: AIG AC -25% | G23: AIG PCC / AIU / AHAC / C&I / NUFIC / ISOP
A24: KENTUCKY | B24: Prem = 16.20% Prod = -0.5% | C24: INIC +15% | D24: GSIC | E24: NHIC -15% | F24: AIG AC -25% | G24: AIG PCC / AIU / AHAC / C&I / NUFIC / ISOP
A25: LOUISIANA | B25: Prem = 87% Prod = 15% | D25: NHIC / GSIC / INIC / AIG AC | G25: AIG PCC / AIU / AHAC / C&I / NUFIC / ISOP
A26: MAINE | B26: Prem = 9.2% Prod = 0.1% | D26: GSIC | E26: NHIC -15% | G26: AIG PCC / AIU / AHAC / C&I / NUFIC / ISOP
A27: MARYLAND | B27: Prem = 0.0% Prod = -13.6% | C27: INIC +15% | D27: GSIC | E27: NHIC -15% | F27: AIG AC -25% | G27: AIG PCC / AIU / AHAC / C&I / NUFIC / ISOP
A28: MASSACHUSETTS | B28: Prem = 13.2% Prod = 49.2% | D28: NHIC / GSIC / INIC | G28: AIG PCC / AHAC / C&I / NUFIC / ISOP | H28: AIU -25%
A29: MICHIGAN | B29: Prem = 22.0% Prod = 1.7% | D29: GSIC / INIC | E29: NHIC -15% | F29: AIG AC -25% | G29: AIG PCC / AIU / AHAC / C&I / NUFIC / ISOP
A30: MINNESOTA | B30: Prem = 21.4% Prod = 20% | C30: INIC +15% | D30: GSIC | E30: NHIC -15% | G30: AIG PCC / AIU / AHAC / C&I / NUFIC / ISOP
A31: MISSISSIPPI | B31: Prem = 5.2% Prod = 0.5% | D31: GSIC | E31: NHIC -15% | F31: AIG AC -25% | G31: AIG PCC / AIU / AHAC / C&I / NUFIC / ISOP
A32: MISSOURI | B32: Prem = -4.9% Prod = -5.4% | C32: INIC +15% | D32: GSIC | E32: NHIC -15% | F32: AIG AC -25% | G32: AIG PCC / AIU / AHAC / C&I / NUFIC / ISOP
A33: MONTANA | B33: Prem = -2.2% Prod = -11.5% | D33: GSIC / INIC | E33: NHIC -15% | F33: AIG AC -25% | G33: AIG PCC / AIU / AHAC / C&I / NUFIC / ISOP
A34: NEBRASKA | B34: Prem = -2.5% Prod = -5.8% | D34: NHIC / GSIC / INIC / AIG AC | G34: AIG PCC / AIU / AHAC / C&I / NUFIC / ISOP
A35: NEVADA | B35: Prem = 28.5% Prod = 33.9% | D35: GSIC / INIC | E35: NHIC -15% | F35: AIG AC -25% | G35: AIG PCC / AIU / AHAC / C&I / NUFIC / ISOP
A36: NEW HAMPSHIRE | B36: Prem = -9.4% Prod = 5.1% | C36: INIC +15% | D36: GSIC | E36: NHIC -10% | F36: AIG AC -15% | G36: AIG PCC / AIU / AHAC / C&I / NUFIC / ISOP
A37: NEW JERSEY | B37: Prem = 6.8% Prod = -13.4% | D37: GSIC / INIC | E37: NHIC -10% | G37: AIG PCC / AIU / AHAC / C&I / NUFIC / ISOP
A38: NEW MEXICO | B38: Prem = 4.5% Prod =-85.6% | D38: GSIC / INIC | E38: NHIC -15% | F38: AIG AC -25% | G38: AIG PCC / AIU / AHAC / C&I / NUFIC / ISOP
A39: NEW YORK | B39: Prem= 47.4% Prod=73.8% | D39: NHIC / GSIC | E39: INIC Premises =-16.7%., Products = 0% | G39: AIG PCC / AIU / AHAC / C&I / NUFIC / ISOP | J39: NY corrected 4/4/14
A40: NORTH CAROLINA | B40: Prem = 21.3% Prod = 16.9% | D40: GSIC | E40: NHIC -15% | F40: AIG AC -25% | G40: AIG PCC / AIU / AHAC / C&I / NUFIC / ISOP
A41: NORTH DAKOTA | B41: Prem= -2.8% Prod= -11.4% | C41: INIC +15% | D41: GSIC | E41: NHIC -15% | F41: AIG AC -25% | G41: AIG PCC / AIU / AHAC / C&I / NUFIC / ISOP
A42: OHIO | B42: Prem= 6.2% Prod= 2.7% | C42: INIC +15% | D42: GSIC | E42: NHIC -15% | F42: AIG AC -25% | G42: AIG PCC / AIU / AHAC / C&I / NUFIC / ISOP
A43: OKLAHOMA | B43: Prem= 17.1% Prod= -5.7% | D43: NHIC / GSIC / INIC / AIG AC | G43: AIG PCC / AIU / AHAC / C&I / NUFIC / ISOP
A44: OREGON | B44: Prem = 36.3% Prod = -1.3% | C44: INIC +15% | D44: GSIC | E44: NHIC -15% | F44: AIG AC -25% | G44: AIG PCC / AIU / AHAC / C&I / NUFIC / ISOP
A45: PENNSYLVANIA | B45: Prem= 25.6% Prod= 20% | C45: INIC +15% | D45: GSIC | E45: NHIC -10% | F45: AIG AC -15% | G45: AIG PCC / AIU / AHAC / C&I / NUFIC / ISOP
A46: RHODE ISLAND | B46: Prem= 18.8% Prod= -0.8% | D46: GSIC / INIC | E46: NHIC -15% | F46: AIG AC -25% | G46: AIG PCC / AIU / AHAC / C&I / NUFIC / ISOP
A47: SOUTH CAROLINA | B47: Prem = -4.4% Prod = -13.1% | D47: GSIC / INIC | E47: NHIC -15% | F47: AIG AC -25% | G47: AIG PCC / AIU / AHAC / C&I / NUFIC / ISOP
A48: SOUTH DAKOTA | B48: Prem = -3.0% Prod = 0.0% | C48: INIC +15% | D48: GSIC | E48: NHIC -15% | F48: AIG AC -25% | G48: AIG PCC / AIU / AHAC / C&I / NUFIC / ISOP
A49: TENNESSEE | B49: Prem = 0.0% Prod = 0.0% | C49: INIC +15% | D49: GSIC | E49: NHIC -15% | F49: AIG AC -25% | G49: AIG PCC / AIU / AHAC / C&I / NUFIC / ISOP
A50: TEXAS | B50: Prem = 73.5% Prod = 65.2% | C50: INIC +15% | D50: GSIC | E50: NHIC -15% | F50: AIG AC -25% | G50: AIG PCC / AIU / AHAC / C&I / NUFIC / ISOP
A51: UTAH | B51: Prem = 23.8% Prod = -7.2% | C51: INIC +15% | D51: GSIC | E51: NHIC -15% | F51: AIG AC -25% | G51: AIG PCC / AIU / AHAC / C&I / NUFIC / ISOP
A52: VERMONT | B52: Prem = 7.5% Prod = 19.8% | D52: GSIC / INIC | E52: NHIC -15% | G52: AIG PCC / AIU / AHAC / C&I / NUFIC / ISOP
A53: VIRGINIA | B53: Prem = -15.3% Prod = 0.3% | D53: GSIC | E53: NHIC -15% | F53: AIG AC -25% | G53: AIG PCC / AHAC / C&I / NUFIC / ISOP | H53: AIU -15%
A54: WASHINGTON | B54: Prem = 6.5% Prod = -9.8% | D54: GSIC / AIG AC / INIC | E54: NHIC -15% | G54: AIG PCC / AIU / AHAC / C&I / NUFIC / ISOP
A55: WEST VIRGINIA | B55: Prem = 17.3% Prod = 5.0% | C55: INIC +15% | D55: GSIC | E55: NHIC -15% | F55: AIG AC -25% | G55: AIG PCC / AIU / AHAC / C&I / NUFIC / ISOP
A56: WISCONSIN | B56: Prem = 1.4% Prod = -2.5% | C56: INIC +15% | D56: GSIC | E56: NHIC -15% | F56: AIG AC -25% | G56: AIG PCC / AIU / AHAC / C&I / NUFIC / ISOP
A57: WYOMING | B57: Prem = 9.9% Prod = 4.5% | D57: NHIC / GSIC / AIG AC / INIC | G57: AIG PCC / AHAC / C&I / NUFIC / ISOP
A59: * applies to all companies. | G59: + AIP, AIU LC filings not maintained after 4/2009

Sheet AUTO_Company_LCM_Summary
A2: * * * * * * * * * * * COMMERCIAL AUTO LIABILITY LOSS COST MODIFICATIONS * * * * * * * * * * *
A5: State | B5: AIG Effective Date | C5: INIC (0127) | G5: GSIC(0122) | K5: NHIC(0229) | O5: AIG AC(0157) | S5: AIG PCC(0102) | W5: AHAC(0019) | AA5: C&I(0107) | AE5: NUFIC(0165) | AI5: ISOP(0130) | AM5: AIU(0013)
C6: Liab LCM | D6: Phys_D LCM | E6: Auto Dealers Phys_D LCM | F6: Auto Dealers Liab LCM | G6: Liab LCM | H6: Phys_D LCM | I6: Auto Dealers Phys_D LCM | J6: Auto Dealers Liab LCM | K6: Liab LCM | L6: Phys_D LCM | M6: Auto Dealers Phys_D LCM | N6: Auto Dealers Liab LCM | O6: Liab LCM | P6: Phys_D LCM | Q6: Auto Dealers Phys_D LCM | R6: Auto Dealers Liab LCM | S6: Liab LCM | T6: Phys_D LCM | U6: Auto Dealers Phys_D LCM | V6: Auto Dealers Liab LCM | W6: Liab LCM | X6: Phys_D LCM | Y6: Auto Dealers Phys_D LCM | Z6: Auto Dealers Liab LCM | AA6: Liab LCM | AB6: Phys_D LCM | AC6: Auto Dealers Phys_D LCM | AD6: Auto Dealers Liab LCM | AE6: Liab LCM | AF6: Phys_D LCM | AG6: Auto Dealers Phys_D LCM | AH6: Auto Dealers Liab LCM | AI6: Liab LCM | AJ6: Phys_D LCM | AK6: Auto Dealers Phys_D LCM | AL6: Auto Dealers Liab LCM | AM6: Liab LCM | AN6: Phys_D LCM | AO6: Auto Dealers Phys_D LCM | AP6: Auto Dealers Liab LCM
A7: Alabama | B7: 2018-07-09 | C7: =ROUND(W7,3) -> 2.551 | D7: =ROUND(X7,3) -> 1.762 | E7: 1.762 | F7: 1.585 | G7: =ROUND(W7,3) -> 2.551 | H7: =ROUND(X7,3) -> 1.762 | I7: =ROUND(Y7,3) -> 1.762 | J7: =ROUND(Z7,3) -> 1.585 | K7: 2.169 | L7: =ROUND((1-15%)*X7,3) -> 1.498 | M7: =ROUND((1-15%)*Y7,3) -> 1.498 | N7: =ROUND((1-15%)*Z7,3) -> 1.347 | S7: =ROUND(W7,3) -> 2.551 | T7: =ROUND(X7,3) -> 1.762 | U7: =ROUND(Y7,3) -> 1.762 | V7: =ROUND(Z7,3) -> 1.585 | W7: =ROUND(AUTO!G9,3) -> 2.551 | X7: =ROUND(AUTO!H9,3) -> 1.762 | Y7: =ROUND(AUTO!I9,3) -> 1.762 | Z7: =ROUND(AUTO!J9,3) -> 1.585 | AA7: =ROUND(W7,3) -> 2.551 | AB7: =ROUND(X7,3) -> 1.762 | AC7: =ROUND(Y7,3) -> 1.762 | AD7: =ROUND(Z7,3) -> 1.585 | AE7: =ROUND(W7,3) -> 2.551 | AF7: =ROUND(X7,3) -> 1.762 | AG7: =ROUND(Y7,3) -> 1.762 | AH7: =ROUND(Z7,3) -> 1.585 | AI7: 1.871 | AJ7: 1.762 | AK7: =ROUND(Y7,3) -> 1.762 | AL7: =ROUND(Z7,3) -> 1.585 | AM7: =ROUND(W7*(1-40%),3) -> 1.531 | AN7: 1.057 | AO7: 1.057 | AP7: =ROUND(Z7*(1-40%),3) -> 0.951
A8: Alaska | B8: 2017-12-11 | C8: =ROUND(W8*(1+15%),3) -> 1.688 | D8: 2.081 | E8: 2.081 | F8: 1.553 | G8: =ROUND(W8,3) -> 1.468 | H8: =ROUND(X8,3) -> 1.809 | I8: 1.809 | J8: =ROUND(Z8,3) -> 1.553 | K8: =ROUND((1-15%)*W8,3) -> 1.248 | L8: =ROUND((1-15%)*X8,3) -> 1.538 | M8: 1.538 | N8: =ROUND((1-15%)*Z8,3) -> 1.32 | O8: =ROUND(W8*(1-25%),3) -> 1.101 | P8: =ROUND(X8*(1-25%),3) -> 1.357 | Q8: 1.357 | R8: =ROUND(Z8*(1-25%),3) -> 1.165 | S8: =ROUND(W8,3) -> 1.468 | T8: =ROUND(X8,3) -> 1.809 | U8: 1.809 | V8: =ROUND(Z8,3) -> 1.553 | W8: =ROUND(AUTO!G10,3) -> 1.468 | X8: =ROUND(AUTO!H10,3) -> 1.809 | Y8: =ROUND(AUTO!I10,3) -> 1.809 | Z8: =ROUND(AUTO!J10,3) -> 1.553 | AA8: =ROUND(W8,3) -> 1.468 | AB8: =ROUND(X8,3) -> 1.809 | AC8: 1.809 | AD8: =ROUND(Z8,3) -> 1.553 | AE8: =ROUND(W8,3) -> 1.468 | AF8: =ROUND(X8,3) -> 1.809 | AG8: 1.809 | AH8: =ROUND(Z8,3) -> 1.553 | AI8: =ROUND(W8,3) -> 1.468 | AJ8: =ROUND(X8,3) -> 1.809 | AK8: 1.809 | AL8: =ROUND(Z8,3) -> 1.553 | AM8: =ROUND(W8,3) -> 1.468 | AN8: =ROUND(X8,3) -> 1.809 | AO8: =ROUND(Y8,3) -> 1.809 | AP8: =ROUND(Z8,3) -> 1.553
A9: Arizona | B9: 2017-10-09 | C9: 1.975 | D9: =ROUND(X9*(1+15%),3) -> 2.025 | E9: =ROUND(Y9*(1+15%),3) -> 2.025 | F9: =ROUND(Z9*(1+15%),3) -> 1.734 | G9: 1.718 | H9: 1.761 | I9: 1.761 | J9: 1.508 | K9: 1.46 | L9: 1.497 | M9: 1.497 | N9: 1.282 | O9: 1.288 | P9: 1.32 | Q9: 1.32 | R9: =ROUND((1-25%)*Z9,3) -> 1.131 | S9: 1.718 | T9: 1.761 | U9: 1.761 | V9: 1.508 | W9: =ROUND(AUTO!G11,3) -> 1.718 | X9: =ROUND(AUTO!H11,3) -> 1.761 | Y9: =ROUND(AUTO!I11,3) -> 1.761 | Z9: =ROUND(AUTO!J11,3) -> 1.508 | AA9: 1.718 | AB9: 1.761 | AC9: 1.761 | AD9: 1.508 | AE9: 1.718 | AF9: 1.761 | AG9: 1.761 | AH9: 1.508 | AI9: 1.718 | AJ9: 1.761 | AK9: 1.761 | AL9: 1.508 | AM9: =ROUND(W9*(1-15%),3) -> 1.46 | AN9: =ROUND(X9*(1-15%),3) -> 1.497 | AO9: =ROUND(Y9*(1-15%),3) -> 1.497 | AP9: =ROUND(Z9*(1-15%),3) -> 1.282
A10: Arkansas | B10: 8/7/2017 | G10: 1.639 | H10: 2.195 | I10: 2.195 | J10: 1.87 | K10: 1.393 | L10: 1.866 | M10: 1.866 | N10: 1.589 | O10: =ROUND(W10*(1-25%),3) -> 1.229 | P10: 1.646 | Q10: 1.646 | R10: 1.402 | S10: 1.639 | T10: 2.195 | U10: 2.195 | V10: 1.87 | W10: =ROUND(AUTO!G12,3) -> 1.639 | X10: =ROUND(AUTO!H12,3) -> 2.195 | Y10: =ROUND(AUTO!I12,3) -> 2.195 | Z10: =ROUND(AUTO!J12,3) -> 1.87 | AA10: 1.639 | AB10: 2.195 | AC10: 2.195 | AD10: 1.87 | AE10: 1.639 | AF10: 2.195 | AG10: 2.195 | AH10: 1.87 | AI10: 1.639 | AJ10: 2.195 | AK10: 2.195 | AL10: 1.87 | AM10: =ROUND((1-30%)*W10,3) -> 1.147 | AN10: 1.536 | AO10: 1.536 | AP10: =ROUND((1-30%)*Z10,3) -> 1.309
A11: California | B11: 2017-12-11 | G11: =ROUND(W11*(1-20%),3) -> 1.724 | H11: =ROUND(X11*(1-20%),3) -> 1.617 | I11: =ROUND(Y11*(1-20%),3) -> 1.617 | J11: =ROUND(Z11*(1-20%),3) -> 1.724 | K11: =ROUND(W11,3) -> 2.155 | L11: =ROUND(X11,3) -> 2.021 | M11: =ROUND(Y11,3) -> 2.021 | N11: =ROUND(Z11,3) -> 2.155 | S11: 2.155 | T11: 2.021 | U11: 2.021 | V11: 2.155 | W11: =ROUND(AUTO!G13,3) -> 2.155 | X11: =ROUND(AUTO!H13,3) -> 2.021 | Y11: =ROUND(AUTO!I13,3) -> 2.021 | Z11: =ROUND(AUTO!J13,3) -> 2.155 | AA11: 2.155 | AB11: 2.021 | AC11: 2.021 | AD11: 2.155 | AE11: 2.155 | AF11: 2.021 | AG11: 2.021 | AH11: 2.155 | AI11: 2.155 | AJ11: 2.021 | AK11: 2.021 | AL11: 2.155
A12: Colorado | B12: 2016-01-01 | C12: =ROUND(W12,3) -> 1.791 | D12: =ROUND(X12,3) -> 1.813 | E12: 1.813 | F12: =ROUND(Z12,3) -> 1.563 | G12: 1.791 | H12: 1.813 | I12: 1.813 | J12: 1.563 | K12: 1.522 | L12: =ROUND((1-15%)*X12,3) -> 1.541 | M12: =ROUND((1-15%)*Y12,3) -> 1.541 | N12: 1.329 | O12: =ROUND(W12*(1-25%),3) -> 1.343 | P12: =ROUND(X12*(1-25%),3) -> 1.36 | Q12: 1.36 | R12: =ROUND(Z12*(1-25%),3) -> 1.172 | S12: 1.791 | T12: 1.813 | U12: 1.813 | V12: 1.563 | W12: =ROUND(AUTO!G14,3) -> 1.791 | X12: =ROUND(AUTO!H14,3) -> 1.813 | Y12: =ROUND(AUTO!I14,3) -> 1.813 | Z12: =ROUND(AUTO!J14,3) -> 1.563 | AA12: 1.791 | AB12: 1.813 | AC12: 1.813 | AD12: 1.563 | AE12: 1.791 | AF12: 1.813 | AG12: 1.813 | AH12: 1.563 | AI12: 1.791 | AJ12: 1.813 | AK12: 1.813 | AL12: 1.563 | AM12: =ROUND(W12,3) -> 1.791 | AN12: =ROUND(X12,3) -> 1.813 | AO12: 1.813 | AP12: =ROUND(Z12,3) -> 1.563
A13: Connecticut | B13: 2018-02-05 | C13: 1.827 | D13: 2.119 | E13: 2.119 | F13: 1.714 | G13: 1.827 | H13: 2.119 | I13: 2.119 | J13: 1.714 | K13: 1.553 | L13: =ROUND((1-15%)*X13,3) -> 1.801 | M13: =ROUND((1-15%)*Y13,3) -> 1.801 | N13: 1.457 | O13: 1.37 | P13: 1.589 | Q13: 1.589 | R13: 1.285 | S13: 1.827 | T13: 2.119 | U13: 2.119 | V13: 1.714 | W13: =ROUND(AUTO!G15,3) -> 1.827 | X13: =ROUND(AUTO!H15,3) -> 2.119 | Y13: =ROUND(AUTO!I15,3) -> 2.119 | Z13: =ROUND(AUTO!J15,3) -> 1.714 | AA13: 1.827 | AB13: 2.119 | AC13: 2.119 | AD13: 1.714 | AE13: 1.827 | AF13: 2.119 | AG13: 2.119 | AH13: 1.714 | AI13: 1.827 | AJ13: 2.119 | AK13: 2.119 | AL13: 1.714 | AM13: =ROUND(W13*(1-15%),3) -> 1.553 | AN13: =ROUND(X13*(1-15%),3) -> 1.801 | AO13: 1.801 | AP13: =ROUND(Z13*(1-15%),3) -> 1.457
A14: Delaware | B14: 2018-09-03 | C14: =ROUND(W14*(1+15%),3) -> 2.406 | D14: =ROUND(X14*(1+15%),3) -> 2.293 | E14: 2.293 | F14: 2.151 | G14: 2.092 | H14: 1.994 | I14: 1.994 | J14: 1.869 | K14: =ROUND((1-10%)*W14,3) -> 1.883 | L14: =ROUND((1-10%)*X14,3) -> 1.795 | M14: 1.795 | N14: 1.681 | O14: =ROUND(W14*(1-15%),3) -> 1.778 | P14: =ROUND(X14*(1-15%),3) -> 1.695 | Q14: =ROUND(Y14*(1-15%),3) -> 1.695 | R14: 1.587 | S14: 2.092 | T14: 1.994 | U14: 1.994 | V14: 1.869 | W14: =ROUND(AUTO!G16,3) -> 2.092 | X14: =ROUND(AUTO!H16,3) -> 1.994 | Y14: =ROUND(AUTO!I16,3) -> 1.994 | Z14: =ROUND(AUTO!J16,3) -> 1.869 | AA14: 2.092 | AB14: 1.994 | AC14: 1.994 | AD14: 1.869 | AE14: 2.092 | AF14: 1.994 | AG14: 1.994 | AH14: 1.869 | AI14: 2.092 | AJ14: 1.994 | AK14: 1.994 | AL14: 1.869 | AM14: 2.092 | AN14: 1.994 | AO14: 1.994 | AP14: 1.536
A15: DC | B15: 2018-02-26 | C15: 1.582 | D15: 1.859 | E15: 1.859 | F15: 1.512 | G15: 1.582 | H15: 1.859 | I15: 1.859 | J15: 1.512 | K15: 1.345 | L15: =ROUND((1-15%)*X15,3) -> 1.58 | M15: =ROUND((1-15%)*Y15,3) -> 1.58 | N15: 1.285 | O15: =ROUND(W15,3) -> 1.582 | P15: =ROUND(X15,3) -> 1.859 | Q15: 1.859 | R15: =ROUND(Z15,3) -> 1.512 | S15: 1.582 | T15: 1.859 | U15: 1.859 | V15: 1.512 | W15: =ROUND(AUTO!G17,3) -> 1.582 | X15: =ROUND(AUTO!H17,3) -> 1.859 | Y15: =ROUND(AUTO!I17,3) -> 1.859 | Z15: =ROUND(AUTO!J17,3) -> 1.512 | AA15: 1.582 | AB15: 1.859 | AC15: 1.859 | AD15: 1.512 | AE15: 1.582 | AF15: 1.859 | AG15: 1.859 | AH15: 1.512 | AI15: 1.582 | AJ15: 1.859 | AK15: 1.859 | AL15: 1.512 | AM15: 1.582 | AN15: 1.859 | AO15: 1.859 | AP15: 1.512
A16: Florida | B16: 2018-08-01 | C16: 2.103 | D16: =ROUND(X16*(1+15%),3) -> 2.114 | E16: 2.114 | F16: =ROUND(Z16*(1+15%),3) -> 2.328 | G16: 1.828 | H16: 1.838 | I16: 1.838 | J16: 2.024 | K16: 1.646 | L16: =ROUND((1-10%)*X16,3) -> 1.654 | M16: 1.654 | N16: 1.821 | O16: =ROUND(W16*(1-15%),3) -> 1.554 | P16: =ROUND(X16*(1-15%),3) -> 1.562 | Q16: =ROUND(Y16*(1-15%),3) -> 1.562 | R16: =ROUND(Z16*(1-15%),3) -> 1.72 | S16: 1.828 | T16: 1.838 | U16: 1.838 | V16: 2.024 | W16: =ROUND(AUTO!G18,3) -> 1.828 | X16: =ROUND(AUTO!H18,3) -> 1.838 | Y16: =ROUND(AUTO!I18,3) -> 1.838 | Z16: =ROUND(AUTO!J18,3) -> 2.024 | AA16: 1.828 | AB16: 1.838 | AC16: 1.838 | AD16: 2.024 | AE16: 1.828 | AF16: 1.838 | AG16: 1.838 | AH16: 2.024 | AI16: 1.828 | AJ16: 1.838 | AK16: 1.838 | AL16: 2.024 | AM16: 1.463 | AN16: 1.378 | AO16: 1.378 | AP16: 2.024
A17: Georgia | B17: 2018-05-01 | C17: 2.135 | D17: 2.419 | E17: 2.419 | F17: =ROUND(Z17*(1+15%),3) -> 1.766 | G17: 1.856 | H17: 2.104 | I17: 2.104 | J17: 1.536 | K17: 1.578 | L17: =ROUND((1-15%)*X17,3) -> 1.788 | M17: =ROUND((1-15%)*Y17,3) -> 1.788 | N17: 1.306 | O17: =ROUND(W17*(1-25%),3) -> 1.392 | P17: =ROUND(X17*(1-25%),3) -> 1.578 | Q17: 1.578 | R17: =ROUND(Z17*(1-25%),3) -> 1.152 | S17: 1.856 | T17: 2.104 | U17: 2.104 | V17: 1.536 | W17: =ROUND(AUTO!G19,3) -> 1.856 | X17: =ROUND(AUTO!H19,3) -> 2.104 | Y17: =ROUND(AUTO!I19,3) -> 2.104 | Z17: =ROUND(AUTO!J19,3) -> 1.536 | AA17: 1.856 | AB17: 2.104 | AC17: 2.104 | AD17: 1.536 | AE17: 1.856 | AF17: 2.104 | AG17: 2.104 | AH17: 1.536 | AI17: 1.856 | AJ17: 2.104 | AK17: 2.104 | AL17: 1.536 | AM17: 1.856 | AN17: 2.104 | AO17: 2.104 | AP17: 1.536
A18: Hawaii | B18: 2016-10-01 | K18: =ROUND(W18,3) -> 1.546 | L18: =ROUND(X18,3) -> 1.565 | M18: =ROUND(Y18,3) -> 1.565 | N18: =ROUND(Z18,3) -> 1.543 | W18: =ROUND(AUTO!G20,3) -> 1.546 | X18: =ROUND(AUTO!H20,3) -> 1.565 | Y18: =ROUND(AUTO!I20,3) -> 1.565 | Z18: =ROUND(AUTO!J20,3) -> 1.543 | AE18: 1.546 | AF18: 1.565 | AG18: 1.565 | AH18: 1.543 | AI18: 1.546 | AJ18: 1.565 | AK18: 1.565 | AL18: 1.543
A19: Idaho | B19: 8/7/2017 | C19: 1.495 | D19: 1.988 | E19: 1.988 | F19: 1.614 | G19: 1.495 | H19: 1.988 | I19: 1.988 | J19: 1.614 | K19: 1.271 | L19: =ROUND((1-15%)*X19,3) -> 1.69 | M19: =ROUND((1-15%)*Y19,3) -> 1.69 | N19: 1.372 | O19: 1.122 | P19: =ROUND(X19*(1-25%),3) -> 1.491 | Q19: 1.491 | R19: =ROUND(Z19*(1-25%),3) -> 1.211 | S19: 1.495 | T19: 1.988 | U19: 1.988 | V19: 1.614 | W19: =ROUND(AUTO!G21,3) -> 1.495 | X19: =ROUND(AUTO!H21,3) -> 1.988 | Y19: =ROUND(AUTO!I21,3) -> 1.988 | Z19: =ROUND(AUTO!J21,3) -> 1.614 | AA19: 1.495 | AB19: 1.988 | AC19: 1.988 | AD19: 1.614 | AE19: 1.495 | AF19: 1.988 | AG19: 1.988 | AH19: 1.614 | AI19: 1.495 | AJ19: 1.988 | AK19: 1.988 | AL19: 1.614 | AM19: 1.495 | AN19: 1.988 | AO19: 1.988 | AP19: 1.614
A20: Illinois | B20: 2017-10-23 | C20: 1.614 | D20: 1.749 | E20: 1.749 | F20: 1.438 | G20: 1.614 | H20: 1.749 | I20: 1.749 | J20: 1.691 | K20: 1.372 | L20: 1.486 | M20: 1.486 | N20: 1.438 | O20: 1.21 | P20: 1.312 | Q20: 1.312 | R20: =ROUND(Z20*(1-25%),3) -> 1.268 | S20: 1.614 | T20: 1.749 | U20: 1.749 | V20: 1.691 | W20: =ROUND(AUTO!G22,3) -> 1.614 | X20: =ROUND(AUTO!H22,3) -> 1.749 | Y20: =ROUND(AUTO!I22,3) -> 1.749 | Z20: =ROUND(AUTO!J22,3) -> 1.691 | AA20: 1.614 | AB20: 1.749 | AC20: 1.749 | AD20: 1.691 | AE20: 1.614 | AF20: 1.749 | AG20: 1.749 | AH20: 1.691 | AI20: 1.614 | AJ20: 1.749 | AK20: 1.749 | AL20: 1.691 | AM20: 1.614 | AN20: 1.749 | AO20: 1.749
A21: Indiana | B21: 2018-04-01 | C21: =ROUND(W21*(1+15%),3) -> 2.405 | D21: =ROUND(X21*(1+15%),3) -> 2.513 | E21: 2.513 | F21: =ROUND(Z21*(1+15%),3) -> 1.904 | G21: 2.091 | H21: 2.185 | I21: 2.185 | J21: 1.656 | K21: 1.778 | L21: 1.858 | M21: 1.858 | N21: 1.407 | O21: 1.569 | P21: 1.639 | Q21: 1.639 | R21: 1.242 | S21: 2.091 | T21: 2.185 | U21: 2.185 | V21: 1.656 | W21: =ROUND(AUTO!G23,3) -> 2.091 | X21: =ROUND(AUTO!H23,3) -> 2.185 | Y21: =ROUND(AUTO!I23,3) -> 2.185 | Z21: =ROUND(AUTO!J23,3) -> 1.656 | AA21: 2.091 | AB21: 2.185 | AC21: 2.185 | AD21: 1.656 | AE21: 2.091 | AF21: 2.185 | AG21: 2.185 | AH21: 1.656 | AI21: 2.091 | AJ21: 2.185 | AK21: 2.185 | AL21: 1.656 | AM21: =ROUND((1-20%)*W21,3) -> 1.673 | AN21: =ROUND((1-20%)*X21,3) -> 1.748 | AO21: 1.748 | AP21: 1.06
A22: Iowa | B22: 9/1/2017 | C22: 1.463 | D22: 1.967 | E22: 1.967 | F22: 1.62 | G22: 1.463 | H22: 1.967 | I22: 1.967 | J22: 1.62 | K22: 1.243 | L22: =ROUND((1-15%)*X22,3) -> 1.672 | M22: =ROUND((1-15%)*Y22,3) -> 1.672 | N22: =ROUND((1-15%)*Z22,3) -> 1.377 | O22: =ROUND(W22*(1-25%),3) -> 1.097 | P22: 1.475 | Q22: 1.475 | R22: 1.215 | S22: 1.463 | T22: 1.967 | U22: 1.967 | V22: 1.62 | W22: =ROUND(AUTO!G24,3) -> 1.463 | X22: =ROUND(AUTO!H24,3) -> 1.967 | Y22: =ROUND(AUTO!I24,3) -> 1.967 | Z22: =ROUND(AUTO!J24,3) -> 1.62 | AA22: 1.463 | AB22: 1.967 | AC22: 1.967 | AD22: 1.62 | AE22: 1.463 | AF22: 1.967 | AG22: 1.967 | AH22: 1.62 | AI22: 1.463 | AJ22: 1.967 | AK22: 1.967 | AL22: 1.62 | AM22: 1.17 | AN22: 1.573 | AO22: 1.573 | AP22: =ROUND((1-20%)*Z22,3) -> 1.296
A23: Kansas | B23: 2018-06-01 | C23: 1.599 | D23: 2.029 | E23: 2.029 | F23: 1.751 | G23: 1.599 | H23: 2.029 | I23: 2.029 | J23: 1.751 | K23: 1.359 | L23: 1.724 | M23: 1.724 | N23: 1.488 | O23: 1.199 | P23: 1.521 | Q23: 1.521 | R23: 1.313 | S23: 1.599 | T23: 2.029 | U23: 2.029 | V23: 1.751 | W23: =ROUND(AUTO!G25,3) -> 1.599 | X23: =ROUND(AUTO!H25,3) -> 2.029 | Y23: =ROUND(AUTO!I25,3) -> 2.029 | Z23: =ROUND(AUTO!J25,3) -> 1.751 | AA23: 1.599 | AB23: 2.029 | AC23: 2.029 | AD23: 1.751 | AE23: 1.599 | AF23: 2.029 | AG23: 2.029 | AH23: 1.751 | AI23: 1.599 | AJ23: 2.029 | AK23: 2.029 | AL23: 1.751 | AM23: 1.199 | AN23: 1.521 | AO23: 1.521 | AP23: =ROUND((1-25%)*Z23,3) -> 1.313
A24: Kentucky | B24: 9/1/2017 | C24: =ROUND(W24*(1+15%),3) -> 2.027 | D24: =ROUND(X24*(1+15%),3) -> 2.463 | E24: 2.463 | F24: =ROUND(Z24*(1+15%),3) -> 1.834 | G24: 1.763 | H24: 2.142 | I24: 2.142 | J24: 1.595 | K24: 1.498 | L24: =ROUND((1-15%)*X24,3) -> 1.821 | M24: =ROUND((1-15%)*Y24,3) -> 1.821 | N24: 1.356 | O24: 1.322 | P24: 1.606 | Q24: 1.606 | R24: 1.196 | S24: 1.763 | T24: 2.142 | U24: 2.142 | V24: 1.595 | W24: =ROUND(AUTO!G26,3) -> 1.763 | X24: =ROUND(AUTO!H26,3) -> 2.142 | Y24: =ROUND(AUTO!I26,3) -> 2.142 | Z24: =ROUND(AUTO!J26,3) -> 1.595 | AA24: 1.763 | AB24: 2.142 | AC24: 2.142 | AD24: 1.595 | AE24: 1.763 | AF24: 2.142 | AG24: 2.142 | AH24: 1.595 | AI24: 1.763 | AJ24: 2.142 | AK24: 2.142 | AL24: 1.595 | AM24: =ROUND((1-20%)*W24,3) -> 1.41 | AN24: =ROUND((1-20%)*X24,3) -> 1.714 | AO24: 1.714 | AP24: =ROUND((1-20%)*Z24,3) -> 1.276
A25: Louisiana | B25: 2018-02-01 | G25: 1.911 | H25: 2.163 | I25: 2.163 | J25: =ROUND(Z25,3) -> 1.769 | K25: =ROUND(W25,3) -> 1.911 | L25: =ROUND(X25,3) -> 2.163 | M25: 2.163 | N25: =ROUND(Z25,3) -> 1.769 | S25: 1.911 | T25: 2.163 | U25: 2.163 | V25: 1.769 | W25: =ROUND(AUTO!G27,3) -> 1.911 | X25: =ROUND(AUTO!H27,3) -> 2.163 | Y25: =ROUND(AUTO!I27,3) -> 2.163 | Z25: 1.769 | AA25: 1.911 | AB25: 2.163 | AC25: 2.163 | AD25: 1.769 | AE25: 1.911 | AF25: 2.163 | AG25: 2.163 | AH25: 1.769 | AI25: 1.911 | AJ25: 2.163 | AK25: 2.163 | AL25: 1.769
A26: Maine | B26: 2018-02-01 | C26: 1.841 | D26: 1.884 | E26: 1.884 | G26: 1.841 | H26: 1.884 | I26: 1.884 | J26: 1.497 | K26: 1.565 | L26: =ROUND((1-15%)*X26,3) -> 1.601 | M26: =ROUND((1-15%)*Y26,3) -> 1.601 | N26: 1.272 | O26: =ROUND(W26,3) -> 1.841 | P26: =ROUND(X26,3) -> 1.884 | Q26: =ROUND(Y26,3) -> 1.884 | S26: 1.841 | T26: 1.884 | U26: 1.884 | V26: 1.497 | W26: =ROUND(AUTO!G28,3) -> 1.841 | X26: =ROUND(AUTO!H28,3) -> 1.884 | Y26: =ROUND(AUTO!I28,3) -> 1.884 | Z26: =ROUND(AUTO!J28,3) -> 1.497 | AA26: 1.841 | AB26: 1.884 | AC26: 1.884 | AD26: 1.497 | AE26: 1.841 | AF26: 1.884 | AG26: 1.884 | AH26: 1.497 | AI26: 1.841 | AJ26: 1.884 | AK26: 1.884 | AL26: 1.497 | AM26: =ROUND(W26*(1-15%),3) -> 1.565 | AN26: =ROUND(X26*(1-15%),3) -> 1.601 | AO26: 1.601 | AP26: =ROUND(Z26*(1-15%),3) -> 1.272
A27: Maryland | B27: 2018-02-01 | C27: 2.18 | D27: 2.503 | E27: 2.503 | F27: =ROUND(Z27*(1+15%),3) -> 1.777 | G27: 1.895 | H27: 2.176 | I27: 2.176 | J27: 1.545 | K27: 1.611 | L27: =ROUND((1-15%)*X27,3) -> 1.85 | M27: =ROUND((1-15%)*Y27,3) -> 1.85 | N27: 1.313 | O27: 1.422 | P27: =ROUND(X27*(1-25%),3) -> 1.632 | Q27: =ROUND(Y27*(1-25%),3) -> 1.632 | R27: =ROUND(Z27*(1-25%),3) -> 1.159 | S27: 1.895 | T27: 2.176 | U27: 2.176 | V27: 1.545 | W27: =ROUND(AUTO!G29,3) -> 1.895 | X27: =ROUND(AUTO!H29,3) -> 2.176 | Y27: =ROUND(AUTO!I29,3) -> 2.176 | Z27: =ROUND(AUTO!J29,3) -> 1.545 | AA27: 1.895 | AB27: 2.176 | AC27: 2.176 | AD27: 1.545 | AE27: 1.895 | AF27: 2.176 | AG27: 2.176 | AH27: 1.545 | AI27: 1.895 | AJ27: 2.176 | AK27: 2.176 | AL27: 1.545 | AM27: =ROUND((1-10%)*W27,3) -> 1.706 | AN27: 1.959 | AO27: 1.959 | AP27: =ROUND((1-10%)*Z27,3) -> 1.391
A28: Massachusetts
A29: Michigan | B29: 7/1/2017 | C29: 1.465 | D29: 1.848 | E29: 1.848 | F29: 1.695 | G29: 1.465 | H29: 1.848 | I29: 1.848 | J29: 1.695 | K29: 1.246 | L29: =ROUND((1-15%)*X29,3) -> 1.571 | M29: 1.571 | N29: 1.441 | O29: =ROUND(W29*(1-25%),3) -> 1.099 | P29: =ROUND(X29*(1-25%),3) -> 1.386 | Q29: 1.386 | R29: =ROUND(Z29*(1-25%),3) -> 1.271 | S29: 1.465 | T29: 1.848 | U29: 1.848 | V29: 1.695 | W29: =ROUND(AUTO!G31,3) -> 1.465 | X29: =ROUND(AUTO!H31,3) -> 1.848 | Y29: =ROUND(AUTO!I31,3) -> 1.848 | Z29: =ROUND(AUTO!J31,3) -> 1.695 | AA29: 1.465 | AB29: 1.848 | AC29: 1.848 | AD29: =ROUND(Z29,3) -> 1.695 | AE29: 1.465 | AF29: 1.848 | AG29: 1.848 | AH29: 1.695 | AI29: 1.465 | AJ29: 1.848 | AK29: 1.848 | AL29: 1.695 | AM29: 1.465 | AN29: 1.848 | AO29: 1.848 | AP29: 1.695
A30: Minnesota | B30: 2017-10-09 | C30: 1.775 | D30: =ROUND(X30*(1+15%),3) -> 2.307 | E30: 2.307 | F30: =ROUND(Z30*(1+15%),3) -> 1.839 | G30: 1.544 | H30: 2.006 | I30: 2.006 | J30: 1.599 | K30: 1.312 | L30: 1.705 | M30: 1.705 | N30: 1.36 | O30: =ROUND(W30,3) -> 1.544 | P30: =ROUND(X30,3) -> 2.006 | Q30: =ROUND(Y30,3) -> 2.006 | S30: 1.544 | T30: 2.006 | U30: 2.006 | V30: 1.599 | W30: =ROUND(AUTO!G32,3) -> 1.544 | X30: =ROUND(AUTO!H32,3) -> 2.006 | Y30: =ROUND(AUTO!I32,3) -> 2.006 | Z30: =ROUND(AUTO!J32,3) -> 1.599 | AA30: 1.544 | AB30: 2.006 | AC30: 2.006 | AD30: 1.599 | AE30: 1.544 | AF30: 2.006 | AG30: 2.006 | AH30: 1.599 | AI30: 1.544 | AJ30: 2.006 | AK30: 2.006 | AL30: 1.599 | AM30: =ROUND((1-20%)*W30,3) -> 1.235 | AN30: =ROUND((1-20%)*X30,3) -> 1.605 | AO30: 1.605 | AP30: =ROUND((1-20%)*Z30,3) -> 1.279
A31: Mississippi | B31: 2018-02-01 | C31: =ROUND(W31,3) -> 2.153 | D31: =ROUND(X31,3) -> 1.971 | E31: =ROUND(Y31,3) -> 1.971 | G31: 2.153 | H31: 1.971 | I31: 1.971 | J31: 1.57 | K31: 1.83 | L31: 1.675 | M31: 1.675 | N31: 1.335 | O31: 1.614 | P31: =ROUND(X31*(1-25%),3) -> 1.478 | Q31: 1.478 | R31: =ROUND(Z31*(1-25%),3) -> 1.178 | S31: 2.153 | T31: 1.971 | U31: 1.971 | V31: 1.57 | W31: =ROUND(AUTO!G33,3) -> 2.153 | X31: =ROUND(AUTO!H33,3) -> 1.971 | Y31: =ROUND(AUTO!I33,3) -> 1.971 | Z31: =ROUND(AUTO!J33,3) -> 1.57 | AA31: 2.153 | AB31: 1.971 | AC31: 1.971 | AD31: 1.57 | AE31: 2.153 | AF31: 1.971 | AG31: 1.971 | AH31: 1.57 | AI31: 2.153 | AJ31: 1.971 | AK31: 1.971 | AL31: 1.57 | AM31: 2.153 | AN31: 1.971 | AO31: 1.971 | AP31: 1.57
A32: Missouri | B32: 2018-02-01 | C32: 2.028 | D32: =ROUND(X32*(1+15%),3) -> 2.245 | E32: =ROUND(Y32*(1+15%),3) -> 2.245 | F32: =ROUND(Z32*(1+15%),3) -> 1.885 | G32: 1.763 | H32: 1.952 | I32: 1.952 | J32: 1.639 | K32: 1.499 | L32: 1.659 | M32: 1.659 | N32: 1.393 | O32: =ROUND(W32*(1-25%),3) -> 1.322 | P32: 1.464 | Q32: 1.464 | R32: 1.229 | S32: 1.763 | T32: 1.952 | U32: 1.952 | V32: 1.639 | W32: =ROUND(AUTO!G34,3) -> 1.763 | X32: =ROUND(AUTO!H34,3) -> 1.952 | Y32: =ROUND(AUTO!I34,3) -> 1.952 | Z32: =ROUND(AUTO!J34,3) -> 1.639 | AA32: 1.763 | AB32: 1.952 | AC32: 1.952 | AD32: 1.639 | AE32: 1.763 | AF32: 1.952 | AG32: 1.952 | AH32: 1.639 | AI32: 1.763 | AJ32: 1.952 | AK32: 1.952 | AL32: 1.639 | AM32: 1.763 | AN32: 1.952 | AO32: 1.952 | AP32: 1.639
A33: Montana | B33: 2017-10-09 | C33: 1.365 | D33: 1.955 | E33: 1.955 | F33: 1.572 | G33: 1.365 | H33: 1.955 | I33: 1.955 | J33: 1.572 | K33: 1.16 | L33: 1.662 | M33: 1.662 | N33: 1.336 | O33: 1.024 | P33: 1.466 | Q33: 1.466 | R33: 1.179 | S33: 1.365 | T33: 1.955 | U33: 1.955 | V33: 1.572 | W33: =ROUND(AUTO!G35,3) -> 1.365 | X33: =ROUND(AUTO!H35,3) -> 1.955 | Y33: =ROUND(AUTO!I35,3) -> 1.955 | Z33: =ROUND(AUTO!J35,3) -> 1.572 | AA33: 1.365 | AB33: 1.955 | AC33: 1.955 | AD33: 1.572 | AE33: 1.365 | AF33: 1.955 | AG33: 1.955 | AH33: 1.572 | AI33: 1.365 | AJ33: 1.955 | AK33: 1.955 | AL33: 1.572 | AM33: =ROUND(W33*(1-15%),3) -> 1.16 | AN33: =ROUND(X33*(1-15%),3) -> 1.662 | AO33: 1.662 | AP33: =ROUND(Z33*(1-15%),3) -> 1.336
A34: Nebraska | B34: 2018-03-01 | C34: 1.879 | D34: 1.973 | E34: 1.973 | F34: 1.474 | G34: 1.879 | H34: 1.973 | I34: 1.973 | J34: 1.474 | K34: =ROUND(W34,3) -> 1.879 | L34: =ROUND(X34,3) -> 1.973 | M34: 1.973 | N34: =ROUND(Z34,3) -> 1.474 | O34: 1.879 | P34: 1.973 | Q34: 1.973 | R34: 1.474 | S34: 1.879 | T34: 1.973 | U34: 1.973 | V34: 1.474 | W34: =ROUND(AUTO!G36,3) -> 1.879 | X34: =ROUND(AUTO!H36,3) -> 1.973 | Y34: =ROUND(AUTO!I36,3) -> 1.973 | Z34: =ROUND(AUTO!J36,3) -> 1.474 | AA34: 1.879 | AB34: 1.973 | AC34: 1.973 | AD34: 1.474 | AE34: 1.879 | AF34: 1.973 | AG34: 1.973 | AH34: 1.474 | AI34: 1.879 | AJ34: 1.973 | AK34: 1.973 | AL34: 1.474 | AM34: 1.879 | AN34: 1.973 | AO34: 1.973 | AP34: 1.474
A35: Nevada | B35: 2017-10-01 | C35: 1.764 | D35: 2.143 | E35: 2.143 | F35: 1.899 | G35: 1.764 | H35: 2.143 | I35: 2.143 | J35: 1.899 | K35: 1.499 | L35: =ROUND((1-15%)*X35,3) -> 1.822 | M35: =ROUND((1-15%)*Y35,3) -> 1.822 | N35: 1.614 | O35: =ROUND(W35*(1-25%),3) -> 1.323 | P35: =ROUND(X35*(1-25%),3) -> 1.607 | Q35: 1.607 | R35: =ROUND(Z35*(1-25%),3) -> 1.424 | S35: 1.764 | T35: 2.143 | U35: 2.143 | V35: 1.899 | W35: =ROUND(AUTO!G37,3) -> 1.764 | X35: =ROUND(AUTO!H37,3) -> 2.143 | Y35: =ROUND(AUTO!I37,3) -> 2.143 | Z35: =ROUND(AUTO!J37,3) -> 1.899 | AA35: 1.764 | AB35: 2.143 | AC35: 2.143 | AD35: 1.899 | AE35: 1.764 | AF35: 2.143 | AG35: 2.143 | AH35: 1.899 | AI35: 1.764 | AJ35: 2.143 | AK35: 2.143 | AL35: 1.899 | AM35: 1.764 | AN35: 2.143 | AO35: 2.143 | AP35: 1.899
A36: New Hampshire | B36: 2017-10-09 | C36: =ROUND(W36*(1+15%),3) -> 1.71 | D36: =ROUND(X36*(1+15%),3) -> 2.188 | E36: 2.188 | F36: =ROUND(Z36*(1+15%),3) -> 1.715 | G36: 1.487 | H36: 1.903 | I36: 1.903 | J36: 1.491 | K36: 1.264 | L36: 1.617 | M36: 1.617 | N36: 1.268 | O36: 1.115 | P36: 1.427 | Q36: 1.427 | R36: 1.118 | S36: 1.487 | T36: 1.903 | U36: 1.903 | V36: 1.491 | W36: =ROUND(AUTO!G38,3) -> 1.487 | X36: =ROUND(AUTO!H38,3) -> 1.903 | Y36: =ROUND(AUTO!I38,3) -> 1.903 | Z36: =ROUND(AUTO!J38,3) -> 1.491 | AA36: 1.487 | AB36: 1.903 | AC36: 1.903 | AD36: 1.491 | AE36: 1.487 | AF36: 1.903 | AG36: 1.903 | AH36: 1.491 | AI36: 1.487 | AJ36: 1.903 | AK36: 1.903 | AL36: 1.491 | AM36: 1.487 | AN36: 1.903 | AO36: 1.903 | AP36: 1.491
A37: New Jersey * | B37: 2018-01-01 | C37: 1.954 | D37: 2.04 | E37: 2.04 | F37: 1.9 | G37: 1.954 | H37: 2.04 | I37: 2.04 | J37: 1.9 | K37: =ROUND(W37,3) -> 1.954 | L37: =ROUND(X37,3) -> 2.04 | M37: 2.04 | N37: =ROUND(Z37,3) -> 1.9 | S37: 1.954 | T37: 2.04 | U37: 2.04 | V37: 1.9 | W37: =ROUND(AUTO!G39,3) -> 1.954 | X37: =ROUND(AUTO!H39,3) -> 2.04 | Y37: =ROUND(AUTO!I39,3) -> 2.04 | Z37: =ROUND(AUTO!J39,3) -> 1.9 | AA37: 1.954 | AB37: 2.04 | AC37: 2.04 | AD37: 1.9 | AE37: 1.954 | AF37: 2.04 | AG37: 2.04 | AH37: 1.9 | AI37: 1.954 | AJ37: 2.04 | AK37: 2.04 | AL37: 1.9 | AM37: 1.954 | AN37: 2.04 | AO37: 2.04 | AP37: 1.9
A38: New Mexico | B38: 2017-10-01 | C38: 1.426 | D38: 1.841 | E38: 1.841 | F38: 1.536 | G38: 1.426 | H38: 1.841 | I38: 1.841 | J38: 1.536 | K38: 1.212 | L38: =ROUND((1-15%)*X38,3) -> 1.565 | M38: =ROUND((1-15%)*Y38,3) -> 1.565 | N38: 1.306 | O38: =ROUND(W38*(1-25%),3) -> 1.07 | P38: =ROUND(X38*(1-25%),3) -> 1.381 | Q38: 1.381 | R38: =ROUND(Z38*(1-25%),3) -> 1.152 | S38: 1.426 | T38: 1.841 | U38: 1.841 | V38: 1.536 | W38: =ROUND(AUTO!G40,3) -> 1.426 | X38: =ROUND(AUTO!H40,3) -> 1.841 | Y38: =ROUND(AUTO!I40,3) -> 1.841 | Z38: =ROUND(AUTO!J40,3) -> 1.536 | AA38: 1.426 | AB38: 1.841 | AC38: 1.841 | AD38: 1.536 | AE38: 1.426 | AF38: 1.841 | AG38: 1.841 | AH38: 1.536 | AI38: 1.426 | AJ38: 1.841 | AK38: 1.841 | AL38: 1.536 | AM38: =ROUND((1-20%)*W38,3) -> 1.141 | AN38: =ROUND((1-20%)*X38,3) -> 1.473 | AO38: 1.473 | AP38: =ROUND((1-20%)*Z38,3) -> 1.229
A39: New York | B39: 2017-09-01 | C39: =ROUND(W39*(1-20%),3) -> 1.789 | D39: =ROUND(X39*(1-20%),3) -> 1.203 | E39: =ROUND(Y39*(1-20%),3) -> 1.203 | F39: =ROUND(Z39*(1-20%),3) -> 1.384 | G39: =ROUND(W39*(1-15%),3) -> 1.901 | H39: =ROUND(X39*(1-15%),3) -> 1.278 | I39: 1.278 | J39: 1.47 | K39: =ROUND(W39,3) -> 2.236 | L39: =ROUND(X39,3) -> 1.504 | M39: 1.504 | N39: =ROUND(Z39,3) -> 1.73 | S39: 2.236 | T39: 1.504 | U39: 1.504 | V39: 1.73 | W39: =ROUND(AUTO!G41,3) -> 2.236 | X39: =ROUND(AUTO!H41,3) -> 1.504 | Y39: =ROUND(AUTO!I41,3) -> 1.504 | Z39: =ROUND(AUTO!J41,3) -> 1.73 | AA39: 2.236 | AB39: 1.504 | AC39: 1.504 | AD39: 1.73 | AE39: 2.236 | AF39: 1.504 | AG39: 1.504 | AH39: 1.73 | AI39: 2.236 | AJ39: 1.504 | AK39: 1.504 | AL39: 1.73 | AP39: 1.73
A40: North Carolina | B40: 2018-02-26 | G40: 1.563 | H40: 1.941 | I40: 1.941 | J40: 1.511 | K40: 1.329 | L40: =ROUND((1-15%)*X40,3) -> 1.65 | M40: 1.65 | N40: 1.284 | O40: 1.563 | P40: 1.941 | Q40: 1.941 | R40: 1.133 | S40: 1.563 | T40: 1.941 | U40: 1.941 | V40: 1.511 | W40: =ROUND(AUTO!G42,3) -> 1.563 | X40: =ROUND(AUTO!H42,3) -> 1.941 | Y40: =ROUND(AUTO!I42,3) -> 1.941 | Z40: =ROUND(AUTO!J42,3) -> 1.511 | AA40: 1.563 | AB40: 1.941 | AC40: 1.941 | AD40: 1.511 | AE40: 1.563 | AF40: 1.941 | AG40: 1.941 | AH40: 1.511 | AI40: 1.563 | AJ40: 1.941 | AK40: 1.941 | AL40: 1.511 | AM40: 1.563 | AN40: 1.941 | AO40: 1.941 | AP40: 1.511
A41: North Dakota | B41: 7/1/2017 | C41: =ROUND(W41*(1+15%),3) -> 1.325 | D41: =ROUND(X41*(1+15%),3) -> 2.348 | E41: 2.348 | F41: =ROUND(Z41*(1+15%),3) -> 1.769 | G41: 1.152 | H41: 2.042 | I41: 2.042 | J41: 1.538 | K41: 0.979 | L41: 1.736 | M41: 1.736 | N41: 1.308 | O41: =ROUND(W41*(1-25%),3) -> 0.864 | P41: =ROUND(X41*(1-25%),3) -> 1.532 | Q41: 1.532 | R41: =ROUND(Z41*(1-25%),3) -> 1.154 | S41: 1.152 | T41: 2.042 | U41: 2.042 | V41: 1.538 | W41: =ROUND(AUTO!G43,3) -> 1.152 | X41: =ROUND(AUTO!H43,3) -> 2.042 | Y41: =ROUND(AUTO!I43,3) -> 2.042 | Z41: =ROUND(AUTO!J43,3) -> 1.538 | AA41: 1.152 | AB41: 2.042 | AC41: 2.042 | AD41: 1.538 | AE41: 1.152 | AF41: 2.042 | AG41: 2.042 | AH41: 1.538 | AI41: 1.152 | AJ41: 2.042 | AK41: 2.042 | AL41: 1.538 | AM41: 1.152 | AN41: 2.042 | AO41: 2.042 | AP41: 1.538
A42: Ohio | B42: 2018-03-01 | C42: 1.784 | D42: 2.179 | E42: 2.179 | F42: 1.738 | G42: 1.784 | H42: 2.179 | I42: 2.179 | J42: 1.738 | K42: 1.516 | L42: 1.852 | M42: 1.852 | N42: 1.477 | O42: 1.338 | P42: 1.634 | Q42: 1.634 | R42: 1.303 | S42: 1.784 | T42: 2.179 | U42: 2.179 | V42: 1.738 | W42: =ROUND(AUTO!G44,3) -> 1.784 | X42: =ROUND(AUTO!H44,3) -> 2.179 | Y42: =ROUND(AUTO!I44,3) -> 2.179 | Z42: =ROUND(AUTO!J44,3) -> 1.738 | AA42: 1.784 | AB42: 2.179 | AC42: 2.179 | AD42: 1.738 | AE42: 1.784 | AF42: 2.179 | AG42: 2.179 | AH42: 1.738 | AI42: 1.784 | AJ42: 2.179 | AK42: 2.179 | AL42: 1.738 | AM42: =ROUND(W42*(1-15%),3) -> 1.516 | AN42: =ROUND(X42*(1-15%),3) -> 1.852 | AO42: 1.852 | AP42: =ROUND(Z42*(1-15%),3) -> 1.477
A43: Oklahoma | B43: 2017-10-23 | C43: 1.543 | D43: 1.917 | E43: 1.917 | F43: 1.63 | G43: 1.543 | H43: 1.917 | I43: 1.917 | J43: 1.63 | K43: =ROUND(W43,3) -> 1.543 | L43: =ROUND(X43,3) -> 1.917 | M43: 1.917 | N43: =ROUND(Z43,3) -> 1.63 | O43: 1.543 | P43: 1.917 | Q43: 1.917 | R43: 1.63 | S43: 1.543 | T43: 1.917 | U43: 1.917 | V43: 1.63 | W43: =ROUND(AUTO!G45,3) -> 1.543 | X43: =ROUND(AUTO!H45,3) -> 1.917 | Y43: =ROUND(AUTO!I45,3) -> 1.917 | Z43: =ROUND(AUTO!J45,3) -> 1.63 | AA43: 1.543 | AB43: 1.917 | AC43: 1.917 | AD43: 1.63 | AE43: 1.543 | AF43: 1.917 | AG43: 1.917 | AH43: 1.63 | AI43: 1.543 | AJ43: 1.917 | AK43: 1.917 | AL43: 1.63 | AM43: 1.543 | AN43: 1.917 | AO43: 1.917 | AP43: 1.63
A44: Oregon | B44: 2018-02-01 | C44: =ROUND((1+15%)*W44,3) -> 1.888 | D44: =ROUND((1+15%)*X44,3) -> 1.98 | E44: =ROUND((1+15%)*Y44,3) -> 1.98 | F44: =ROUND((1+15%)*Z44,3) -> 1.872 | G44: 1.642 | H44: 1.722 | I44: 1.722 | J44: 1.628 | K44: 1.395 | L44: =ROUND((1-15%)*X44,3) -> 1.464 | M44: =ROUND((1-15%)*Y44,3) -> 1.464 | N44: 1.384 | O44: 1.231 | P44: 1.291 | Q44: 1.291 | R44: 1.221 | S44: 1.642 | T44: 1.722 | U44: 1.722 | V44: 1.628 | W44: =ROUND(AUTO!G46,3) -> 1.642 | X44: =ROUND(AUTO!H46,3) -> 1.722 | Y44: =ROUND(AUTO!I46,3) -> 1.722 | Z44: =ROUND(AUTO!J46,3) -> 1.628 | AA44: 1.642 | AB44: 1.722 | AC44: 1.722 | AD44: 1.628 | AE44: 1.642 | AF44: 1.722 | AG44: 1.722 | AH44: 1.628 | AI44: 1.642 | AJ44: 1.722 | AK44: 1.722 | AL44: 1.628 | AM44: =ROUND((1-35%)*W44,3) -> 1.067 | AN44: =ROUND((1-35%)*X44,3) -> 1.119 | AO44: 1.119 | AP44: 1.059
A45: Pennsylvania | B45: 2018-07-01 | C45: 2.043 | D45: 2.334 | E45: =ROUND(Y45*(1+15%),3) -> 2.333 | F45: =ROUND(Z45*(1+15%),3) -> 2.786 | G45: 1.776 | H45: 2.029 | I45: 2.029 | J45: 2.423 | K45: 1.599 | L45: =ROUND((1-10%)*X45,3) -> 1.826 | M45: 1.826 | N45: 2.18 | O45: =ROUND(W45*(1-15%),3) -> 1.51 | P45: =ROUND(X45*(1-15%),3) -> 1.725 | Q45: =ROUND(Y45*(1-15%),3) -> 1.725 | R45: =ROUND(Z45*(1-15%),3) -> 2.06 | S45: 1.776 | T45: 2.029 | U45: 2.029 | V45: 2.423 | W45: =ROUND(AUTO!G47,3) -> 1.776 | X45: =ROUND(AUTO!H47,3) -> 2.029 | Y45: =ROUND(AUTO!I47,3) -> 2.029 | Z45: =ROUND(AUTO!J47,3) -> 2.423 | AA45: 1.776 | AB45: 2.029 | AC45: 2.029 | AD45: 2.423 | AE45: 1.776 | AF45: 2.029 | AG45: 2.029 | AH45: 2.423 | AI45: 1.776 | AJ45: 2.029 | AK45: 2.029 | AL45: 2.423 | AM45: 1.599 | AN45: =ROUND((1-10%)*X45,3) -> 1.826 | AO45: 1.826 | AP45: 2.18
A46: Rhode Island | B46: 2018-07-09 | C46: =ROUND(W46,3) -> 1.559 | D46: =ROUND(X46,3) -> 1.819 | E46: =ROUND(Y46,3) -> 1.819 | F46: =ROUND(Z46,3) -> 1.495 | G46: 1.559 | H46: 1.819 | I46: 1.819 | J46: 1.495 | K46: =ROUND(W46,3) -> 1.559 | L46: =ROUND(X46,3) -> 1.819 | M46: 1.819 | N46: =ROUND(Z46,3) -> 1.495 | O46: 1.559 | P46: 1.819 | Q46: 1.819 | R46: 1.495 | S46: 1.559 | T46: 1.819 | U46: 1.819 | V46: 1.495 | W46: =ROUND(AUTO!G48,3) -> 1.559 | X46: =ROUND(AUTO!H48,3) -> 1.819 | Y46: =ROUND(AUTO!I48,3) -> 1.819 | Z46: =ROUND(AUTO!J48,3) -> 1.495 | AA46: 1.559 | AB46: 1.819 | AC46: 1.819 | AD46: 1.495 | AE46: 1.559 | AF46: 1.819 | AG46: 1.819 | AH46: 1.495 | AI46: 1.559 | AJ46: 1.819 | AK46: 1.819 | AL46: 1.495 | AM46: 1.559 | AN46: 1.819 | AO46: 1.819 | AP46: 1.495
A47: South Carolina | B47: 2018-07-01 | C47: 1.54 | D47: 1.86 | E47: 1.86 | F47: 1.634 | G47: 1.54 | H47: 1.86 | I47: 1.86 | J47: 1.634 | K47: 1.309 | L47: =ROUND((1-15%)*X47,3) -> 1.581 | M47: =ROUND((1-15%)*Y47,3) -> 1.581 | N47: 1.389 | O47: =ROUND(W47*(1-25%),3) -> 1.155 | P47: =ROUND(X47*(1-25%),3) -> 1.395 | Q47: 1.395 | R47: =ROUND(Z47*(1-25%),3) -> 1.226 | S47: 1.54 | T47: 1.86 | U47: 1.86 | V47: 1.634 | W47: =ROUND(AUTO!G49,3) -> 1.54 | X47: =ROUND(AUTO!H49,3) -> 1.86 | Y47: =ROUND(AUTO!I49,3) -> 1.86 | Z47: =ROUND(AUTO!J49,3) -> 1.634 | AA47: 1.54 | AB47: 1.86 | AC47: 1.86 | AD47: 1.634 | AE47: 1.54 | AF47: 1.86 | AG47: 1.86 | AH47: 1.634 | AI47: 1.54 | AJ47: 1.86 | AK47: 1.86 | AL47: 1.634 | AM47: 1.54 | AN47: 1.86 | AO47: 1.86 | AP47: 1.634
A48: South Dakota | B48: 7/1/2017 | C48: =ROUND(W48*(1+15%),3) -> 1.657 | D48: =ROUND(X48*(1+15%),3) -> 2.207 | E48: 2.207 | F48: =ROUND(Z48*(1+15%),3) -> 1.792 | G48: 1.441 | H48: 1.919 | I48: 1.919 | J48: 1.558 | K48: 1.224 | L48: =ROUND((1-15%)*X48,3) -> 1.631 | M48: =ROUND((1-15%)*Y48,3) -> 1.631 | N48: 1.324 | O48: 1.08 | P48: 1.439 | Q48: 1.439 | R48: 1.169 | S48: 1.441 | T48: 1.919 | U48: 1.919 | V48: 1.558 | W48: =ROUND(AUTO!G50,3) -> 1.441 | X48: =ROUND(AUTO!H50,3) -> 1.919 | Y48: =ROUND(AUTO!I50,3) -> 1.919 | Z48: =ROUND(AUTO!J50,3) -> 1.558 | AA48: 1.441 | AB48: 1.919 | AC48: 1.919 | AD48: 1.558 | AE48: 1.441 | AF48: 1.919 | AG48: 1.919 | AH48: 1.558 | AI48: 1.441 | AJ48: 1.919 | AK48: 1.919 | AL48: 1.558 | AM48: 1.08 | AN48: =ROUND((1-25%)*X48,3) -> 1.439 | AO48: =ROUND((1-25%)*Y48,3) -> 1.439 | AP48: =ROUND((1-25%)*Z48,3) -> 1.169
A49: Tennessee | B49: 2018-02-01 | C49: 1.906 | D49: 2.228 | E49: 2.228 | F49: 1.811 | G49: 1.657 | H49: 1.937 | I49: 1.937 | J49: 1.575 | K49: 1.409 | L49: 1.647 | M49: 1.647 | N49: 1.339 | O49: 1.243 | P49: 1.453 | Q49: 1.453 | R49: 1.181 | S49: 1.657 | T49: 1.937 | U49: 1.937 | V49: 1.575 | W49: =ROUND(AUTO!G51,3) -> 1.657 | X49: =ROUND(AUTO!H51,3) -> 1.937 | Y49: =ROUND(AUTO!I51,3) -> 1.937 | Z49: =ROUND(AUTO!J51,3) -> 1.575 | AA49: 1.657 | AB49: 1.937 | AC49: 1.937 | AD49: 1.575 | AE49: 1.657 | AF49: 1.937 | AG49: 1.937 | AH49: 1.575 | AI49: 1.657 | AJ49: 1.937 | AK49: 1.937 | AL49: 1.575 | AM49: =ROUND((1-20%)*W49,3) -> 1.326 | AN49: =ROUND((1-20%)*X49,3) -> 1.55 | AO49: =ROUND((1-20%)*Y49,3) -> 1.55 | AP49: =ROUND((1-20%)*Z49,3) -> 1.26
A50: Texas | B50: 2017-05-01 | C50: =ROUND(W50*(1+13%),3) -> 1.747 | D50: =ROUND(X50*(1+13%),3) -> 2.022 | E50: =ROUND(Y50*(1+13%),3) -> 2.022 | F50: =ROUND(Z50*(1+13%),3) -> 2.363 | G50: 1.546 | H50: 1.789 | I50: 1.789 | J50: 2.091 | K50: =ROUND((1-13.1%)*W50,3) -> 1.343 | L50: =ROUND((1-13.1%)*X50,3) -> 1.555 | M50: =ROUND((1-13.1%)*Y50,3) -> 1.555 | N50: =ROUND((1-13.1%)*Z50,3) -> 1.817 | O50: =ROUND(W50*(1-21.8%),3) -> 1.209 | P50: =ROUND(X50*(1-21.8%),3) -> 1.399 | Q50: =ROUND(Y50*(1-21.8%),3) -> 1.399 | R50: =ROUND(Z50*(1-21.8%),3) -> 1.635 | S50: 1.546 | T50: 1.789 | U50: 1.789 | V50: 2.091 | W50: =ROUND(AUTO!G52,3) -> 1.546 | X50: =ROUND(AUTO!H52,3) -> 1.789 | Y50: =ROUND(AUTO!I52,3) -> 1.789 | Z50: =ROUND(AUTO!J52,3) -> 2.091 | AA50: 1.546 | AB50: 1.789 | AC50: 1.789 | AD50: 2.091 | AE50: 1.546 | AF50: 1.789 | AG50: 1.789 | AH50: 2.091 | AI50: 1.546 | AJ50: 1.789 | AK50: 1.789 | AL50: 2.091 | AM50: 1.546 | AN50: 1.789 | AO50: 1.789
A51: Utah | B51: 2018-01-01 | C51: =ROUND(W51*(1+15%),3) -> 1.788 | D51: =ROUND(X51*(1+15%),3) -> 2.113 | E51: 2.113 | F51: =ROUND(Z51*(1+15%),3) -> 1.783 | G51: 1.555 | H51: 1.837 | I51: 1.837 | J51: 1.55 | K51: 1.321 | L51: =ROUND((1-15%)*X51,3) -> 1.561 | M51: =ROUND((1-15%)*Y51,3) -> 1.561 | N51: 1.318 | O51: =ROUND(W51*(1-25%),3) -> 1.166 | P51: =ROUND(X51*(1-25%),3) -> 1.378 | Q51: 1.378 | R51: =ROUND(Z51*(1-25%),3) -> 1.163 | S51: 1.555 | T51: 1.837 | U51: 1.837 | V51: 1.55 | W51: =ROUND(AUTO!G53,3) -> 1.555 | X51: =ROUND(AUTO!H53,3) -> 1.837 | Y51: =ROUND(AUTO!I53,3) -> 1.837 | Z51: =ROUND(AUTO!J53,3) -> 1.55 | AA51: 1.555 | AB51: 1.837 | AC51: 1.837 | AD51: 1.55 | AE51: 1.555 | AF51: 1.837 | AG51: 1.837 | AH51: 1.55 | AI51: 1.555 | AJ51: 1.837 | AK51: 1.837 | AL51: 1.55 | AM51: 1.555 | AN51: 1.837 | AO51: 1.837 | AP51: 1.55
A52: Vermont | B52: 2018-01-01 | C52: 1.512 | D52: 1.918 | E52: 1.918 | F52: 1.52 | G52: 1.512 | H52: 1.918 | I52: 1.918 | J52: 1.52 | K52: 1.285 | L52: =ROUND((1-15%)*X52,3) -> 1.63 | M52: =ROUND((1-15%)*Y52,3) -> 1.63 | N52: 1.292 | S52: 1.512 | T52: 1.918 | U52: 1.918 | V52: 1.52 | W52: =ROUND(AUTO!G54,3) -> 1.512 | X52: =ROUND(AUTO!H54,3) -> 1.918 | Y52: =ROUND(AUTO!I54,3) -> 1.918 | Z52: =ROUND(AUTO!J54,3) -> 1.52 | AA52: 1.512 | AB52: 1.918 | AC52: 1.918 | AD52: 1.52 | AE52: 1.512 | AF52: 1.918 | AG52: 1.918 | AH52: 1.52 | AI52: 1.512 | AJ52: 1.918 | AK52: 1.918 | AL52: 1.52 | AM52: =ROUND(W52*(1-15%),3) -> 1.285 | AN52: =ROUND(X52*(1-15%),3) -> 1.63 | AO52: 1.63 | AP52: =ROUND(Z52*(1-15%),3) -> 1.292
A53: Virginia | B53: 2016-10-01 | G53: 1.706 | H53: 1.724 | I53: 1.724 | J53: 1.863 | K53: 1.451 | L53: 1.466 | M53: 1.466 | N53: 1.584 | O53: =ROUND(W53*(1-25%),3) -> 1.28 | P53: 1.294 | Q53: 1.294 | R53: 1.398 | S53: 1.706 | T53: 1.724 | U53: 1.724 | V53: 1.863 | W53: =ROUND(AUTO!G55,3) -> 1.706 | X53: =ROUND(AUTO!H55,3) -> 1.724 | Y53: =ROUND(AUTO!I55,3) -> 1.724 | Z53: =ROUND(AUTO!J55,3) -> 1.863 | AA53: 1.706 | AB53: 1.724 | AC53: 1.724 | AD53: 1.863 | AE53: 1.706 | AF53: 1.724 | AG53: 1.724 | AH53: 1.863 | AI53: 1.706 | AJ53: 1.724 | AK53: 1.724 | AL53: 1.863 | AM53: 1.451 | AN53: =ROUND((1-10%)*X53,3) -> 1.552 | AO53: =ROUND((1-10%)*Y53,3) -> 1.552 | AP53: 1.584
A54: Washington | B54: 2018-04-23 | C54: 1.57 | D54: 2.017 | E54: 2.017 | F54: 1.437 | G54: 1.57 | H54: 2.017 | I54: 2.017 | J54: 1.437 | K54: 1.335 | L54: 1.715 | M54: 1.715 | N54: 1.221 | O54: 1.57 | P54: 2.017 | Q54: 2.017 | R54: 1.437 | S54: 1.57 | T54: 2.017 | U54: 2.017 | V54: 1.437 | W54: =ROUND(AUTO!G56,3) -> 1.57 | X54: =ROUND(AUTO!H56,3) -> 2.017 | Y54: =ROUND(AUTO!I56,3) -> 2.017 | Z54: =ROUND(AUTO!J56,3) -> 1.437 | AA54: 1.57 | AB54: 2.017 | AC54: 2.017 | AD54: 1.437 | AE54: 1.57 | AF54: 2.017 | AG54: 2.017 | AH54: 1.437 | AI54: 1.57 | AJ54: 2.017 | AK54: 2.017 | AL54: 1.437 | AM54: 1.57 | AN54: 2.017 | AO54: 2.017 | AP54: 1.437
A55: West Virginia | B55: 2018-01-01 | C55: =ROUND(W55*(1+15%),3) -> 1.911 | D55: =ROUND(X55*(1+15%),3) -> 2.28 | E55: 2.28 | F55: 1.563 | G55: 1.662 | H55: 1.983 | I55: 1.983 | J55: 1.563 | K55: =ROUND((1-10%)*W55,3) -> 1.496 | L55: =ROUND((1-10%)*X55,3) -> 1.785 | M55: 1.785 | N55: 1.563 | O55: 1.246 | P55: =ROUND(X55*(1-25%),3) -> 1.487 | Q55: 1.487 | R55: 1.563 | S55: 1.662 | T55: 1.983 | U55: 1.983 | V55: 1.563 | W55: =ROUND(AUTO!G57,3) -> 1.662 | X55: =ROUND(AUTO!H57,3) -> 1.983 | Y55: =ROUND(AUTO!I57,3) -> 1.983 | Z55: =ROUND(AUTO!J57,3) -> 1.563 | AA55: 1.662 | AB55: 1.983 | AC55: 1.983 | AD55: 1.563 | AE55: 1.662 | AF55: 1.983 | AG55: 1.983 | AH55: 1.563 | AI55: 1.662 | AJ55: 1.983 | AK55: 1.983 | AL55: 1.563 | AM55: 1.662 | AN55: 1.983 | AO55: 1.983 | AP55: 1.563
A56: Wisconsin | B56: 2017-10-09 | C56: 1.767 | D56: 2.272 | E56: 2.272 | F56: =ROUND(Z56*(1+15%),3) -> 1.869 | G56: 1.537 | H56: 1.975 | I56: 1.975 | J56: 1.625 | K56: 1.306 | L56: =ROUND((1-15%)*X56,3) -> 1.679 | M56: =ROUND((1-15%)*Y56,3) -> 1.679 | N56: 1.381 | O56: =ROUND(W56*(1-25%),3) -> 1.153 | P56: 1.482 | Q56: 1.482 | R56: =ROUND(Z56*(1-25%),3) -> 1.219 | S56: 1.537 | T56: 1.975 | U56: 1.975 | V56: 1.625 | W56: =ROUND(AUTO!G58,3) -> 1.537 | X56: =ROUND(AUTO!H58,3) -> 1.975 | Y56: =ROUND(AUTO!I58,3) -> 1.975 | Z56: =ROUND(AUTO!J58,3) -> 1.625 | AA56: 1.537 | AB56: 1.975 | AC56: 1.975 | AD56: 1.625 | AE56: 1.537 | AF56: 1.975 | AG56: 1.975 | AH56: 1.625 | AI56: 1.537 | AJ56: 1.975 | AK56: 1.975 | AL56: 1.625 | AM56: 1.537 | AN56: 1.975 | AO56: 1.975 | AP56: 1.625
A57: Wyoming | B57: 2018-02-01 | C57: 1.281 | D57: 1.882 | E57: 1.882 | F57: 1.493 | G57: 1.281 | H57: 1.882 | I57: 1.882 | J57: 1.493 | K57: =ROUND(W57,3) -> 1.281 | L57: =ROUND(X57,3) -> 1.882 | M57: =ROUND(Y57,3) -> 1.882 | N57: =ROUND(Z57,3) -> 1.493 | O57: 1.281 | P57: 1.882 | Q57: 1.882 | R57: 1.493 | S57: 1.281 | T57: 1.882 | U57: 1.882 | V57: 1.493 | W57: =ROUND(AUTO!G59,3) -> 1.281 | X57: =ROUND(AUTO!H59,3) -> 1.882 | Y57: =ROUND(AUTO!I59,3) -> 1.882 | Z57: =ROUND(AUTO!J59,3) -> 1.493 | AA57: 1.281 | AB57: 1.882 | AC57: 1.882 | AD57: 1.493 | AE57: 1.281 | AF57: 1.882 | AG57: 1.882 | AH57: 1.493 | AI57: 1.281 | AJ57: 1.882 | AK57: 1.882 | AL57: 1.493
B60: Company is not licensed or, we have not filed for this company in the respective state.
A61: * | B61: A maximum of 30% rate change allowed to all renewals as per state DOI norms.

Sheet AUTO
A1: COMMERCIAL AUTO LOSS COST FILING STATUS | T1: As of: | U1: =Cutoff_Date -> 2018-09-14
A3: CURRENT: | K3: PENDING:
F4: Total
D5: Loss | F5: Basic | G5: LOSS COST | K5: Actuarial | L5: Status | M5: Proposed/ | O5: Loss | Q5: Total | R5: LOSS COST
B6: Effective | C6: Circular #'s | D6: Cost | E6: Expense | F6: Limits | G6: MULTIPLIER | K6: Support | M6: Effective | N6: Circular #'s | O6: Cost | P6: Expense | Q6: B/L / T/L | R6: MULTIPLIER
A7: State | B7: Date | C7: (Edition Date) | D7: Change | E7: Change | F7: Change | G7: LIAB | H7: PHYS D | I7: Auto Dealers PHYS D | J7: Auto Dealers LIAB | K7: Prepared | M7: Date | N7: (Edition Date) | O7: Change | P7: Change | Q7: Change | R7: LIAB | S7: PHYS D | T7: Auto Dealers PHYS D | U7: Auto Dealers LIAB
A9: Alabama | B9: 2018-07-09 | C9: 2017-208 (2/18) | D9: 0.09566874829 | E9: 0.117311239 | F9: 0.2245858129 | G9: 2.551 | H9: 1.762 | I9: 1.762 | J9: 1.585 | L9: Not Yet Filed | N9: 2018-172 (2/19) | O9: 0.09
A10: Alaska | B10: 2017-12-11 | C10: 2017-076 (7/17) | D10: 0.036 | E10: -0.01701402028 | F10: 0.03 | G10: 1.468 | H10: 1.809 | I10: 1.809 | J10: 1.553 | L10: Delay Implementation | M10: 2019-01-01 | N10: 2018-065 (7/18) | O10: 0.008030459069 | P10: 0.2457321099 | Q10: 0.2500483609 | R10: 1.92 | S10: 1.611 | T10: 1.611 | U10: 1.92
A11: Arizona | B11: 2017-10-09 | C11: 2017-119 (10/17) | D11: 0.07 | E11: 0.1384606838 | F11: 0.218 | G11: 1.718 | H11: 1.761 | I11: 1.761 | J11: 1.508 | L11: Not Yet Filed | N11: 2018-084 (10/18) | O11: 0.102
A12: Arkansas | B12: 8/7/2017 | C12: 2017-037 (7/17) | D12: 0.066 | E12: 0.02693555826 | F12: 0.1 | G12: 1.639 | H12: 2.195 | I12: 2.195 | J12: 1.87 | L12: Exempt | M12: 2018-10-29 | N12: 2018-005 (7/18) | O12: 0.094 | P12: 0.09303694073 | Q12: 0.1963216794 | R12: 1.811 | S12: 2.307 | T12: 2.307 | U12: 1.811
A13: California* | B13: 2017-12-11 | C13: 2014-228 (2/15) | D13: 0.097 | E13: 0 | F13: 0.095 | G13: 2.155 | H13: 2.021 | I13: 2.021 | J13: 2.155 | L13: Not Yet Filed Not Yet Filed | N13: 2018-109 (8/18) 2017-010 (6/17) | O13: 26.1% 6.2%
A14: Colorado | B14: 2016-01-01 | C14: 2015-115 (1/16) | D14: 0.069 | E14: 0 | F14: 0.069 | G14: 1.791 | H14: 1.813 | I14: 1.813 | J14: 1.563 | L14: Pending Not Yet Filed | M14: 2018-02-01 | N14: 2017-247 (1/18) 2018-186 (1/19) | O14: 8.5% 3.0% | P14: 0.08470702986 | Q14: 0.176 | R14: 1.877 | S14: 2.154 | T14: 1.563 | U14: =J14 -> 1.563
A15: Connecticut | B15: 2018-02-05 | C15: 2017-233 (2/18) | D15: 0.111 | E15: 0.0878665515 | F15: 0.206 | G15: 1.827 | H15: 2.119 | I15: 2.119 | J15: 1.714 | L15: Not Yet Filed | N15: 2018-200 (2/19) | O15: 0.014
A16: Delaware* | B16: 2018-09-03 | C16: 2017-354 (7/18) | D16: 0.151 | E16: -0.044 | F16: 0.1 | G16: 2.092 | H16: 1.994 | I16: 1.994 | J16: 1.869
A17: DC | B17: 2018-02-26 | C17: N/A | D17: 0 | E17: 0.02820560857 | F17: 0.03 | G17: 1.582 | H17: 1.859 | I17: 1.859 | J17: 1.512 | L17: Not Yet Filed | N17: 2018-149 (10/18) | O17: 0.039
A18: Florida* | B18: 2018-08-01 | C18: 2017-309 (8/18) | D18: 0.236792 | E18: 0.03227242292 | F18: 0.2767138582 | G18: 1.828 | H18: 1.838 | I18: 1.838 | J18: 2.024
A19: Georgia | B19: 2018-05-01 | C19: 2017-316 (5/18) | D19: 0.1851284317 | E19: 0.02452954277 | F19: 0.2126606675 | G19: 1.856 | H19: 2.104 | I19: 2.104 | J19: 1.536
A20: Hawaii* | B20: 2016-10-01 | C20: 2015-01 | D20: -0.139 | E20: 0 | F20: -0.139 | G20: 1.546 | H20: 1.565 | I20: 1.565 | J20: 1.543
A21: Idaho | B21: 8/7/2017 | C21: 2017-035 (7/17) | D21: 0.028 | E21: 0.004331487936 | F21: 0.056 | G21: 1.495 | H21: 1.988 | I21: 1.988 | J21: 1.614 | L21: Delay Implementation | M21: 2019-01-01 | N21: 2018-027 (7/18) | O21: 0.064 | P21: 0.1679351702 | Q21: 0.2452518933 | R21: 1.849 | S21: 1.946 | T21: 1.946 | U21: 1.849
A22: Illinois* | B22: 2017-10-23 | C22: 2017-125(10/17) | D22: 0.064 | E22: -0.02492113384 | F22: 0.03750554478 | G22: 1.614 | H22: 1.749 | I22: 1.749 | J22: 1.691 | L22: Exempt | M22: 2018-10-29 | N22: 2018-081 (10/18) | O22: 0.1404352365 | P22: 0.01752945399 | Q22: 0.16 | R22: 1.644 | S22: 1.749 | T22: 1.749 | U22: 1.644
A23: Indiana | B23: 2018-04-01 | C23: 2017-292 (4/18) | D23: 0.07803 | E23: 0.1508362757 | F23: 0.2403453123 | G23: 2.091 | H23: 2.185 | I23: 2.185 | J23: 1.656
A24: Iowa | B24: 9/1/2017 | C24: 2017-070 (8/17) | D24: 0.032 | E24: -0.005057707038 | F24: 0.035 | G24: 1.463 | H24: 1.967 | I24: 1.967 | J24: 1.62 | L24: Delay Implementation | N24: 2018-031 (8/18) | O24: 0.041
A25: Kansas | B25: 2018-06-01 | C25: 2017-322 (6/18) | D25: 0.03487221461 | E25: 0.1150187222 | F25: 0.15 | G25: 1.599 | H25: 2.029 | I25: 2.029 | J25: 1.751
A26: Kentucky | B26: 9/1/2017 | C26: 2017-086 (9/17) | D26: 0.064 | E26: -0.00810587955 | F26: 0.061 | G26: 1.763 | H26: 2.142 | I26: 2.142 | J26: 1.595 | L26: Approved | M26: 2018-10-08 | N26: 2018-062 (9/18) | O26: 0.087 | P26: 0.1022221626 | Q26: 0.1997457761 | R26: 1.997 | S26: 2.055 | T26: 2.055 | U26: 1.997
A27: Louisiana* | B27: 2018-02-01 | C27: 2017-146 (11/17) | D27: 0.051 | E27: 0.1386505941 | F27: 0.197 | G27: 1.911 | H27: 2.163 | I27: 2.163 | J27: 1.769
A28: Maine | B28: 2018-02-01 | C28: 2017-264 (2/18) | D28: 0.031 | E28: 0.1735957756 | F28: 0.21 | G28: 1.841 | H28: 1.884 | I28: 1.884 | J28: 1.497 | L28: Not Yet Filed | N28: 2018-208 (2/19) | O28: 0.028
A29: Maryland | B29: 2018-02-01 | C29: 2017-240 (2/18) | D29: 0.094 | E29: 0.056 | F29: 0.154 | G29: 1.895 | H29: 2.176 | I29: 2.176 | J29: 1.545 | L29: Not Yet Filed | N29: 2018-193 (2/19) | O29: 0.047
A30: Massachusetts*#
A31: Michigan | B31: 7/1/2017 | C31: 2017-049 (7/17) | D31: 0.101 | E31: -0.02186686224 | F31: 0.12 | G31: 1.465 | H31: 1.848 | I31: 1.848 | J31: 1.695 | L31: Exempt | M31: 2018-10-29 | N31: 2018-013 (7/18) | O31: 0.06650473153 | P31: 0.12939574 | Q31: 0.2098249168 | R31: 1.74 | S31: 1.893 | T31: 1.893 | U31: 1.74
A32: Minnesota | B32: 2017-10-09 | C32: 2017-153 (10/17) | D32: 0.037 | E32: 0.01563967964 | F32: 0.05 | G32: 1.544 | H32: 2.006 | I32: 2.006 | J32: 1.599 | L32: Exempt | M32: 2018-10-29 | N32: 2018-089 (10/18) | O32: 0.06290355138 | P32: 0.1655896036 | Q32: 0.2414923926 | R32: 1.948 | S32: 1.854 | T32: 1.854 | U32: 1.948
A33: Mississippi | B33: 2018-02-01 | C33: 2017-099 (8/17) | D33: 0.092 | E33: 0.03357361234 | F33: 0.15 | G33: 2.153 | H33: 1.971 | I33: 1.971 | J33: 1.57 | L33: Delay Implementation | M33: 2019-01-01 | N33: 2018-069 (8/18) | O33: 0.1184807182 | P33: 0.0964434862 | Q33: 0.2269551446 | R33: 1.792 | S33: 1.459 | T33: 1.459 | U33: 1.792
A34: Missouri | B34: 2018-02-01 | C34: 2017-139 (10/17) | D34: 0.062 | E34: 0.07226104829 | F34: 0.139 | G34: 1.763 | H34: 1.952 | I34: 1.952 | J34: 1.639 | L34: Not Yet Filed | N34: 2018-116 (10/18) | O34: 0.126
A35: Montana | B35: 2017-10-09 | C35: 2017-018 (7/17) | D35: 0.01 | E35: -0.004294101744 | F35: 0.013 | G35: 1.365 | H35: 1.955 | I35: 1.955 | J35: 1.572 | L35: Delay Implementation | M35: 2019-01-01 | N35: 2018-040 (7/18) | O35: 0.03117950323 | P35: 0.3087944517 | Q35: 0.3506351566 | R35: 1.869 | S35: 2.085 | T35: 2.085 | U35: 1.869
A36: Nebraska | B36: 2018-03-01 | C36: 2017-245 (3/18) | D36: 0.103 | E36: 0.05294507782 | F36: 0.163 | G36: 1.879 | H36: 1.973 | I36: 1.973 | J36: 1.474 | L36: Not Yet Filed | N36: 2018-221 (3/19) | O36: 0.04
A37: Nevada | B37: 2017-10-01 | C37: 2017-151 (10/17) | D37: 0.146 | E37: -0.003566885124 | F37: 0.14 | G37: 1.764 | H37: 2.143 | I37: 2.143 | J37: 1.899 | L37: Not Yet Filed | N37: 2018-086 (10/18) | O37: 0.092
A38: New Hampshire | B38: 2017-10-09 | C38: 2017-127 (10/17) | D38: 0.07 | E38: 0.0622580752 | F38: 0.131 | G38: 1.487 | H38: 1.903 | I38: 1.903 | J38: 1.491 | L38: Not Yet Filed | N38: 2018-121 (10/18) | O38: 0.071
A39: New Jersey | B39: 2018-01-01 | C39: 2017-199 (1/18) | D39: 0.066 | E39: 0.1156772053 | F39: 0.189 | G39: 1.954 | H39: 2.04 | I39: 2.04 | J39: 1.9 | L39: Not Yet Filed | N39: 2018-174 (1/19) | O39: 0.023
A40: New Mexico | B40: 2017-10-01 | C40: 2017-131 (10/17) | D40: 0.052 | E40: 0.003933669294 | F40: 0.08 | G40: 1.426 | H40: 1.841 | I40: 1.841 | J40: 1.536 | L40: Exempt | M40: 2018-10-08 | N40: 2018-107 (10/18) | O40: 0.04258920449 | P40: 0.1320315894 | Q40: 0.18 | R40: 1.665 | S40: 1.877 | T40: 1.877 | U40: 1.665
A41: New York* | B41: 2017-09-01 | C41: 2016-332 (7/17) | D41: -0.057 | E41: 0.124 | F41: 0.06 | G41: 2.236 | H41: 1.504 | I41: 1.504 | J41: 1.73 | L41: Not Yet Filed Not Yet Filed | N41: 2018-067 (7/18) 2018-202(7/19) | O41: 10.5% 10.1%
A42: North Carolina | B42: 2018-02-26 | C42: 2017-268 (12/17) | D42: 0.009 | E42: 0.1016533254 | F42: 0.11 | G42: 1.563 | H42: 1.941 | I42: 1.941 | J42: 1.511 | L42: Not Yet Filed | N42: 2018-151 (12/18) | O42: 0.127
A43: North Dakota | B43: 7/1/2017 | C43: 2017-008 (7/17) | D43: -0.03 | E43: 0.0257300715 | F43: 0 | G43: 1.152 | H43: 2.042 | I43: 2.042 | J43: 1.538
A44: Ohio | B44: 2018-03-01 | C44: 2017-288 (3/18) | D44: 0.1046332778 | E44: 0.04805781135 | F44: 0.154 | G44: 1.784 | H44: 2.179 | I44: 2.179 | J44: 1.738
A45: Oklahoma | B45: 2017-10-23 | C45: 2017-089 (8/17) | D45: 0.011 | E45: 0.08026402599 | F45: 0.09 | G45: 1.543 | H45: 1.917 | I45: 1.917 | J45: 1.63 | L45: Approved | M45: 2018-10-29 | N45: 2018-073 (8/18) | O45: 0.04097480117 | P45: 0.2016906376 | Q45: 0.2522780966 | R45: 1.94 | S45: 1.978 | T45: 1.978 | U45: 1.94
A46: Oregon | B46: 2018-02-01 | C46: 2017-215 (1/18) | D46: 0.153 | E46: 0.03811397169 | F46: 0.195 | G46: 1.642 | H46: 1.722 | I46: 1.722 | J46: 1.628 | L46: Not Yet Filed | N46: 2018-197 (1/19) | O46: 0.056
A47: Pennsylvania | B47: 2018-07-01 | C47: 2017-324 (7/18) | D47: 0.00773989379 | E47: 0.1554259029 | F47: 0.1633335801 | G47: 1.776 | H47: 2.029 | I47: 2.029 | J47: 2.423
A48: Rhode Island | B48: 2018-07-09 | C48: 2017-280 (3/18) | D48: 0.055 | E48: 0.07276902675 | F48: 0.131 | G48: 1.559 | H48: 1.819 | I48: 1.819 | J48: 1.495
A49: South Carolina | B49: 2018-07-01 | C49: 2017-350 (7/18) | D49: 0.242 | E49: -0.03035588855 | F49: 0.2 | G49: 1.54 | H49: 1.86 | I49: 1.86 | J49: 1.634
A50: South Dakota | B50: 7/1/2017 | C50: 2017-020 (7/17) | D50: 0.048 | E50: -0.01022982043 | F50: 0.047 | G50: 1.441 | H50: 1.919 | I50: 1.919 | J50: 1.558 | L50: Approved | M50: 2018-10-08 | N50: 2018-024 (7/18) | O50: 0.05651261447 | P50: 0.1411889287 | Q50: 0.2001408802 | R50: 1.88 | S50: 1.743 | T50: 1.743 | U50: 1.88
A51: Tennessee | B51: 2018-02-01 | C51: 2017-219 (2/18) | D51: 0.139 | E51: 0.02214251923 | F51: 0.163 | G51: 1.657 | H51: 1.937 | I51: 1.937 | J51: 1.575 | L51: Not Yet Filed | N51: 2018-179 (2/19) | O51: 0.013
A52: Texas* | B52: 2017-05-01 | C52: 2016-053 (6/17) | D52: 0.086 | E52: 0.012 | F52: 0.099 | G52: 1.546 | H52: 1.789 | I52: 1.789 | J52: 2.091 | L52: Not Yet Filed Pending | M52: 2018-02-26 | N52: 2018-044 (6/18) '2017-030 (6/17) | O52: 8.5% 1.1% | P52: 0.1897930693 | Q52: 0.2 | R52: 1.83 | S52: 2.18 | T52: 2.18 | U52: 1.83
A53: Utah | B53: 2018-01-01 | C53: 2017-217 (1/18) | D53: 0.092 | E53: 0.05516879614 | F53: 0.15 | G53: 1.555 | H53: 1.837 | I53: 1.837 | J53: 1.55 | L53: Not Yet Filed | N53: 2018-217 (1/19) | O53: 0.121
A54: Vermont | B54: 2018-01-01 | C54: 2017-214 (1/18) | D54: 0.039 | E54: 0.06819503666 | F54: 0.107 | G54: 1.512 | H54: 1.918 | I54: 1.918 | J54: 1.52 | L54: Not Yet Filed | N54: 2018-211 (1/19) | O54: 0.013
A55: Virginia | B55: 2016-10-01 | C55: 2016-187 (10/16) | D55: 0.031 | E55: 0 | F55: 0.031 | G55: 1.706 | H55: 1.724 | I55: 1.724 | J55: 1.863 | L55: Pending Not Yet Filed | M55: 2018-03-01 | N55: 2017-100 (10/17) 2018-154 (10/18) | O55: 2.1% 14.7% | P55: 0.1867690515 | Q55: 0.2118124174 | R55: 2.014 | S55: 2.086
A56: Washington+ | B56: 2018-04-23 | C56: 2017-194 (10/17) | D56: 0.088 | E56: 0.01189504223 | F56: 0.1 | G56: 1.57 | H56: 2.017 | I56: 2.017 | J56: 1.437 | L56: Not Yet Filed | N56: 2018-141 (10/18) | O56: 0.105
A57: West Virginia | B57: 2018-01-01 | C57: 2017-249 (1/18) | D57: 0.026 | E57: 0.1153579888 | F57: 0.142 | G57: 1.662 | H57: 1.983 | I57: 1.983 | J57: 1.563 | L57: Not Yet Filed | N57: 2018-215 (1/19) | O57: 0.033
A58: Wisconsin | B58: 2017-10-09 | C58: 2017-117 (10/17) | D58: 0.056 | E58: 0.01972884596 | F58: 0.075 | G58: 1.537 | H58: 1.975 | I58: 1.975 | J58: 1.625 | L58: Not Yet Filed | N58: 2018-105 (10/18) | O58: 0.067
A59: Wyoming | B59: 2018-02-01 | C59: N/A | D59: 0 | E59: 0.001442 | F59: 0 | G59: 1.281 | H59: 1.882 | I59: 1.882 | J59: 1.493 | L59: Exempt | M59: 2018-10-29 | N59: 2018-037 (7/18) | O59: 0.01891141765 | P59: 0.1797423425 | Q59: 0.1971362337 | R59: 1.773 | S59: 1.777 | T59: 1.777 | U59: 1.773
A62: * LCM cannot be placed on file for future revisions. | E62: + NHG - Current LCM = | G62: 1.443 | L62: # NHG at Mass. AIB Rates. Garage LCM displayed if not equal to LIABILITY.
A63: 10/23/18* : Effective Date Might Change

Sheet AUTO-DEVS
J1: As of: | K1: =Cutoff_Date -> 2018-09-14
A2: * * * * * * * * * * * COMMERCIAL AUTO LOSS COST MODIFICATIONS * * * * * * * * * * *
B4: Loss Cost Modification* | F4: NEW HAMPSHIRE COMPANIES | J4: NEW YORK COMPANIES +
A5: State | B5: Liab. | C5: Auto Dealers Liab | D5: Phys D. | E5: Auto Dealers Phys D. | F5: Sub-Standard | G5: Standard | H5: Preferred | I5: Super-Preferred | J5: Standard | K5: Preferred
A7: ALABAMA | B7: 0.5642671945 | C7: 0 | D7: 0.08048053682 | E7: 0.08048053682 | F7: INIC | G7: GSIC | H7: NHIC -15% | J7: AIG PCC / AHAC / C&I / NUFIC / ISOP (aa) | K7: AIU -40%
A8: ALASKA | B8: -0.057 | C8: -0.057 | D8: 0.162 | E8: 0.162 | F8: INIC +15% | G8: GSIC | H8: NHIC -15% | I8: AIG AC -25% | J8: AIG PCC / AHAC / AIU / C&I / NUFIC / ISOP
A9: ARIZONA | B9: 0.082 | C9: 0 | D9: 0.109 | E9: 0.109 | F9: INIC +15% | G9: GSIC | H9: NHIC -15% | I9: AIG AC -25% | J9: AIG PCC / AHAC / C&I / NUFIC / ISOP | K9: AIIU -15%
A10: ARKANSAS | B10: 0.167 | C10: 0.2 | D10: 0.481 | E10: 0.481 | G10: GSIC | H10: NHIC -15% | I10: AIG AC -25% | J10: AIG PCC / AHAC / C&I / NUFIC / ISOP | K10: AIIU -30%
A11: CALIFORNIA | B11: 0.35 | C11: 0.35 | D11: 0.1 | E11: 0.1 | G11: NHIC | H11: GSIC -20% | J11: AIG PCC / AHAC / C&I / NUFIC / ISOP | K11: AIIU -10%
A12: COLORADO | B12: 0.181 | C12: 0 | D12: 0.355 | E12: 0.355 | G12: GSIC / INIC | H12: NHIC -15% (varies by class) | I12: AIG AC -25% (varies by class ) | J12: AIG PCC / AHAC / AIU / C&I / NUFIC / ISOP
A13: CONNECTICUT | B13: 0.154 | C13: 0.1 | D13: 0.3384 | E13: 0.3384 | G13: GSIC / INIC | H13: NHIC -15% | I13: AIG AC -25% | J13: AIG PCC / AHAC / C&I / NUFIC / ISOP | K13: AIU -15%
A14: DELAWARE | B14: 0.29 | C14: 0.25 | D14: 0.25 | E14: 0.25 | F14: INIC +15% | G14: GSIC | H14: NHIC -10% | I14: AIG AC -15% | J14: AIG PCC / AHAC / AIU / C&I / NUFIC / ISOP
A15: DIST. OF COLUMBIA | B15: 0 | C15: 0 | D15: 0.175 | E15: 0.175 | G15: GSIC / INIC / AIG AC | H15: NHIC -15% | J15: AIG PCC / AHAC / AIU / C&I / NUFIC / ISOP
A16: FLORIDA | B16: 0.155 | C16: 0.32 | D16: 0.161 | E16: 0.161 | F16: INIC +15% | G16: GSIC | H16: NHIC -10% | I16: AIG AC -15% | J16: AIG PCC / AHAC / C&I / NUFIC / ISOP | K16: AIU -24%L, -20%PD
A17: GEORGIA | B17: 0.163 | C17: 0 | D17: 0.318 | E17: 0.318 | F17: INIC +15% | G17: GSIC | H17: NHIC -15% | I17: AIG AC -25% | J17: AIG PCC / AHAC / AIU / C&I / NUFIC / ISOP
A18: HAWAII | B18: 0 | C18: 0 | D18: 0 | E18: 0 | G18: NHIC / INIC | J18: AHAC / NUFIC / ISOP
A19: IDAHO | B19: -0.022 | C19: 0.08 | D19: 0.3 | E19: 0.3 | G19: GSIC / INIC | H19: NHIC -15% | I19: AIG AC -25% | J19: AIG PCC / AHAC / AIU / C&I / NUFIC / ISOP
A20: ILLINOIS | B20: 0.085 | C20: 0.085 | D20: 0.154 | E20: 0.154 | G20: GSIC / INIC | H20: NHIC -15% | I20: AIG AC -25% | J20: AIG PCC / AHAC / AIU / C&I / NUFIC / ISOP
A21: INDIANA | B21: 0.3304 | C21: 0.08 | D21: 0.3902 | E21: 0.3902 | F21: INIC +15% | G21: GSIC | H21: NHIC -15% | I21: AIG AC -25% | J21: AIG PCC / AHAC / C&I / NUFIC / ISOP | K21: AIU -20%
A22: IOWA | B22: -0.036 | C22: 0.1 | D22: 0.296 | E22: 0.296 | G22: GSIC / INIC | H22: NHIC -15% | I22: AIG AC -25% | J22: AIG PCC / AHAC / C&I / NUFIC / ISOP | K22: AIU -20%
A23: KANSAS | B23: 0.006 | C23: 0.12 | D23: 0.276 | E23: 0.276 | G23: GSIC / INIC | H23: NHIC -15% | I23: AIG AC -25% | J23: AIG PCC / AHAC / C&I / NUFIC / ISOP | K23: AIU -25%
A24: KENTUCKY | B24: 0.288 | C24: 0.288 | D24: 0.326 | E24: 0.326 | F24: INIC +15% | G24: GSIC | H24: NHIC -15% | I24: AIG AC -25% | J24: AIG PCC / AHAC / C&I / NUFIC / ISOP | K24: AIU -20%
A25: LOUISIANA | B25: 0.186 | C25: 0.125 | D25: 0.343 | E25: 0.343 | G25: NHIC / GSIC / INIC / AIG AC | J25: AIG PCC / AHAC / C&I / NUFIC / ISOP | K25: AIU -15%
A26: MAINE | B26: 0.18 | C26: 0 | D26: 0.2075 | E26: 0.2075 | G26: GSIC / INIC | H26: NHIC -15% | J26: AIG PCC / AHAC / C&I / NUFIC / ISOP | K26: AIU -15%
A27: MARYLAND | B27: 0.215 | C27: 0 | D27: 0.395 | E27: 0.395 | F27: INIC +15% | G27: GSIC | H27: NHIC -15% | I27: AIG AC -25% | J27: AIG PCC / AHAC / C&I / NUFIC / ISOP | K27: AIU -10%
A28: MASSACHUSETTS | G28: NHIC / GSIC / INIC | J28: AIG PCC / AHAC / AIU / C&I / NUFIC / ISOP
A29: MICHIGAN | B29: 0.135 | C29: 0.135 | D29: 0.235 | E29: 0.235 | G29: GSIC / INIC | H29: NHIC -15% | I29: AIG AC -25% | J29: AIG PCC / AHAC / AIU / C&I / NUFIC / ISOP
A30: MINNESOTA | B30: 0.257 | C30: 0.257 | D30: 0.196 | E30: 0.196 | F30: INIC +15% | G30: GSIC | H30: NHIC -15% | J30: AIG PCC / AHAC / C&I / NUFIC / ISOP | K30: AIU -20%
A31: MISSISSIPPI | B31: 0.333 | C31: 0 | D31: 0.22 | E31: 0.22 | G31: GSIC | H31: NHIC & Aud Ind. -15% | I31: AIG AC -25% | J31: AIG PCC / AHAC / AIU / C&I / NUFIC / ISOP
A32: MISSOURI | B32: 0.1089462861 | C32: 0.06 | D32: 0.2276713162 | E32: 0.2276713162 | F32: INIC +15% | G32: GSIC | H32: NHIC -15% | I32: AIG AC -25% | J32: AIG PCC / AHAC / AIU / C&I / NUFIC / ISOP
A33: MONTANA | B33: -0.124 | C33: 0 | D33: 0.254 | E33: 0.254 | G33: GSIC / INIC | H33: NHIC -15% | I33: AIG AC -25% | J33: AIG PCC / AHAC / C&I / NUFIC / ISOP | K33: AIU -15%
A34: NEBRASKA | B34: 0.223264 | C34: 0 | D34: 0.284732 | E34: 0.284732 | G34: NHIC / GSIC / AIG AC / INIC | J34: AIG PCC / AHAC / AIU / C&I / NUFIC / ISOP
A35: NEVADA | B35: 0.084 | C35: 0.2 | D35: 0.3165 | E35: 0.3165 | G35: GSIC / INIC | H35: NHIC -15% | I35: AIG AC -25% | J35: AIG PCC / AHAC / AIU / C&I / NUFIC / ISOP
A36: NEW HAMPSHIRE | B36: -0.053 | C36: 0 | D36: 0.211 | E36: 0.211 | F36: INIC +15% | G36: GSIC | H36: NHIC -15% | I36: AIG AC -25% | J36: AIG PCC / AHAC / AIU / C&I / NUFIC / ISOP
A37: NEW JERSEY | B37: 0.24696 | C37: 0.1 | D37: 0.302169 | E37: 0.302169 | G37: NHIC / GSIC / INIC | J37: AIG PCC / AHAC / AIU / C&I / NUFIC / ISOP
A38: NEW MEXICO | B38: 0.057 | C38: 0.057 | D38: 0.192 | E38: 0.192 | G38: GSIC / INIC | H38: NHIC -15% (varies by class) | I38: AIG AC -25% (varies by class ) | J38: AIG PCC / AHAC / C&I / NUFIC / ISOP | K38: AIU -20%
A39: NEW YORK | B39: 0.41 | C39: 0 | D39: -0.057 | E39: -0.057 | G39: NHIC | H39: GSIC -15% | I39: INIC -20% | J39: AIG PCC / AHAC / AIU / C&I / NUFIC / ISOP
A40: NORTH CAROLINA | B40: -0.015 | C40: 0 | D40: 0.223 | E40: 0.223 | G40: GSIC / AIG AC | H40: NHIC -15% | J40: AIG PCC / AHAC / AIU / C&I / NUFIC / ISOP
A41: NORTH DAKOTA | B41: -0.25 | C41: 0 | D41: 0.33 | E41: 0.33 | F41: INIC +15% | G41: GSIC | H41: NHIC -15% | I41: AIG AC -25% | J41: AIG PCC / AHAC / AIU / C&I / NUFIC / ISOP
A42: OHIO | B42: 0.133 | C42: 0.1 | D42: 0.384 | E42: 0.384 | G42: GSIC / INIC | H42: NHIC -15% | I42: AIG AC -25% | J42: AIG PCC / AHAC / C&I / NUFIC / ISOP | K42: AIU -15% | S42: Will need to refile the NY state EXCEPTION page
A43: OKLAHOMA | B43: 0.252 | C43: 0.252 | D43: 0.276 | E43: 0.276 | G43: NHIC / GSIC / INIC / AIG AC | J43: AIG PCC / AHAC / AIU / C&I / NUFIC / ISOP
A44: OREGON | B44: 0.065 | C44: 0.05 | D44: 0.117 | E44: 0.117 | F44: INIC +15% | G44: GSIC | H44: NHIC -15% | I44: AIG AC -25% | J44: AIG PCC / AHAC / C&I / NUFIC / ISOP | K44: AIU -35%
A45: PENNSYLVANIA | B45: 0.1171 | C45: 0.55 | D45: 0.2762 | E45: 0.2762 | F45: INIC +15% | G45: GSIC | H45: NHIC -10% | I45: AIG AC -15% | J45: AIG PCC / AHAC / C&I / NUFIC / ISOP | K45: AIU -10%
A46: RHODE ISLAND | B46: -0.004 | C46: 0 | D46: 0.162 | E46: 0.162 | G46: NHIC / GSIC / AIG AC / INIC | J46: AIG PCC / AHAC / AIU / C&I / NUFIC / ISOP
A47: SOUTH CAROLINA | B47: -0.02 | C47: 0.1 | D47: 0.184 | E47: 0.184 | G47: GSIC / INIC | H47: NHIC -15% | I47: AIG AC -25% | J47: AIG PCC / AHAC / AIU / C&I / NUFIC / ISOP
A48: SOUTH DAKOTA | B48: 0.22 | C48: 0.22 | D48: 0.131 | E48: 0.131 | F48: INIC +15% | G48: GSIC | H48: NHIC -15% | I48: AIG AC -25% | J48: AIG PCC / AHAC / C&I / NUFIC / ISOP | K48: AIU -25%
A49: TENNESSEE | B49: 0.053 | C49: 0.053 | D49: 0.232 | E49: 0.232 | F49: INIC +15% | G49: GSIC | H49: NHIC -15% | I49: AIG AC -25% | J49: AIG PCC / AHAC / C&I / NUFIC / ISOP | K49: AIU -20%
A50: TEXAS | B50: 0 | C50: 0.265 | D50: 0.125 | E50: 0.125 | F50: INIC +13% ** | G50: GSIC | H50: NHIC -13.1% | I50: AIG AC -21.8% | J50: AIG PCC / AHAC / AIU / C&I / NUFIC / ISOP
A51: UTAH | B51: -0.026 | C51: 0 | D51: 0.151 | E51: 0.151 | F51: INIC +15% | G51: GSIC | H51: NHIC -15% | I51: AIG AC -25% | J51: AIG PCC / AHAC / AIU / C&I / NUFIC / ISOP
A52: VERMONT | B52: -0.049 | C52: 0 | D52: 0.206 | E52: 0.206 | G52: GSIC / INIC | H52: NHIC -15% | J52: AIG PCC / AHAC / C&I / NUFIC / ISOP | K52: AIU -15%
A53: VIRGINIA | B53: 0.262 | C53: 0.2 | D53: 0.307 | E53: 0.307 | G53: GSIC | H53: NHIC -15% | I53: AIG AC -25% | J53: AIG PCC / AHAC / C&I / NUFIC / ISOP | K53: AIU -15% L, -10% PD
A54: WASHINGTON | B54: 0.05020815063 | C54: 0 | D54: 0.1681492669 | E54: 0.1681492669 | G54: GSIC / AIG AC / INIC | H54: NHIC -15% | J54: AIG PCC / AHAC / AIU / C&I / NUFIC / ISOP
A55: WEST VIRGINIA | B55: 0.012 | C55: 0 | D55: 0.2076 | E55: 0.2076 | F55: INIC +15% | G55: GSIC | H55: NHIC -10% | I55: AIG AC -25% | J55: AIG PCC / AHAC / AIU / C&I / NUFIC / ISOP
A56: WISCONSIN | B56: -0.015 | C56: 0.1 | D56: 0.266 | E56: 0.266 | F56: INIC +15% | G56: GSIC | H56: NHIC -15% | I56: AIG AC -25% | J56: AIG PCC / AHAC / AIU / C&I / NUFIC / ISOP
A57: WYOMING | B57: 0.166 | C57: 0.166 | D57: 0.168 | E57: 0.168 | G57: NHIC / GSIC / AIG AC / INIC | J57: AIG PCC / AHAC / C&I / NUFIC / ISOP
A59: * LC Deviation applies to all companies. | J59: + AIP, AIU, AUD, LC filings not maintained after 4/2009
A60: ** INIC, combined Tier & LC Deviation amount is limited to +30% by regulation.
A62: (aa) ISOP in AL: Liab=1.664, Phys=1.674.

Sheet FIRE
A1: COMMERCIAL FIRE LOSS COST FILING STATUS | G1: POOLED COMPANIES | P1: As of: | Q1: =Cutoff_Date -> 2018-09-14
A3: CURRENT: | H3: PENDING:
D5: Loss | H5: Actuarial | K5: Pending/ | L5: Proposed/ | N5: Loss
B6: Effective | C6: Circular #'s | D6: Cost | E6: Expense | F6: Overall | G6: Loss Cost | H6: Support | K6: Approved/ | L6: Effective | M6: Circular #'s | N6: Cost | O6: Expense | P6: Overall | Q6: Loss Cost
A7: State | B7: Date | C7: (Edition Date) | D7: Change | E7: Change | F7: Change | G7: Multiplier | H7: Prepared | K7: Automatic | L7: Date | M7: (Edition Date) | N7: Change | O7: Change | P7: Change | Q7: Multiplier
A9: Alabama | B9: 2017-02-01 | C9: 2016-057 (2/17) | D9: 0.039 | E9: 0 | F9: 0.039 | G9: 1.555
A10: Alaska | B10: 2018-06-01 | C10: 2018-001 (6/18) | D10: 0.011 | E10: 0 | F10: 0.011 | G10: 1.531
A11: Arizona | B11: 2017-12-11 | C11: 2017-061 (12/17) | D11: -0.022 | E11: 0 | F11: -0.022 | G11: 1.488 | K11: Exempt | L11: 2018-12-03 | M11: N/A | N11: 0 | O11: 0.1 | P11: 0.1 | Q11: 1.637
A12: Arkansas | B12: 2015-10-01 | C12: 2015-052 (10/15) | D12: -0.017 | E12: 0 | F12: -0.017 | G12: 1.513 | K12: Exempt | L12: 2018-12-03 | M12: N/A | N12: 0 | O12: 0.195 | P12: 0.195 | Q12: 1.808
A13: California* | B13: 2015-02-01 | C13: 2014-024 (7/14) | D13: -0.086 | E13: 0.1236323851 | F13: 0.027 | G13: 2.632
A14: Colorado | B14: 2017-07-01 | C14: 2017-004 (7/17) | D14: 0.02 | E14: 0 | F14: 0 | G14: 1.515 | K14: Pending | L14: 2018-10-01 | M14: N/A | N14: 0 | O14: 0.05989093533 | P14: 0.06 | Q14: 1.606
A15: Connecticut | B15: 2017-02-01 | C15: 2016-036 (2/17) | D15: 0.038 | E15: 0 | F15: 0.038 | G15: 1.476 | K15: Automatic | L15: 2019-01-01 | M15: 2018-058 (1/19) | N15: -0.037 | O15: 0 | P15: -0.037 | Q15: 1.476
A16: Delaware* | B16: 2015-09-01 | C16: 2015-050 (9/15) | D16: -0.04 | E16: 0 | F16: -0.04 | G16: 1.694
A17: DC | B17: 2016-12-01 | C17: 2016-044 (12/16) | D17: -0.006 | E17: 0 | F17: -0.006 | G17: 1.508 | K17: Not Yet Filed | M17: 2018-077 (11/18) | N17: 0.029
A18: Florida* | B18: 2004-04-01 | C18: 2003-151/200 (4/04) | D18: -0.152 | E18: 0.253 | F18: 0.063 | G18: 1.82 | K18: Not Yet Filed | M18: 2015-060 (9/15) | N18: 0.106
A19: Georgia | B19: 2015-09-01 | C19: 2015-029 (9/15) | D19: -0.013 | E19: 0 | F19: -0.013 | G19: 1.563 | K19: Not Yet Filed | M19: 2018-039 (10/18) | N19: -0.019
A20: Hawaii* | B20: 2014-09-01 | C20: 2013-12 HIB Pub 130022 | D20: -0.081 | E20: 0.092 | F20: 0.004 | G20: 1.747
A21: Idaho | B21: 2015-09-01 | C21: 2015-DP-03 (9/15) | D21: 0.037 | E21: 0 | F21: 0.037 | G21: 1.504
A22: Illinois* | B22: 2012-04-01 | C22: 2011-127 (4/12) | D22: -0.027 | E22: 0 | F22: -0.027 | G22: 1.504 | K22: Not Yet Filed Not Yet Filed Not Yet Filed Approved | L22: 2018-10-08 | M22: 2014-130 (5/15) 2016-005 (9/16) 2017-148 (5/18) N/A | N22: -2.3% 6.2% -4.3% 0.0% | O22: 0.1000334187 | P22: 0.1 | Q22: '1.504 1.654
A23: Indiana | B23: 2015-04-01 | C23: 2014-138 (4/15) | D23: 0.023 | E23: 0 | F23: 0.023 | G23: 1.515
A24: Iowa | B24: 2017-02-01 | C24: 2016-065 (2/17) | D24: 0.063 | E24: 0 | F24: 0.063 | G24: 1.49
A25: Kansas | B25: 2017-02-01 | C25: 2016-067 (2/17) | D25: 0.06 | E25: 0 | F25: 0.06 | G25: 1.565 | K25: Automatic | L25: 2019-01-01 | M25: 2018-091 (1/19) | N25: 0.084 | O25: 0 | P25: 0.084 | Q25: 1.565
A26: Kentucky | B26: 2017-04-01 | C26: 2016-083 (4/17) | D26: 0.034 | E26: 0 | F26: 0.034 | G26: 1.534
A27: Louisiana* | C27: LIRC
A28: Maine | B28: 2017-10-01 | C28: 2017-050 (10/17) | D28: -0.056 | E28: 0 | F28: -0.056 | G28: 1.548 | K28: Automatic | L28: 2018-10-01 | M28: 2018-064 (10/18) | N28: -0.063 | O28: 0 | P28: -0.063 | Q28: 1.548
A29: Maryland* | B29: 2017-09-01 | C29: 2017-020 (9/17) | D29: -0.017 | E29: 0 | F29: -0.017 | G29: 1.483 | K29: Approved | L29: 2018-10-08 | M29: N/A | N29: 0 | O29: 0.208 | P29: 0.208 | Q29: 1.792
A30: Massachusetts* | B30: 2016-10-01 | C30: 2015-064 (10/15) 2014-129 (1/15) | D30: -0.085 | E30: 0.051 | F30: -0.039 | G30: 1.541 | K30: Not Yet Filed | M30: 2016-051 (12/16) | N30: 0.038
A31: Michigan | B31: 2017-03-01 | C31: 2016-063 (3/17) | D31: 0.054 | E31: 0 | F31: 0.054 | G31: 1.499 | K31: Automatic | L31: 2019-01-01 | M31: 2018-065 (1/19) | N31: 0.061 | O31: 0 | P31: 0.061 | Q31: 1.499
A32: Minnesota* | B32: 2015-05-01 | C32: 2014-152 (5/15) | D32: 0.031 | E32: 0 | F32: 0.031 | G32: 1.527 | K32: Not Yet Filed Not Yet Filed | M32: 2016-001 (7/16) 2016-080 (4/17) | N32: 5.0% 4.6%
A33: Mississippi | B33: 2001-03-01 | C33: MSRB Bulletin 2000-01 (3/01) | D33: -0.116 | E33: 0.026 | F33: -0.093 | G33: 1.52
A34: Missouri | B34: 2018-08-01 | C34: 2018-031(8/18) | D34: -0.012 | E34: 0 | F34: -0.012 | G34: 1.515 | K34: Approved | L34: 10/8/2018 | M34: N/A | N34: 0.0% | O34: 0.183 | P34: 0.183 | Q34: 1.792
A35: Montana | B35: 2017-01-01 | C35: 2016-048 (1/17) | D35: 0.032 | E35: 0 | F35: 0.032 | G35: 1.536 | K35: Automatic | L35: 2018-11-01 | M35: 2018-066 (11/18) | N35: 0.048 | O35: 0 | P35: 0.048 | Q35: 1.536
A36: Nebraska | B36: 2018-02-01 | C36: 2017-093 (1/18) | D36: 0.058 | E36: 0 | F36: 0.058 | G36: 1.511 | K36: Automatic | L36: 2018-12-01 | M36: 2018-094 (12/18) | N36: 0.101 | O36: 0 | P36: 0.101 | Q36: 1.511
A37: Nevada | B37: 2017-08-01 | C37: 2017-024 (8/17) | D37: -0.06 | E37: 0 | F37: -0.06 | G37: 1.55 | K37: Exempt | L37: 2018-10-01 | M37: N/A | N37: 0 | O37: 0.188 | P37: 0.188 | Q37: 1.842
A38: New Hampshire | B38: 2017-02-01 | C38: 2016-055 (1/17) | D38: 0.029 | E38: 0 | F38: 0.029 | G38: 1.483 | K38: Automatic Pending | L38: 11/1/2018 12/3/18 | M38: 2018-068 (11/18) N/A | N38: -2.7% 0.0% | O38: 0.0% 19.2% | P38: -2.7% 19.2% | Q38: 1.483 1.768
A39: New Jersey | B39: 2016-10-01 | C39: 2016-032 (10/16) | D39: 0.048 | E39: 0 | F39: 0.048 | G39: 1.52 | K39: Approved | L39: 2018-10-29 | M39: N/A | N39: 0 | O39: 0.09019181707 | P39: 0.09 | Q39: 1.657
A40: New Mexico | B40: 2017-11-01 | C40: 2017-062 (11/17) | D40: -0.058 | E40: 0 | F40: -0.058 | G40: 1.477 | K40: Automatic Pending | L40: 10/1/2018 12/3/18 | M40: 2018-060 (10/18) N/A | N40: -5.4% 0.0% | O40: 0.0% 23.6% | P40: -5.4% 23.6% | Q40: 1.477 1.825
A41: New York* | B41: 2014-04-01 | C41: 2013-060 & 068 (9/13) | D41: -0.223 | E41: 0.217 | F41: -0.054 | G41: 1.761 | K41: Not Yet Filed Not Yet Filed Not Yet Filed | M41: 2015-099 (5/16) 2016-094 (6/17) 2018-029 (7/18) | N41: -6.7% -0.3% -8.9%
A42: North Carolina | B42: 2017-10-01 | C42: 2017-033 (10/17) | D42: 0.036 | E42: 0 | F42: 0.036 | G42: 1.58 | K42: Pending | L42: 2018-10-29 | M42: N/A | N42: 0 | O42: 0.132 | P42: 0.132 | Q42: 1.789
A43: North Dakota | B43: 2018-08-01 | C43: 2018-037(8/18) | D43: -0.007 | E43: 0 | F43: -0.007 | G43: 1.511 | K43: Automatic | L43: 10/8/2018 | M43: N/A | N43: 0 | O43: 0.181 | P43: 0.181 | Q43: 1.784
A44: Ohio | B44: 2017-04-01 | C44: 2016-092 (4/17) | D44: 0.027 | E44: 0 | F44: 0.027 | G44: 1.52
A45: Oklahoma | B45: 2018-04-01 | C45: 2017-153 (4/18) | D45: -0.03 | E45: 0 | F45: -0.03 | G45: 1.529 | K45: Approved | L45: 2018-10-29 | M45: N/A | N45: 0 | O45: 0.177 | P45: 0.177 | Q45: 1.8
A46: Oregon | B46: 2017-03-01 | C46: 2016-078 (3/17) | D46: 0.038 | E46: 0 | F46: 0.038 | G46: 1.512 | K46: Automatic | L46: 2019-01-01 | M46: 2018-086 (1/19) | N46: 0.075 | O46: 0 | P46: 0.075 | Q46: 1.512
A47: Pennsylvania | B47: 2018-01-01 | C47: 2017-092 (1/18) | D47: 0.049 | E47: 0 | F47: 0.049 | G47: 1.483
A48: Rhode Island | B48: 2017-09-01 | C48: 2017-052 (9/17) | D48: 0.033 | E48: 0 | F48: 0.033 | G48: 1.46 | K48: Approved | L48: 2018-10-29 | M48: N/A | N48: 0 | O48: 0.227 | P48: 0.227 | Q48: 1.792
A49: South Carolina | B49: 2017-10-01 | C49: 2017-056 (10/17) | D49: -0.003 | E49: 0 | F49: -0.003 | G49: 1.542 | K49: Approved | L49: 2018-10-08 | M49: N/A | N49: 0 | O49: 0.147 | P49: 0.147 | Q49: 1.768
A50: South Dakota | B50: 2017-08-01 | C50: 2017-026 (8/17) | D50: 0.065 | E50: 0 | F50: 0.065 | G50: 1.527 | K50: Approved | L50: 2018-10-01 | M50: N/A | N50: 0 | O50: 0.184 | P50: 0.184 | Q50: 1.808
A51: Tennessee | B51: 2016-01-01 | C51: 2015-077 (1/16) | D51: 0.073 | E51: 0 | F51: 0.073 | G51: 1.527 | K51: Automatic | L51: 2019-01-01 | M51: 2018-087 (1/19) | N51: 0.089 | O51: 0 | P51: 0.089 | Q51: 1.527
A52: Texas* | B52: 2012-02-06 | C52: 2011-108 (12/11) | D52: -0.097 | E52: 0.025 | F52: -0.074 | G52: 1.616 | K52: Not Yet Filed Not Yet Filed Not Yet Filed | M52: 2014-131 (7/17) 2017-156 (4/18) 2018-002 (5/18) | N52: 8.7% 0.0% 12.0% | S52: JF: miscellaneous loss costs approved with effective date of 2/1/2015. No LCM changes. No rate impact.
A53: Utah | B53: 2017-04-01 | C53: 2016-091 (4/17) | D53: 0.034 | E53: 0 | F53: 0.034 | G53: 1.522
A54: Vermont | B54: 2017-01-01 | C54: 2016-043 (1/17) | D54: 0.044 | E54: 0 | F54: 0.044 | G54: 1.515 | K54: Automatic Pending | L54: 11/1/2018 12/3/18 | M54: 2018-069 (11/18) N/A | N54: -6.3% 0.0% | O54: 0.0% 18.3% | P54: -6.3% 18.3% | Q54: 1.515 1.792
A55: Virginia | B55: 2015-12-01 | C55: 2015-076 (12/15) | D55: -0.013 | E55: 0 | F55: -0.013 | G55: 1.522 | K55: Automatic | L55: 2018-11-01 | M55: 2018-079(11/18) | N55: -0.023 | O55: 0 | P55: -0.023 | Q55: 1.522
A56: Washington+ | B56: 2009-03-01 | C56: 2008-22 (3/09) | D56: -0.196 | E56: 0 | F56: -0.196 | G56: 1.709
A57: West Virginia | B57: 2018-02-01 | C57: 2017-096 (2/18) | D57: 0.051 | E57: 0 | F57: 0.051 | G57: 1.53
A58: Wisconsin | B58: 2018-05-01 | C58: 2017-150 (5/18) | D58: 0.017 | E58: 0 | F58: 0.017 | G58: 1.483
A59: Wyoming | B59: 2017-04-01 | C59: 2016-090 (4/17) | D59: 0.045 | E59: 0 | F59: 0.045 | G59: 1.457
A62: * LCM cannot be placed on file for future revisions. | D62: + NHG - Current LCM = | G62: 1.718 | L62: + AIU LC filings not maintained after 4/2009

Sheet FIRE-DEVS
G1: As of: | H1: =TODAY() -> 2018-10-02
A2: * * * * * * * * * * * COMMERCIAL FIRE LOSS COST MODIFICATIONS * * * * * * * * * * *
B4: Loss Cost | C4: NEW HAMPSHIRE COMPANIES | G4: NEW YORK COMPANIES +
A5: State | B5: Deviation * | C5: Sub-Standard | D5: Standard | E5: Preferred | F5: Super-Preferred | G5: Standard | H5: Preferred
A7: ALABAMA | D7: GSIC / INIC | E7: NHIC -15% | G7: AIG PCC / AHAC / NUFIC / C&I / ISOP
A8: ALASKA | C8: INIC +15% | D8: GSIC | E8: NHIC -10% | F8: AIG AC -15% | G8: AIG PCC / AHAC / NUFIC / C&I / ISOP
A9: ARIZONA | C9: INIC +15% | D9: GSIC | E9: NHIC -15% | F9: AIG AC -25% | G9: AIG PCC / AHAC / NUFIC / C&I / ISOP
A10: ARKANSAS | D10: GSIC | E10: NHIC -15% | F10: AIG AC -25% | G10: AIG PCC / AHAC / NUFIC / C&I / ISOP
A11: CALIFORNIA | B11: 0.8 | D11: NHIC / GSIC
A12: COLORADO | D12: GSIC / INIC | E12: NHIC -15% | F12: AIG AC -25% | G12: AIG PCC / AHAC / NUFIC / C&I / ISOP
A13: CONNECTICUT | D13: GSIC / INIC | E13: NHIC -15% | F13: AIG AC -25% | G13: AIG PCC / AHAC / NUFIC / C&I / ISOP
A14: DELAWARE | C14: INIC +15% | D14: GSIC | E14: NHIC -15% | F14: AIG AC -25% | G14: AIG PCC / AHAC / NUFIC / C&I / ISOP
A15: DIST. OF COLUMBIA | D15: GSIC / INIC | E15: NHIC -15% | F15: AIG AC -25% | G15: AIG PCC / AHAC / NUFIC / C&I / ISOP
A16: FLORIDA | B16: 0.25 | C16: INIC +15% | D16: GSIC | E16: NHIC -10% | F16: AIG AC -25% | G16: AIG PCC / AHAC / NUFIC / C&I / ISOP
A17: GEORGIA | C17: INIC +15% | D17: GSIC | E17: NHIC -15% | F17: AIG AC -25% | G17: AIG PCC / AHAC / NUFIC / C&I / ISOP
A18: HAWAII | D18: GSIC / INIC / AIG AC | E18: NHIC -15% | G18: AHAC / NUFIC / C&I / ISOP | I18: 9/1/14 | J18: HIB Pub 130022, 130054 | K18: GSIC / INIC | L18: NHIC -15% | M18: AIG AC -25% | N18: 1.474
A19: IDAHO | D19: GSIC / INIC | E19: NHIC -15% | F19: AIG AC -25% | G19: AIG PCC / AHAC / NUFIC / C&I / ISOP
A20: ILLINOIS | D20: GSIC / INIC | E20: NHIC -15% | F20: AIG AC -25% | G20: AIG PCC / AHAC / NUFIC / C&I / ISOP
A21: INDIANA | C21: INIC +15% | D21: GSIC | E21: NHIC -15% | F21: AIG AC -25% | G21: AIG PCC / AHAC / NUFIC / C&I / ISOP
A22: IOWA | D22: GSIC / INIC | E22: NHIC -15% | F22: AIG AC -25% | G22: AIG PCC / AHAC / NUFIC / C&I / ISOP
A23: KANSAS | D23: GSIC / INIC | E23: NHIC -15% | F23: AIG AC -25% | G23: AIG PCC / AHAC / NUFIC / C&I / ISOP
A24: KENTUCKY | C24: INIC +15% | D24: GSIC | E24: NHIC -15% | F24: AIG AC -25% | G24: AIG PCC / AHAC / NUFIC / C&I / ISOP
A25: LOUISIANA | C25: GSIC / INIC /AIG AC | D25: GSIC | E25: NHIC -15% | F25: INIC -15% | G25: AIG PCC / AHAC / NUFIC / C&I / ISOP
A26: MAINE | D26: GSIC / INIC | E26: NHIC -15% | G26: AIG PCC / AHAC / NUFIC / C&I / ISOP
A27: MARYLAND | C27: INIC +15% | D27: GSIC | E27: NHIC -15% | F27: AIG AC -25% | G27: AIG PCC / AHAC / NUFIC / C&I / ISOP
A28: MASSACHUSETTS | B28: -0.165 | D28: GSIC / INIC | E28: NHIC -15% | G28: AIG PCC / AHAC / NUFIC / C&I / ISOP
A29: MICHIGAN | D29: GSIC / INIC | E29: NHIC -15% | F29: AIG AC -25% | G29: AIG PCC / AHAC / NUFIC / C&I / ISOP
A30: MINNESOTA | C30: INIC +15% | D30: GSIC | E30: NHIC -15% | G30: AIG PCC / AHAC / NUFIC / C&I / ISOP
A31: MISSISSIPPI | D31: GSIC | E31: NHIC -15% | F31: AIG AC -25% | G31: AIG PCC / AHAC / NUFIC / C&I / ISOP
A32: MISSOURI | C32: INIC +15% | D32: GSIC | E32: NHIC -15% | F32: AIG AC -25% | G32: AIG PCC / AHAC / NUFIC / C&I / ISOP
A33: MONTANA | D33: GSIC / INIC | E33: NHIC -15% | F33: AIG AC -25% | G33: AIG PCC / AHAC / NUFIC / C&I / ISOP
A34: NEBRASKA | D34: NHIC / GSIC / INIC / AIG AC | G34: AIG PCC / AHAC / NUFIC / C&I / ISOP
A35: NEVADA | D35: GSIC / INIC | E35: NHIC -15% | F35: AIG AC -25% | G35: AIG PCC / AHAC / NUFIC / C&I / ISOP
A36: NEW HAMPSHIRE | C36: INIC +15% | D36: GSIC | E36: NHIC -15% | F36: AIG AC -25% | G36: AIG PCC / AHAC / NUFIC / C&I / ISOP
A37: NEW JERSEY | D37: GSIC / INIC | E37: NHIC -15% | G37: AIG PCC / AHAC / NUFIC / C&I / ISOP
A38: NEW MEXICO | D38: GSIC / INIC | E38: NHIC -15% | F38: AIG AC -25% | G38: AIG PCC / AHAC / NUFIC / C&I / ISOP
A39: NEW YORK | D39: NHIC / GSIC / INIC | G39: AIG PCC / AHAC / NUFIC / C&I / ISOP
A40: NORTH CAROLINA | D40: GSIC | E40: NHIC -15% | F40: AIG AC -25% | G40: AIG PCC / AHAC / NUFIC / C&I / ISOP
A41: NORTH DAKOTA | C41: INIC +15% | D41: GSIC | E41: NHIC -15% | F41: AIG AC -25% | G41: AIG PCC / AHAC / NUFIC / C&I / ISOP
A42: OHIO | D42: GSIC / INIC | E42: NHIC -15% | F42: AIG AC -25% | G42: AIG PCC / AHAC / NUFIC / C&I / ISOP
A43: OKLAHOMA | D43: NHIC / GSIC / INIC / AIG AC | G43: AIG PCC / AHAC / NUFIC / C&I / ISOP
A44: OREGON | C44: INIC +15% | D44: GSIC | E44: NHIC -15% | F44: AIG AC -25% | G44: AIG PCC / AHAC / NUFIC / C&I / ISOP
A45: PENNSYLVANIA | C45: INIC +15% | D45: GSIC | E45: NHIC -15% | F45: AIG AC -25% | G45: AIG PCC / AHAC / NUFIC / C&I / ISOP
A46: RHODE ISLAND | D46: GSIC / INIC | E46: NHIC -15% | F46: AIG AC -25% | G46: AIG PCC / AHAC / NUFIC / C&I / ISOP
A47: SOUTH CAROLINA | D47: GSIC / INIC | E47: NHIC -15% | F47: AIG AC -25% | G47: AIG PCC / AHAC / NUFIC / C&I / ISOP
A48: SOUTH DAKOTA | C48: INIC +15% | D48: GSIC | E48: NHIC -15% | F48: AIG AC -25% | G48: AIG PCC / AHAC / NUFIC / C&I / ISOP
A49: TENNESSEE | D49: GSIC / INIC | E49: NHIC -15% | F49: AIG AC -25% | G49: AIG PCC / AHAC / NUFIC / C&I / ISOP
A50: TEXAS | C50: INIC +15% | D50: GSIC | E50: NHIC -15% | F50: AIG AC -25% | G50: AIG PCC / AHAC / NUFIC / C&I / ISOP
A51: UTAH | C51: INIC +15% | D51: GSIC | E51: NHIC -15% | F51: AIG AC -25% | G51: AIG PCC / AHAC / NUFIC / C&I / ISOP
A52: VERMONT | D52: GSIC / INIC | E52: NHIC -15% | G52: AIG PCC / AHAC / NUFIC / C&I / ISOP
A53: VIRGINIA | D53: GSIC | E53: NHIC -15% | F53: AIG AC -25% | G53: AIG PCC / AHAC / NUFIC / C&I / ISOP
A54: WASHINGTON | D54: GSIC / INIC | E54: NHIC -15% | G54: AIG PCC / AHAC / NUFIC / C&I / ISOP
A55: WEST VIRGINIA | C55: INIC +15% | D55: GSIC | E55: NHIC -15% | F55: AIG AC -25% | G55: AIG PCC / AHAC / NUFIC / C&I / ISOP
A56: WISCONSIN | C56: INIC +15% | D56: GSIC | E56: NHIC -15% | F56: AIG AC -25% | G56: AIG PCC / AHAC / NUFIC / C&I / ISOP
A57: WYOMING | D57: NHIC / GSIC / AIG AC / INIC | G57: AIG PCC / AHAC / NUFIC / C&I / ISOP
A59: * applies to all companies. | G59: + AIP, AIU LC filings not maintained after 4/2009

Sheet CRIME
A1: COMMERCIAL CRIME (ISO Crime & Fidelity) LOSS COST FILING STATUS | G1: POOLED COMPANIES | P1: As of: | Q1: =TODAY() -> 2018-10-02
A3: CURRENT: | H3: PENDING:
D5: Loss | H5: Actuarial | K5: Pending/ | L5: Proposed/ | N5: Loss
B6: Effective | C6: Circular #'s | D6: Cost | E6: Expense | F6: Overall | G6: Loss Cost | H6: Support | K6: Approved/ | L6: Effective | M6: Circular #'s | N6: Cost | O6: Expense | P6: Overall | Q6: Loss Cost
A7: State | B7: Date | C7: (Edition Date) | D7: Change | E7: Change | F7: Change | G7: Multiplier | H7: Prepared | K7: Automatic | L7: Date | M7: (Edition Date) | N7: Change | O7: Change | P7: Change | Q7: Multiplier
A9: ALABAMA | B9: 2014-06-01 | C9: 2014-003 (6/14) | D9: -0.11 | E9: 0 | F9: -0.11 | G9: 1.511 | K9: Will Not Be Adopted | L9: 2016-06-01 | M9: 2015-037 (6/16) | N9: -0.121 | O9: 0 | P9: -0.121 | Q9: 1.511
A10: ALASKA | B10: 2014-06-01 | C10: 2014-003 (6/14) | D10: -0.11 | E10: 0 | F10: -0.11 | G10: 1.511 | K10: Will Not Be Adopted | L10: 2016-06-01 | M10: 2015-037 (6/16) | N10: -0.121 | O10: 0 | P10: -0.121 | Q10: 1.502
A11: ARIZONA + | B11: 2014-06-01 | C11: 2014-003 (6/14) | D11: -0.11 | E11: 0 | F11: -0.11 | G11: 1.511 | K11: Will Not Be Adopted | L11: 2016-06-01 | M11: 2015-037 (6/16) | N11: -0.121 | O11: 0 | P11: -0.121 | Q11: 1.486
A12: ARKANSAS | B12: 2014-06-01 | C12: 2014-003 (6/14) | D12: -0.11 | E12: 0 | F12: -0.11 | G12: 1.511 | K12: Will Not Be Adopted | L12: 2016-06-01 | M12: 2015-037 (6/16) | N12: -0.121 | O12: 0 | P12: -0.121 | Q12: 1.497
A13: CALIFORNIA * | B13: 2014-08-25 | C13: 2007-122/199 (6/08) | D13: -0.108 | E13: 0.005 | F13: -0.103 | G13: 1.471 | K13: Not Yet Filed | M13: 2014-006 (6/14) | N13: -0.11
A14: COLORADO ++ | B14: 2014-06-01 | C14: 2014-003 (6/14) | D14: -0.11 | E14: 0 | F14: -0.11 | G14: 1.511 | K14: Will Not Be Adopted | L14: 2016-06-01 | M14: 2015-037 (6/16) | N14: -0.121 | O14: 0 | P14: -0.121 | Q14: 1.486
A15: CONNECTICUT | B15: 2014-06-01 | C15: 2014-003 (6/14) | D15: -0.11 | E15: 0 | F15: -0.11 | G15: 1.511 | K15: Will Not Be Adopted | L15: 2016-06-01 | M15: 2015-037 (6/16) | N15: -0.121 | O15: 0 | P15: -0.121 | Q15: 1.481
A16: DELAWARE * | B16: 2013-01-15 | C16: 2011-045 (6/12) | D16: 0.122 | E16: 0 | F16: 0.122 | G16: 1.481 | K16: Not Yet Filed Not Yet Filed | M16: 2015-037 (6/16) 2014-003 (6/14) | N16: -12.1% -11.0%
A17: DIST.OF COL. | B17: 2014-06-01 | C17: 2014-003 (6/14) | D17: -0.11 | E17: 0 | F17: -0.11 | G17: 1.511 | K17: Will Not Be Adopted | L17: 2016-06-01 | M17: 2015-037 (6/16) | N17: -0.121 | O17: 0 | P17: -0.121 | Q17: 1.48
A18: FLORIDA * | B18: 2015-03-01 | C18: 2014-003 (1/14) | D18: -0.431 | E18: 0.2026188835 | F18: -0.316 | G18: 1.745 | K18: Not Yet Filed Not Yet Filed | M18: 2015-037 (6/16) 2014-003 (6/14) | N18: -12.1% -11.0%
A19: GEORGIA | B19: 2014-06-01 | C19: 2014-003 (6/14) | D19: -0.11 | E19: 0 | F19: -0.11 | G19: 1.511 | K19: Will Not Be Adopted | L19: 2016-06-01 | M19: 2015-037 (6/16) | N19: -0.121 | O19: 0 | P19: -0.121 | Q19: 1.502
A20: HAWAII * | B20: 2012-06-01 | C20: HIB Pub. 120008 | D20: -0.136 | E20: 0 | F20: -0.136 | G20: 1.477 | K20: Pending | M20: Pub 140028 | N20: -0.11 | O20: 0 | P20: -0.11 | Q20: 1.477
A21: IDAHO | B21: 2014-06-01 | C21: 2014-003 (6/14) | D21: -0.11 | E21: 0 | F21: -0.11 | G21: 1.511 | K21: Will Not Be Adopted | L21: 2016-06-01 | M21: 2015-037 (6/16) | N21: -0.121 | O21: 0 | P21: -0.121 | Q21: 1.504
A22: ILLINOIS * | B22: 2012-12-01 | C22: 2011-045 ( 6/12) | D22: 0.125 | E22: 0 | F22: 0.125 | G22: 1.453 | K22: Not Yet Filed Not Yet Filed | M22: 2015-037 (6/16) 2014-003 (6/14) | N22: -12.1% -11.0%
A23: INDIANA | B23: 2014-06-01 | C23: 2014-003 (6/14) | D23: -0.11 | E23: 0 | F23: -0.11 | G23: 1.511 | K23: Will Not Be Adopted | L23: 2016-06-01 | M23: 2015-037 (6/16) | N23: -0.121 | O23: 0 | P23: -0.121 | Q23: 1.486
A24: IOWA | B24: 2014-06-01 | C24: 2014-003 (6/14) | D24: -0.11 | E24: 0 | F24: -0.11 | G24: 1.511 | K24: Will Not Be Adopted | L24: 2016-06-01 | M24: 2015-037 (6/16) | N24: -0.121 | O24: 0 | P24: -0.121 | Q24: 1.486
A25: KANSAS | B25: 2014-06-01 | C25: 2014-003 (6/14) | D25: -0.11 | E25: 0 | F25: -0.11 | G25: 1.511 | K25: Will Not Be Adopted | L25: 2016-06-01 | M25: 2015-037 (6/16) | N25: -0.121 | O25: 0 | P25: -0.121 | Q25: 1.486
A26: KENTUCKY | B26: 2014-06-01 | C26: 2014-003 (6/14) | D26: -0.11 | E26: 0 | F26: -0.11 | G26: 1.511 | K26: Will Not Be Adopted | L26: 2016-06-01 | M26: 2015-037 (6/16) | N26: -0.121 | O26: 0 | P26: -0.121 | Q26: 1.504
A27: LOUISIANA * | B27: 2016-04-01 | C27: 2014-003 (6/14) | D27: -28.4% | E27: 0.3% | F27: -28.3% | G27: 1.572 | K27: Not Yet Filed | M27: 2015-037 (6/16) | N27: -12.1%
A28: MAINE | B28: 2014-06-01 | C28: 2014-003 (6/14) | D28: -0.11 | E28: 0 | F28: -0.11 | G28: 1.486 | K28: Will Not Be Adopted | L28: 2016-06-01 | M28: 2015-037 (6/16) | N28: -0.121 | O28: 0 | P28: -0.121 | Q28: 1.486
A29: MARYLAND | B29: 2016-02-01 | C29: 2015-027 (2/16) | D29: -0.11 | E29: 0 | F29: -0.11 | G29: 1.486 | K29: Will Not Be Adopted | L29: 2016-06-01 | M29: 2016-002 (6/16) | N29: -0.121 | O29: 0 | P29: -0.121 | Q29: 1.486
A30: MASSACHUSETTS * | B30: 2013-01-01 | C30: 2012-014 (6/12) | D30: 0.125 | E30: 0 | F30: 0.125 | G30: 1.493 | K30: Not Yet Filed Not Yet Filed | M30: 2016-002 (6/16) 2014-010 (6/14) | N30: -12.1% -11.0%
A31: MICHIGAN | B31: 2014-06-01 | C31: 2014-003 (6/14) | D31: -0.11 | E31: 0 | F31: -0.11 | G31: 1.471 | K31: Will Not Be Adopted | L31: 2016-06-01 | M31: 2015-037 (6/16) | N31: -0.121 | O31: 0 | P31: -0.121 | Q31: 1.471
A32: MINNESOTA | B32: 2014-06-01 | C32: 2014-003 (6/14) | D32: -0.11 | E32: 0 | F32: -0.11 | G32: 1.486 | K32: Will Not Be Adopted | L32: 2016-06-01 | M32: 2015-037 (6/16) | N32: -0.121 | O32: 0 | P32: -0.121 | Q32: 1.486
A33: MISSISSIPPI | B33: 2014-06-01 | C33: 2014-003 (6/14) | D33: -0.11 | E33: 0 | F33: -0.11 | G33: 1.508 | K33: Will Not Be Adopted | L33: 2016-06-01 | M33: 2016-002 (6/16) | N33: -0.121 | O33: 0 | P33: -0.121 | Q33: 1.508
A34: MISSOURI | B34: 2014-06-01 | C34: 2014-003 (6/14) | D34: -0.11 | E34: 0 | F34: -0.11 | G34: 1.486 | K34: Will Not Be Adopted | L34: 2016-06-01 | M34: 2015-037 (6/16) | N34: -0.121 | O34: 0 | P34: -0.121 | Q34: 1.486
A35: MONTANA | B35: 2014-06-01 | C35: 2014-003 (6/14) | D35: -0.11 | E35: 0 | F35: -0.11 | G35: 1.504 | K35: Will Not Be Adopted | L35: 2016-06-01 | M35: 2015-037 (6/16) | N35: -0.121 | O35: 0 | P35: -0.121 | Q35: 1.504
A36: NEBRASKA | B36: 2014-06-01 | C36: 2014-003 (6/14) | D36: -0.11 | E36: 0 | F36: -0.11 | G36: 1.464 | K36: Will Not Be Adopted | L36: 2016-06-01 | M36: 2015-037 (6/16) | N36: -0.121 | O36: 0 | P36: -0.121 | Q36: 1.464
A37: NEVADA ** | B37: 2014-06-01 | C37: 2014-003 (6/14) | D37: -0.11 | E37: 0 | F37: -0.11 | G37: 1.524 | K37: Will Not Be Adopted | L37: 2016-06-01 | M37: 2015-037 (6/16) | N37: -0.121 | O37: 0 | P37: -0.121 | Q37: 1.524
A38: NEW HAMPSHIRE | B38: 2014-06-01 | C38: 2014-003 (6/14) | D38: -0.11 | E38: 0 | F38: -0.11 | G38: 1.486 | K38: Will Not Be Adopted | L38: 2016-06-01 | M38: 2015-037 (6/16) | N38: -0.121 | O38: 0 | P38: -0.121 | Q38: 1.486
A39: NEW JERSEY | B39: 2014-06-01 | C39: 2014-003 (6/14) | D39: -0.11 | E39: 0 | F39: -0.11 | G39: 1.49 | K39: Will Not Be Adopted | L39: 2016-06-01 | M39: 2015-037 (6/16) | N39: -0.121 | O39: 0 | P39: -0.121 | Q39: 1.49
A40: NEW MEXICO | B40: 2014-06-01 | C40: 2014-003 (6/14) | D40: -0.11 | E40: 0 | F40: -0.11 | G40: 1.508 | K40: Will Not Be Adopted | L40: 2016-06-01 | M40: 2015-037 (6/16) | N40: -0.121 | O40: 0 | P40: -0.121 | Q40: 1.508
A41: NEW YORK * | B41: 2009-05-01 | C41: 2007-125/2008-019 (8/08) | D41: -0.303 | E41: -0.017 | F41: -0.315 | G41: 1.468 | K41: Not Yet Filed Not Yet Filed | M41: 2015-037 (6/16) 2014-003 (6/14) | N41: -12.1% -11.0%
A42: NORTH CAROLINA | B42: 2014-06-01 | C42: 2014-003 (6/14) | D42: -0.11 | E42: 0 | F42: -0.11 | G42: 1.484 | K42: Will Not Be Adopted | L42: 2016-06-01 | M42: 2016-002 (6/16) | N42: -0.121 | O42: 0 | P42: -0.121 | Q42: 1.484
A43: NORTH DAKOTA | B43: 2014-06-01 | C43: 2014-003 (6/14) | D43: -0.11 | E43: 0 | F43: -0.11 | G43: 1.481 | K43: Will Not Be Adopted | L43: 2016-06-01 | M43: 2015-037 (6/16) | N43: -0.121 | O43: 0 | P43: -0.121 | Q43: 1.481
A44: OHIO | B44: 2014-06-01 | C44: 2014-003 (6/14) | D44: -0.11 | E44: 0 | F44: -0.11 | G44: 1.481 | K44: Will Not Be Adopted | L44: 2016-06-01 | M44: 2015-037 (6/16) | N44: -0.121 | O44: 0 | P44: -0.121 | Q44: 1.481
A45: OKLAHOMA | B45: 2014-06-01 | C45: 2014-003 (6/14) | D45: -0.11 | E45: 0 | F45: -0.11 | G45: 1.493 | K45: Will Not Be Adopted | L45: 2016-06-01 | M45: 2015-037 (6/16) | N45: -0.121 | O45: 0 | P45: -0.121 | Q45: 1.493
A46: OREGON | B46: 2014-06-01 | C46: 2014-003 (6/14) | D46: -0.11 | E46: 0 | F46: -0.11 | G46: 1.493 | K46: Will Not Be Adopted | L46: 2016-06-01 | M46: 2015-037 (6/16) | N46: -0.121 | O46: 0 | P46: -0.121 | Q46: 1.493
A47: PENNSYLVANIA | B47: 2014-06-01 | C47: 2014-003 (6/14) | D47: -0.11 | E47: 0 | F47: -0.11 | G47: 1.488 | K47: Will Not Be Adopted | L47: 2016-06-01 | M47: 2015-037 (6/16) | N47: -0.121 | O47: 0 | P47: -0.121 | Q47: 1.488
A48: RHODE ISLAND | B48: 2014-06-01 | C48: 2014-003 (6/14) | D48: -0.11 | E48: 0 | F48: -0.11 | G48: 1.486 | K48: Will Not Be Adopted | L48: 2016-06-01 | M48: 2015-037 (6/16) | N48: -0.121 | O48: 0 | P48: -0.121 | Q48: 1.486
A49: SOUTH CAROLINA | B49: 2014-06-01 | C49: 2014-003 (6/14) | D49: -0.11 | E49: 0 | F49: -0.11 | G49: 1.49 | K49: Will Not Be Adopted | L49: 2016-06-01 | M49: 2015-037 (6/16) | N49: -0.121 | O49: 0 | P49: -0.121 | Q49: 1.49
A50: SOUTH DAKOTA | B50: 2014-06-01 | C50: 2014-003 (6/14) | D50: -0.11 | E50: 0 | F50: -0.11 | G50: 1.497 | K50: Will Not Be Adopted | L50: 2016-06-01 | M50: 2015-037 (6/16) | N50: -0.121 | O50: 0 | P50: -0.121 | Q50: 1.497
A51: TENNESSEE | B51: 2014-06-01 | C51: 2014-003 (6/14) | D51: -0.11 | E51: 0 | F51: -0.11 | G51: 1.493 | K51: Will Not Be Adopted | L51: 2016-06-01 | M51: 2015-037 (6/16) | N51: -0.121 | O51: 0 | P51: -0.121 | Q51: 1.493
A52: TEXAS * | B52: 2015-04-01 | C52: 2014-003 (6/14) | D52: -0.184 | E52: 0.226 | F52: 0 | G52: 1.885 | K52: Not Yet Filed | M52: 2016-009 (6/16) | N52: -0.121
A53: UTAH | B53: 2014-06-01 | C53: 2014-003 (6/14) | D53: -0.11 | E53: 0 | F53: -0.11 | G53: 1.493 | K53: Will Not Be Adopted | L53: 2016-06-01 | M53: 2015-037 (6/16) | N53: -0.121 | O53: 0 | P53: -0.121 | Q53: 1.493
A54: VERMONT | B54: 2014-06-01 | C54: 2014-003 (6/14) | D54: -0.11 | E54: 0 | F54: -0.11 | G54: 1.486 | K54: Will Not Be Adopted | L54: 2016-06-01 | M54: 2015-037 (6/16) | N54: -0.121 | O54: 0 | P54: -0.121 | Q54: 1.486
A55: VIRGINIA | B55: 2014-06-01 | C55: 2014-003 (6/14) | D55: -0.11 | E55: 0 | F55: -0.11 | G55: 1.495 | K55: Will Not Be Adopted | L55: 2016-06-01 | M55: 2015-037 (6/16) | N55: -0.121 | O55: 0 | P55: -0.121 | Q55: 1.495
A56: WASHINGTON +++ | B56: 2014-06-01 | C56: 2014-003 (6/14) | D56: -0.11 | E56: 0 | F56: -0.11 | G56: 1.464 | K56: Will Not Be Adopted | L56: 2016-06-01 | M56: 2015-037 (6/16) | N56: -0.121 | O56: 0 | P56: -0.121 | Q56: 1.464
A57: WEST VIRGINIA | B57: 2014-06-01 | C57: 2014-003 (6/14) | D57: -0.11 | E57: 0 | F57: -0.11 | G57: 1.508 | K57: Will Not Be Adopted | L57: 2016-06-01 | M57: 2015-037 (6/16) | N57: -0.121 | O57: 0 | P57: -0.121 | Q57: 1.508
A58: WISCONSIN | B58: 2014-06-01 | C58: 2014-003 (6/14) | D58: -0.11 | E58: 0 | F58: -0.11 | G58: 1.486 | K58: Will Not Be Adopted | L58: 2016-06-01 | M58: 2015-037 (6/16) | N58: -0.121 | O58: 0 | P58: -0.121 | Q58: 1.486
A59: WYOMING | B59: 2014-06-01 | C59: 2014-003 (6/14) | D59: -0.11 | E59: 0 | F59: -0.11 | G59: 1.46 | K59: Will Not Be Adopted | L59: 2016-06-01 | M59: 2015-037 (6/16) | N59: -0.121 | O59: 0 | P59: -0.121 | Q59: 1.46
A62: * LCM cannot be placed on file for future revisions. | D62: + NHG, AIU & LIC - Current LCM = 1.486. | H62: ++ NHG, AIU & LIC - Current LCM = 1.486. | N62: ** AHAC, BF, C&I, NUFIC & ISOP = 1.520
H63: +++ NHG, AIU & LIC - Current LCM = 1.513, eff. 9/10/02.

Sheet CR-DEVS
F1: As of: | G1: =TODAY() -> 2018-10-02
A2: * * * * * * * * * * * COMMERCIAL CRIME LOSS COST MODIFICATIONS * * * * * * * * * * *
B4: NEW HAMPSHIRE COMPANIES | F4: NEW YORK COMPANIES + | G4: Companies Eligible for Filing
A5: State | B5: Sub-Standard | C5: Standard | D5: Preferred | E5: Super-Preferred | F5: Standard | G5: to Adopt the Fidelity Portion
A7: ALABAMA | C7: GSIC | D7: NHIC -15% | F7: AIG PCC / AHAC / C&I / NUFIC / ISOP | G7: NHIC/GSIC/AHAC/NUFIC/ISOP/C&I/AIG AC
A8: ALASKA | B8: INIC +15% | C8: GSIC | D8: NHIC -15% | E8: AIG AC -25% | F8: AIG PCC / AHAC / C&I / NUFIC / ISOP | G8: NHIC/GSIC/INIC/AIG PCC/AHAC/NUFIC/ISOP/C&I/AIG AC
A9: ARIZONA | B9: INIC +15% | C9: GSIC | D9: NHIC -15% | E9: AIG AC -25% | F9: AIG PCC / AHAC / C&I / NUFIC / ISOP | G9: NHIC/GSIC/AHAC/NUFIC/ISOP/C&I/AIG PCC/LIC
A10: ARKANSAS | C10: GSIC | D10: NHIC -15% | E10: AIG AC -25% | F10: AIG PCC / AHAC / C&I / NUFIC / ISOP | G10: NHIC/GSIC/AHAC/NUFIC/ISOP/C&I
A11: CALIFORNIA | C11: NHIC / GSIC | F11: AIG PCC / AHAC / C&I / NUFIC / ISOP | G11: NHIC/GSIC/AHAC/NUFIC/ISOP/C&I/BF/LIC
A12: COLORADO | C12: GSIC / INIC | D12: NHIC -15% | E12: AIG AC -25% | F12: AIG PCC / AHAC / C&I / NUFIC / ISOP | G12: NHIC/GSIC/AIP/AIG AC/AHAC/NUFIC/ISOP/C&I/AIG PCC
A13: CONNECTICUT | B13: 8/25/14 | C13: GSIC / INIC | D13: NHIC -15% | E13: AIG AC -25% | F13: AIG PCC / AHAC / C&I / NUFIC / ISOP | G13: NHIC/GSIC/AHAC/NUFIC/ISOP/C&I/AIG AC
A14: DELAWARE | B14: INIC +15% | C14: GSIC | D14: NHIC -15% | E14: AIG AC -25% | F14: AIG PCC / AHAC / C&I / NUFIC / ISOP | G14: NHIC/AHAC/NUFIC/ISOP/C&I/AIG AC
A15: DIST. OF COLUMBIA | C15: GSIC / INIC / AIG AC | D15: NHIC -15% | F15: AIG PCC / AHAC / C&I / NUFIC / ISOP | G15: NHIC/GSIC/AIG PCC/AHAC/NUFIC/ISOP/C&I/AIG AC
A16: FLORIDA | B16: INIC +15% | C16: GSIC | D16: NHIC -15% | E16: AIG AC -25% | F16: AIG PCC / AHAC / C&I / NUFIC / ISOP | G16: NHIC/GSIC/AHAC/NUFIC/ISOP/C&I/AIG AC
A17: GEORGIA | B17: INIC +15% | C17: GSIC | D17: NHIC -15% | E17: AIG AC -25% | F17: AIG PCC / AHAC / C&I / NUFIC / ISOP | G17: NHIC/GSIC/AIG PCC/AHAC/NUFIC/ISOP/C&I/AIG AC
A18: HAWAII | C18: GSIC, INIC | D18: NHIC -15% | E18: AIG AC -25% | F18: AHAC / NUFIC / C&I / ISOP | G18: NHIC/AHAC/NUFIC/ISOP/C&I/LIC
A19: IDAHACO | C19: GSIC / INIC | D19: NHIC -15% | E19: AIG AC -25% | F19: AIG PCC / AHAC / C&I / NUFIC / ISOP | G19: NHIC/GSIC/INIC/AHAC/NUFIC/ISOP/C&I/AIG AC
A20: ILLINOIS | C20: GSIC / INIC | D20: NHIC -15% | E20: AIG AC -25% | F20: AIG PCC / AHAC / C&I / NUFIC / ISOP | G20: NHIC/GSIC/INIC/AHAC/NUFIC/ISOP/C&I/AIG AC | H20: 9/1/14 | I20: HIB Pub 130022, 130054 | J20: NHIC -15% | K20: AIG AC -25% | M20: 1.474
A21: INDIANA | B21: INIC +15% | C21: GSIC | D21: NHIC -15% | E21: AIG AC -25% | F21: AIG PCC / AHAC / C&I / NUFIC / ISOP | G21: NHIC/GSIC/INIC/AHAC/NUFIC/ISOP/C&I/AIG AC
A22: IOWA | C22: GSIC / INIC | D22: NHIC -15% | E22: AIG AC -25% | F22: AIG PCC / AHAC / C&I / NUFIC / ISOP | G22: NHIC/GSIC/INIC/AHAC/NUFIC/ISOP/C&I/AIG AC
A23: KANSAS | C23: GSIC / INIC | D23: NHIC -15% | E23: AIG AC -25% | F23: AIG PCC / AHAC / C&I / NUFIC / ISOP | G23: NHIC/GSIC/AHAC/NUFIC/ISOP/C&I/AIG AC/LIC
A24: KENTUCKY | B24: INIC +15% | C24: GSIC | D24: NHIC -15% | E24: AIG AC -25% | F24: AIG PCC / AHAC / C&I / NUFIC / ISOP | G24: NHIC/GSIC/AIG PCC/INIC/AHAC/NUFIC/ISOP/C&I/AIG AC
A25: LOUISIANA | C25: GSIC / INIC /AIG AC | D25: NHIC -15% | F25: AIG PCC / AHAC / C&I / NUFIC / ISOP | G25: NHIC/GSIC/AHAC/NUFIC/ISOP/C&I/AIG AC | I25: 3.3% modification factor
A26: MAINE | C26: GSIC / INIC | D26: NHIC -15% | F26: AIG PCC / AHAC / C&I / NUFIC / ISOP | G26: NHIC/GSIC/INIC/AHAC/NUFIC/ISOP
A27: MARYLAND | B27: INIC +15% | C27: GSIC | D27: NHIC -15% | E27: AIG AC -25% | F27: AIG PCC / AHAC / C&I / NUFIC / ISOP | G27: NHIC/GSIC/AIG PCC/INIC/AHAC/NUFIC/ISOP/C&I/AIG AC
A28: MASSACHUSETTS | C28: GSIC / INIC | D28: NHIC -15% | F28: AIG PCC / AHAC / C&I / NUFIC / ISOP | G28: NHIC/GSIC/AHAC/NUFIC/ISOP/C&I/LIC
A29: MICHIGAN | C29: GSIC / INIC | D29: NHIC -15% | E29: AIG AC -25% | F29: AIG PCC / AHAC / C&I / NUFIC / ISOP | G29: NHIC/GSIC/INIC/AHAC/NUFIC/ISOP/C&I/AIG AC
A30: MINNESOTA | B30: INIC +15% | C30: GSIC | D30: NHIC -15% | F30: AIG PCC / AHAC / C&I / NUFIC / ISOP | G30: NHIC/GSIC/AHAC/NUFIC/ISOP/C&I/AIG AC
A31: MISSISSIPPI | C31: GSIC | D31: NHIC -15% | E31: AIG AC -25% | F31: AIG PCC / AHAC / C&I / NUFIC / ISOP | G31: NHIC/GSIC/AIG PCC/AHAC/NUFIC/ISOP/C&I/AIG AC
A32: MISSOURI | B32: INIC +15% | C32: GSIC | D32: NHIC -15% | E32: AIG AC -25% | F32: AIG PCC / AHAC / C&I / NUFIC / ISOP | G32: NHIC/GSIC/INIC/AHAC/NUFIC/ISOP/C&I/AIG AC
A33: MONTANA | C33: GSIC / INIC | D33: NHIC -15% | E33: AIG AC -25% | F33: AIG PCC / AHAC / C&I / NUFIC / ISOP | G33: NHIC/GSIC/INIC/AIG PCC/AHAC/NUFIC/ISOP/C&I/AIG AC
A34: NEBRASKA | C34: NHIC / GSIC / AIG AC / INIC | F34: AIG PCC / AHAC / C&I / NUFIC / ISOP | G34: NHIC/GSIC/INIC/AHAC/NUFIC/ISOP/C&I/AIG AC
A35: NEVADA | C35: GSIC / INIC | D35: NHIC -15% | E35: AIG AC -25% | F35: AIG PCC / AHAC / C&I / NUFIC / ISOP | G35: NHIC/GSIC/INIC/AHAC/NUFIC/ISOP/C&I/AIG AC/LIC
A36: NEW HAMPSHIRE | B36: INIC +15% | C36: GSIC | D36: NHIC -15% | E36: AIG AC -25% | F36: AIG PCC / AHAC / C&I / NUFIC / ISOP | G36: NHIC/GSIC/INIC/AIG AC/AHAC/NUFIC/ISOP/C&I/AIG AC
A37: NEW JERSEY | C37: GSIC / INIC | D37: NHIC -15% | F37: AIU / AHAC / NUFIC / C&I / ISOP | G37: NHIC/GSIC/INIC/AHAC/NUFIC/ISOP/C&I
A38: NEW MEXICO | D38: NHIC -15% | E38: AIG AC, INIC -25% | F38: AIG PCC / AHAC / C&I / NUFIC / ISOP | G38: NHIC/GSIC/INIC/AIG PCC/AHAC/NUFIC/ISOP/C&I/AIG AC
A39: NEW YORK | C39: NHIC / GSIC / INIC | F39: AIG PCC / AHAC / C&I / NUFIC / ISOP | G39: NHIC/GSIC/INIC/AHAC/NUFIC/ISOP/C&I/AIG AC/LIC
A40: NORTH CAROLINA | C40: GSIC | D40: NHIC -15% | E40: AIG AC -25% | F40: AIG PCC / AHAC / C&I / NUFIC / ISOP | G40: NHIC/GSIC/AIG PCC/AHAC/NUFIC/ISOP/C&I/AIG AC
A41: NORTH DAKOTA | B41: INIC +15% | C41: GSIC | D41: NHIC -15% | E41: AIG AC -25% | F41: AIG PCC / AHAC / C&I / NUFIC / ISOP | G41: NHIC/GSIC/INIC/AIG PCC/AHAC/NUFIC/ISOP/C&I/AIG AC
A42: OHIO | C42: GSIC / INIC | D42: NHIC -15% | E42: AIG AC -25% | F42: AIG PCC / AHAC / C&I / NUFIC / ISOP | G42: NHIC/GSIC/INIC/AHAC/NUFIC/ISOP/C&I/AIG AC
A43: OKLAHACOMA | C43: NHIC / GSIC / INIC / AIG AC | F43: AIG PCC / AHAC / C&I / NUFIC / ISOP | G43: GSIC/AIG PCC/AHAC/NUFIC/ISOP/C&I/AIG AC
A44: OREGON | B44: INIC +15% | C44: GSIC | D44: NHIC -15% | E44: AIG AC -25% | F44: AIG PCC / AHAC / C&I / NUFIC / ISOP | G44: NHIC/GSIC/AHAC/NUFIC/ISOP/C&I/AIG AC/LIC
A45: PENNSYLVANIA | B45: INIC +15% | C45: GSIC | D45: NHIC -15% | E45: AIG AC -25% | F45: AIG PCC / AHAC / C&I / NUFIC / ISOP | G45: NHIC/GSIC/AIG PCC/AHAC/NUFIC/ISOP/C&I/AIG AC
A46: RHODE ISLAND | C46: GSIC / INIC | D46: NHIC -15% | E46: AIG AC -25% | F46: AIG PCC / AHAC / C&I / NUFIC / ISOP | G46: NHIC/GSIC/INIC/AIG PCC/AHAC/NUFIC/ISOP/C&I/AIG AC
A47: SOUTH CAROLINA | C47: GSIC / INIC | D47: NHIC -15% | E47: AIG AC -25% | F47: AIG PCC / AHAC / C&I / NUFIC / ISOP | G47: NHIC/GSIC/AIG PCC/AHAC/NUFIC/ISOP/C&I/AIG AC
A48: SOUTH DAKOTA | B48: INIC +15% | C48: GSIC | D48: NHIC -15% | E48: AIG AC -25% | F48: AIG PCC / AHAC / C&I / NUFIC / ISOP | G48: NHIC/GSIC/INIC/AHAC/NUFIC/ISOP/C&I/AIG AC
A49: TENNESSEE | C49: GSIC / INIC | D49: NHIC -15% | E49: AIG AC -25% | F49: AIU / AHAC / NUFIC / C&I / ISOP | G49: NHIC/GSIC/AHAC/NUFIC/ISOP/C&I
A50: TEXAS | B50: INIC +15% | C50: GSIC | D50: NHIC -15% | E50: AIG AC -25% | F50: AIG PCC / AHAC / C&I / NUFIC / ISOP | G50: NHIC/GSIC/INIC/AHAC/NUFIC/ISOP/C&I/AIG AC
A51: UTAH | B51: INIC +15% | C51: GSIC | D51: NHIC -15% | E51: AIG AC -25% | F51: AIG PCC / AHAC / C&I / NUFIC / ISOP | G51: NHIC/GSIC/INIC/AHAC/NUFIC/ISOP/C&I/AIG AC
A52: VERMONT | C52: GSIC / INIC | D52: NHIC -15% | F52: AIG PCC / AHAC / C&I / NUFIC / ISOP | G52: NHIC/GSIC/INIC/AHAC/NUFIC/ISOP/C&I/AIG AC
A53: VIRGINIA | C53: GSIC | D53: NHIC -15% | E53: AIG AC -25% | F53: AIG PCC / AHAC / C&I / NUFIC / ISOP | G53: NHIC/GSIC/AHAC/NUFIC/ISOP/C&I/AIG AC
A54: WASHINGTON | C54: GSIC / AIG AC / INIC | D54: NHIC -15% | F54: AIG PCC / AHAC / C&I / NUFIC / ISOP | G54: NHIC/GSIC/AHAC/NUFIC/ISOP/C&I/AIG AC/LIC
A55: WEST VIRGINIA | B55: INIC +15% | C55: GSIC | D55: NHIC -15% | E55: AIG AC -25% | F55: AIG PCC / AHAC / C&I / NUFIC / ISOP | G55: NHIC/GSIC/INIC/AHAC/NUFIC/ISOP/C&I/AIG AC
A56: WISCONSIN | B56: INIC +15% | C56: GSIC | D56: NHIC -15% | E56: AIG AC -25% | F56: AIG PCC / AHAC / C&I / NUFIC / ISOP | G56: NHIC/GSIC/AHAC/NUFIC/ISOP/C&I/AIG AC
A57: WYOMING | C57: NHIC / GSIC / INIC / AIG AC | F57: AIG PCC / AHAC / C&I / NUFIC / ISOP | G57: NHIC/GSIC/INIC/AHAC/NUFIC/ISOP/C&I/AIG AC
F59: + AIU LC filings not maintained after 4/2009

Sheet INLAND
A1: COMMERCIAL INLAND MARINE LOSS COST FILING STATUS | G1: POOLED COMPANIES | P1: As of: | Q1: =TODAY() -> 2018-10-02
A3: CURRENT: | H3: PENDING:
D5: Loss | H5: Actuarial | L5: Proposed/ | N5: Loss
B6: Effective | C6: Circular #'s | D6: Cost | E6: Expense | F6: Overall | G6: Loss Cost | H6: Support | K6: Pending/ | L6: Effective | M6: Circular #'s | N6: Cost | O6: Expense | P6: Overall | Q6: Loss Cost
A7: STATE | B7: Date | C7: (Edition Date) | D7: Change | E7: Change | F7: Change | G7: Multiplier | H7: Prepared | K7: Approved | L7: Date | M7: (Edition Date) | N7: Change | O7: Change | P7: Change | Q7: Multiplier
A9: ALABAMA | B9: 2016-11-01 | C9: 2016-008 (11/16) | D9: -0.13 | E9: 0 | F9: -0.13 | G9: 1.541
A10: ALASKA | B10: 2016-11-01 | C10: 2016-007 (11/16) | D10: -0.133 | E10: 0 | F10: -0.133 | G10: 1.543
A11: ARIZONA | B11: 2016-11-01 | C11: 2016-006 (11/16) | D11: -0.133 | E11: 0 | F11: -0.133 | G11: 1.527
A12: ARKANSAS | B12: 2016-11-01 | C12: 2016-006 (11/16) | D12: -0.133 | E12: 0 | F12: -0.133 | G12: 1.538
A13: CALIFORNIA * | B13: 2014-11-01 | C13: 2012-025 (9/12) | D13: -0.4522 | E13: 0.1695 | F13: -0.359 | G13: 1.868 | K13: Not Yet Filed Not Yet Filed | M13: 2014-013 (10/14) 2017-001 (6/17) | N13: -20.8% -13.3%
A14: COLORADO | B14: 2016-11-01 | C14: 2016-006 (11/16) | D14: -0.133 | E14: 0 | F14: -0.133 | G14: 1.527
A15: CONNECTICUT | B15: 2016-11-01 | C15: 2016-006 (11/16) | D15: -0.133 | E15: 0 | F15: -0.133 | G15: 1.522
A16: DELAWARE * | B16: 2014-08-01 | C16: 2012-019 (10/12) | D16: -0.119 | E16: 0.2637362637 | F16: 0.1136919233 | G16: 1.826098901 | K16: Not Yet Filed Not Yet Filed | M16: 2014-009 (10/14) 2016-007 (11/16) | N16: -20.8% -13.3%
A17: DIST.OF COL. | B17: 2016-11-01 | C17: 2016-007 (11/16) | D17: -0.133 | E17: 0 | F17: -0.133 | G17: 1.52
A18: FLORIDA | B18: 2010-10-01 | C18: 2010-043 (10/10) | D18: -0.21 | E18: 0 | F18: -0.21 | G18: 1.376 | K18: Not Yet Filed Not Yet Filed | M18: 2014-008 (10/14) 2016-008 (11/16) | N18: -19.6% -13.0%
A19: GEORGIA | B19: 2016-11-01 | C19: 2016-008 (11/16) | D19: -0.13 | E19: 0 | F19: -0.13 | G19: 1.558
A20: HAWAII * | B20: 2014-11-01 | C20: 2014-007 (10/14) | D20: -0.304624 | E20: 0.11 | F20: -0.228 | G20: 1.659 | K20: Not Yet Filed Not Yet Filed | M20: 2014-007 (10/14) 2016-006 (11/16) | N20: -20.8% -13.3%
A21: IDAHO | B21: 2016-11-01 | C21: 2016-006 (11/16) | D21: -0.133 | E21: 0 | F21: -0.133 | G21: 1.546
A22: ILLINOIS * | B22: 2012-10-01 | C22: 2012-019 (8/10) | D22: -0.119 | E22: 0.092 | F22: -0.038 | G22: 1.635 | K22: Not Yet Filed Not Yet Filed | M22: 2014-007 (10/14) 2016-006 (11/16) | N22: -20.8% -13.3%
A23: INDIANA | B23: 2016-11-01 | C23: 2016-006 (11/16) | D23: -0.133 | E23: 0 | F23: -0.133 | G23: 1.527
A24: IOWA | B24: 2016-11-01 | C24: 2016-006 (11/16) | D24: -0.133 | E24: 0 | F24: -0.133 | G24: 1.527
A25: KANSAS | B25: 2016-11-01 | C25: 2016-006 (11/16) | D25: -0.133 | E25: 0 | F25: -0.133 | G25: 1.527
A26: KENTUCKY | B26: 2016-11-01 | C26: 2016-007 (11/16) | D26: -0.133 | E26: 0 | F26: -0.133 | G26: 1.546
A27: LOUISIANA * | B27: 2014-09-01 | C27: 2012-020 (10/12) | D27: -0.464 | E27: 0.264 | F27: -0.323 | G27: 1.872 | K27: Not Yet Filed Not Yet Filed | M27: 2014-008 (10/14) 2016-008 (11/16) | N27: -19.6% -13.0%
A28: MAINE | B28: 2016-11-01 | C28: 2016-006 (11/16) | D28: -0.133 | E28: 0 | F28: -0.133 | G28: 1.527
A29: MARYLAND | B29: 2016-11-01 | C29: 2016-006 (11/16) | D29: -0.133 | E29: 0 | F29: -0.133 | G29: 1.527
A30: MASSACHUSETTS * | B30: 2014-05-01 | C30: 2012-019 (10/12) | D30: -0.171 | E30: 0.188 | F30: -0.015 | G30: 1.837 | K30: Not Yet Filed Not Yet Filed | M30: 2014-012 (10/14) 2016-007 (11/16) | N30: -20.8% -13.3%
A31: MICHIGAN | B31: 2016-11-01 | C31: 2016-006 (11/16) | D31: -0.133 | E31: 0 | F31: -0.133 | G31: 1.511
A32: MINNESOTA * | B32: 2014-10-01 | C32: 2014-007 (10/14) | D32: -0.208 | E32: 0 | F32: -0.208 | G32: 1.529 | K32: Not Yet Filed | M32: 2016-006 (11/16) | N32: -0.133
A33: MISSISSIPPI | B33: 2016-11-01 | C33: 2016-008 (11/16) | D33: -0.13 | E33: 0 | F33: -0.13 | G33: 1.575
A34: MISSOURI | B34: 2016-11-01 | C34: 2016-006 (11/16) | D34: -0.133 | E34: 0 | F34: -0.133 | G34: 1.527
A35: MONTANA | B35: 2016-11-01 | C35: 2016-006 (11/16) | D35: -0.133 | E35: 0 | F35: -0.133 | G35: 1.546
A36: NEBRASKA | B36: 2016-11-01 | C36: 2016-006 (11/16) | D36: -0.133 | E36: 0 | F36: -0.133 | G36: 1.506
A37: NEVADA | B37: 2016-11-01 | C37: 2016-006 (11/16) | D37: -0.133 | E37: 0 | F37: -0.133 | G37: 1.563
A38: NEW HAMPSHIRE | B38: 2016-11-01 | C38: 2016-006 (11/16) | D38: -0.133 | E38: 0 | F38: -0.133 | G38: 1.527
A39: NEW JERSEY | B39: 2016-11-01 | C39: 2016-006 (11/16) | D39: -0.133 | E39: 0 | F39: -0.133 | G39: 1.531
A40: NEW MEXICO | B40: 2016-11-01 | C40: 2016-006 (11/16) | D40: -0.133 | E40: 0 | F40: -0.133 | G40: 1.55
A41: NEW YORK * | B41: 2014-03-01 | C41: 2012-019 (10/12) | D41: -0.481 | E41: 0.174 | F41: -0.391 | G41: 1.805 | K41: Not Yet Filed Not Yet Filed | M41: 2014-007 (10/14) 2016-007 (11/16) | N41: -20.8% -13.3%
A42: NORTH CAROLINA | B42: 2016-11-01 | C42: 2016-008 (11/16) | D42: -0.13 | E42: 0 | F42: -0.13 | G42: 1.527
A43: NORTH DAKOTA | B43: 2016-11-01 | C43: 2016-006 (11/16) | D43: -0.133 | E43: 0 | F43: -0.133 | G43: 1.522
A44: OHIO | B44: 2016-11-01 | C44: 2016-006 (11/16) | D44: -0.133 | E44: 0 | F44: -0.133 | G44: 1.522
A45: OKLAHOMA | B45: 2016-11-01 | C45: 2016-007 (11/16) | D45: -0.133 | E45: 0 | F45: -0.133 | G45: 1.52
A46: OREGON | B46: 2016-11-01 | C46: 2016-006 (11/16) | D46: -0.133 | E46: 0 | F46: -0.133 | G46: 1.534
A47: PENNSYLVANIA | B47: 2016-11-01 | C47: 2016-006 (11/16) | D47: -0.133 | E47: 0 | F47: -0.133 | G47: 1.527
A48: RHODE ISLAND | B48: 2016-11-01 | C48: 2016-006 (11/16) | D48: -0.133 | E48: 0 | F48: -0.133 | G48: 1.527
A49: SOUTH CAROLINA | B49: 2016-11-01 | C49: 2016-008 (11/16) | D49: -0.13 | E49: 0 | F49: -0.13 | G49: 1.522
A50: SOUTH DAKOTA | B50: 2016-11-01 | C50: 2016-006 (11/16) | D50: -0.133 | E50: 0 | F50: -0.133 | G50: 1.541
A51: TENNESSEE | B51: 2016-11-01 | C51: 2016-006 (11/16) | D51: -0.133 | E51: 0 | F51: -0.133 | G51: 1.543
A52: TEXAS * | B52: 2012-10-01 | C52: 2012-020 (10/12) | D52: -0.122 | E52: 0.128 | F52: -0.01 | G52: 1.799 | K52: Not Yet Filed Not Yet Filed | M52: 2014-011 (10/14) 2016-009 (11/16) | N52: -19.6% -13.0%
A53: UTAH | B53: 2016-11-01 | C53: 2016-006 (11/16) | D53: -0.133 | E53: 0 | F53: -0.133 | G53: 1.534
A54: VERMONT | B54: 2016-11-01 | C54: 2016-006 (11/16) | D54: -0.133 | E54: 0 | F54: -0.133 | G54: 1.527
A55: VIRGINIA | B55: 2016-11-01 | C55: 2016-008 (11/16) | D55: -0.13 | E55: 0 | F55: -0.13 | G55: 1.558
A56: WASHINGTON | B56: 2016-11-01 | C56: 2016-006 (11/16) | D56: -0.133 | E56: 0 | F56: -0.133 | G56: 1.721
A57: WEST VIRGINIA | B57: 2016-11-01 | C57: 2016-006 (11/16) | D57: -0.133 | E57: 0 | F57: -0.133 | G57: 1.55
A58: WISCONSIN | B58: 2016-11-01 | C58: 2016-006 (11/16) | D58: -0.133 | E58: 0 | F58: -0.133 | G58: 1.527
A59: WYOMING | B59: 2016-11-01 | C59: 2016-006 (11/16) | D59: -0.133 | E59: 0 | F59: -0.133 | G59: 1.499
A62: * LCM cannot be placed on file for future revisions.

Sheet IM-DEVS
F1: As of: | G1: =TODAY() -> 2018-10-02
A2: * * * * * * * * * * * COMMERCIAL INLAND MARINE LOSS COST MODIFICATIONS * * * * * * * * * * *
B4: NEW HAMPSHIRE COMPANIES | F4: NEW YORK COMPANIES +
A5: State | B5: Sub-Standard | C5: Standard | D5: Preferred | E5: Super-Preferred | F5: Standard
A7: ALABAMA | C7: GSIC | D7: NHIC -15%
A8: ALASKA | B8: INIC +15% | C8: GSIC | D8: NHIC -15% | E8: AIG AC -25% | F8: AIG PCC / AHAC / NUFIC / C&I / ISOP
A9: ARIZONA | B9: INIC +15% | C9: GSIC | D9: NHIC -15% | E9: AIG AC -25%
A10: ARKANSAS | C10: GSIC | D10: NHIC -15% | E10: AIG AC -25%
A11: CALIFORNIA | C11: NHIC / GSIC
A12: COLORADO | C12: GSIC / INIC | D12: NHIC -15% | E12: AIG AC -25%
A13: CONNECTICUT | B13: 8/25/14 | C13: GSIC / INIC | D13: NHIC -15% | E13: AIG AC -25%
A14: DELAWARE | B14: INIC +15% | C14: GSIC | D14: NHIC -15% | E14: AIG AC -25% | F14: AIG PCC / AHAC / NUFIC / C&I / ISOP
A15: DIST. OF COLUMBIA | C15: GSIC / INIC / AIG AC | D15: NHIC -15%
A16: FLORIDA | B16: INIC +15% | C16: GSIC | D16: NHIC -15% | E16: AIG AC -25%
A17: GEORGIA | B17: INIC +15% | C17: GSIC | D17: NHIC -15% | E17: AIG AC -25%
A18: HAWAII | C18: GSIC/INIC | D18: NHIC -15% | E18: AIG AC -25% | F18: AHAC / NUFIC / C&I / ISOP
A19: IDAHACO | C19: GSIC / INIC | D19: NHIC -15% | E19: AIG AC -25%
A20: ILLINOIS | C20: GSIC / INIC | D20: NHIC -15% | E20: AIG AC -25% | F20: AIG PCC / AHAC / NUFIC / C&I / ISOP
A21: INDIANA | B21: INIC +15% | C21: GSIC | D21: NHIC -15% | E21: AIG AC -25%
A22: IOWA | C22: GSIC / INIC | D22: NHIC -15% | E22: AIG AC -25%
A23: KANSAS | C23: GSIC / INIC | D23: NHIC -15% | E23: AIG AC -25%
A24: KENTUCKY | B24: INIC +15% | C24: GSIC | D24: NHIC -15% | E24: AIG AC -25% | F24: AIG PCC / AHAC / NUFIC / C&I / ISOP
A25: LOUISIANA | C25: GSIC / INIC /AIG AC | D25: NHIC -15%
A26: MAINE | C26: GSIC | D26: NHIC -15%
A27: MARYLAND | B27: INIC +15% | C27: GSIC | D27: NHIC -15% | E27: AIG AC -25%
A28: MASSACHUSETTS | C28: GSIC | D28: NHIC -15%
A29: MICHIGAN | C29: GSIC / INIC | D29: NHIC -15% | E29: AIG AC -25% | F29: AIG PCC / AHAC / NUFIC / C&I / ISOP
A30: MINNESOTA | C30: GSIC / INIC | D30: NHIC -15%
A31: MISSISSIPPI | C31: GSIC | D31: NHIC -15% | E31: AIG AC -25%
A32: MISSOURI | B32: INIC +15% | C32: GSIC | D32: NHIC -15% | E32: AIG AC -25%
A33: MONTANA | C33: GSIC / INIC | D33: NHIC -15% | E33: AIG AC -25%
A34: NEBRASKA | C34: NHIC / GSIC / AIG AC / INIC | F34: AIG PCC / AHAC / NUFIC / C&I / ISOP
A35: NEVADA | C35: GSIC / INIC | D35: NHIC -15% | E35: AIG AC -25%
A36: NEW HAMPSHIRE | B36: INIC +15% | C36: GSIC | D36: NHIC -15% | E36: AIG AC -25%
A37: NEW JERSEY | C37: GSIC / INIC | D37: NHIC -15%
A38: NEW MEXICO | C38: GSIC | D38: NHIC -15% | E38: AIG AC -25%
A39: NEW YORK | C39: NHIC / GSIC / INIC
A40: NORTH CAROLINA | C40: GSIC | D40: NHIC -15% | E40: AIG AC -25%
A41: NORTH DAKOTA | B41: INIC +15% | C41: GSIC | D41: NHIC -15% | E41: AIG AC -25%
A42: OHIO | C42: GSIC / INIC | D42: NHIC -15% | E42: AIG AC -25%
A43: OKLAHACOMA | C43: NHIC / GSIC / AIG AC / INIC
A44: OREGON | B44: INIC +15% | C44: GSIC | D44: NHIC -15% | E44: AIG AC -25%
A45: PENNSYLVANIA | B45: INIC +15% | C45: GSIC | D45: NHIC -15% | E45: AIG AC -25%
A46: RHODE ISLAND | C46: GSIC / INIC | D46: NHIC -15% | E46: AIG AC -25%
A47: SOUTH CAROLINA | C47: GSIC / INIC | D47: NHIC -15% | E47: AIG AC -25%
A48: SOUTH DAKOTA | B48: INIC +15% | C48: GSIC | D48: NHIC -15% | E48: AIG AC -25%
A49: TENNESSEE | C49: GSIC / INIC | D49: NHIC -15% | E49: AIG AC -25%
A50: TEXAS | B50: INIC +15% | C50: GSIC | D50: NHIC -15% | E50: AIG AC -25%
A51: UTAH | B51: INIC +15% | C51: GSIC | D51: NHIC -15% | E51: AIG AC -25%
A52: VERMONT | C52: GSIC / INIC | D52: NHIC -15%
A53: VIRGINIA | C53: GSIC | D53: NHIC -15% | E53: AIG AC -25% | F53: AIG PCC / AHAC / NUFIC / C&I / ISOP
A54: WASHINGTON | C54: GSIC / AIG AC / INIC | D54: NHIC -15%
A55: WEST VIRGINIA | B55: INIC +15% | C55: GSIC | D55: NHIC -15% | E55: AIG AC -25%
A56: WISCONSIN | B56: INIC +15% | C56: GSIC | D56: NHIC -15% | E56: AIG AC -25%
A57: WYOMING | C57: NHIC / GSIC / AIG AC / INIC
F59: + AIU, LIC LC filings not maintained after 4/2009

Sheet BOILER
A1: BOILER & MACHINERY LOSS COST FILING STATUS | H1: POOLED COMPANIES | Q1: As of: | R1: =TODAY() -> 2018-10-02 | S1: 00:00:00
R2: (data not updated since 07/07/14)
A3: CURRENT: | H3: PENDING:
D5: Loss | G5: Loss | H5: Actuarial | K5: Pending/ | L5: Proposed | N5: Loss | Q5: Loss
B6: Effective | C6: Circular #'s | D6: Cost | E6: Expense | F6: Overall | G6: Cost | H6: Support | K6: Approved/ | L6: Effective | M6: Circular #'s | N6: Cost | O6: Expense | P6: Overall | Q6: Cost
A7: State | B7: Date | C7: (Edition Date) | D7: Change | E7: Change | F7: Change | G7: Multiplier | H7: Prepared | K7: Automatic | L7: Date | M7: (Edition Date) | N7: Change | O7: Change | P7: Change | Q7: Multiplier | R7: Companies Filed
A9: Alabama | B9: 2015-10-01 | C9: 2015-002 (10/15) | D9: -0.15 | E9: 0 | F9: -0.15 | G9: 1.698 | K9: Pending | M9: 2015-001 | N9: -0.15 | Q9: 1.698
A10: Alaska | B10: 2015-10-01 | C10: 2015-002 (10/15) | D10: -0.15 | E10: 0 | F10: -0.15 | G10: 1.616 | K10: Pending | M10: 2015-001 | N10: -0.15 | Q10: 1.616
A11: Arizona | B11: 2015-10-01 | C11: 2015-002 (10/15) | D11: -0.15 | E11: 0 | F11: -0.15 | G11: 1.634 | K11: Pending | M11: 2015-001 | N11: -0.15 | Q11: 1.634
A12: Arkansas | B12: 2015-10-01 | C12: 2015-002 (10/15) | D12: -0.15 | E12: 0 | F12: -0.15 | G12: 1.647 | K12: Pending | M12: 2015-001 | N12: -0.15 | Q12: 1.647
A13: California* | K13: Not Yet Filed Not Yet Filed | M13: 2015-009 (10/15) 2013-004 (10/13) | N13: -15.0% -11.8%
A14: Colorado | B14: 2015-10-01 | C14: 2015-002 (10/15) | D14: -0.15 | E14: 0 | F14: -0.15 | G14: 1.637 | K14: Pending | M14: 2015-001 | N14: -0.15 | Q14: 1.637
A15: Connecticut | B15: 2015-10-01 | C15: 2015-002 (10/15) | D15: -0.15 | E15: 0 | F15: -0.15 | G15: 1.629 | K15: Pending | M15: 2015-001 | N15: -0.15
A16: Delaware* | B16: 2012-03-26 | C16: 2011-012 (10/11) | D16: -0.168 | E16: 0 | F16: -0.168 | G16: 1.603 | K16: Not Yet Filed Not Yet Filed | M16: 2015-002 (10/15) 2013-006 (10/13) | N16: -15.0% -11.8%
A17: DC | B17: 2015-10-01 | C17: 2015-002 (10/15) | D17: -0.15 | E17: 0 | F17: -0.15 | G17: 1.642 | K17: Pending | M17: 2015-001 | N17: -0.15 | Q17: 1.642
A18: Florida* | B18: 2007-10-01 | C18: 2007-055 (9/05) | D18: -0.25 | E18: 0.013 | F18: -0.24 | G18: 1.355 | K18: Not Yet Filed Not Yet Filed | M18: 2015-002 (10/15) 2013-004 (10/13) | N18: -15.0% -11.8%
A19: Georgia | B19: 2015-10-01 | C19: 2015-002 (10/15) | D19: -0.15 | E19: 0 | F19: -0.15 | G19: 1.623 | K19: Pending | M19: 2015-001 | N19: -0.15 | Q19: 1.623
A20: Hawaii* | B20: 2011-10-01 | C20: HIB Pub. No. 110040 | D20: -0.168 | E20: 0 | F20: -0.168 | G20: 1.773 | K20: Pending | L20: 2014-09-01 | M20: HIB Pub 130022, 130054 | N20: -0.168 | O20: 0 | P20: -0.168 | Q20: 1.773
A21: Idaho | B21: 2015-10-01 | C21: 2015-002 (10/15) | D21: -0.15 | E21: 0 | F21: -0.15 | G21: 1.656 | K21: Pending | M21: 2015-001 | N21: -0.15 | Q21: 1.656
A22: Illinois* | B22: 2012-01-16 | C22: 2011-012 (10/11) | D22: -0.168 | E22: 0 | F22: -0.168 | G22: 1.634 | K22: Not Yet Filed Not Yet Filed | M22: 2015-002 (10/15) 2013-004 (10/13) | N22: -15.0% -11.8%
A23: Indiana | B23: 2015-10-01 | C23: 2015-002 (10/15) | D23: -0.15 | E23: 0 | F23: -0.15 | G23: 1.634 | K23: Pending | M23: 2015-001 | N23: -0.15 | Q23: 1.634
A24: Iowa | B24: 2015-10-01 | C24: 2015-002 (10/15) | D24: -0.15 | E24: 0 | F24: -0.15 | G24: 1.634 | K24: Pending | M24: 2015-001 | N24: -0.15 | Q24: 1.634
A25: Kansas | B25: 2015-10-01 | C25: 2015-002 (10/15) | D25: -0.15 | E25: 0 | F25: -0.15 | G25: 1.634 | K25: Pending | M25: 2015-001 | N25: -0.15 | Q25: 1.634
A26: Kentucky | B26: 2015-10-01 | C26: 2015-002 (10/15) | D26: -0.15 | E26: 0 | F26: -0.15 | G26: 1.843 | K26: Pending | M26: 2015-001 | N26: -0.15 | Q26: 1.843
A27: Louisiana*# | B27: 2000-01-01 | C27: 97-14/43 (9/1997) | D27: 0 | E27: -0.217 | F27: -0.217 | G27: 1.681 | K27: Not Yet Filed Not Yet Filed | M27: 2015-002 (10/15) 2013-004 (10/13) | N27: -15.0% -11.8%
A28: Maine | B28: 2015-10-01 | C28: 2015-002 (10/15) | D28: -0.15 | E28: 0 | F28: -0.15 | G28: 1.634 | K28: Pending | M28: 2015-001 | N28: -0.15 | Q28: 1.634
A29: Maryland | B29: 2015-10-01 | C29: 2015-002 (10/15) | D29: -0.15 | E29: 0 | F29: -0.15 | G29: 1.634 | K29: Pending | M29: 2015-001 | N29: -0.15 | Q29: 1.634
A30: Massachusetts* | B30: 2012-06-25 | C30: 2010-012 (10/11) | D30: -0.168 | E30: 0 | F30: -0.168 | G30: 1.61 | K30: Not Yet Filed Not Yet Filed | M30: 2015-002 (10/15) 2013-004 (10/13) | N30: -15.0% -11.8%
A31: Michigan | B31: 2015-10-01 | C31: 2015-002 (10/15) | D31: -0.15 | E31: 0 | F31: -0.15 | G31: 1.616 | K31: Pending | M31: 2015-001 | N31: -0.15 | Q31: 1.616
A32: Minnesota* | B32: 2015-10-01 | C32: 2015-002 (10/15) | D32: -0.15 | E32: 0 | F32: -0.15 | G32: 1.634 | K32: Pending | M32: 2015-001 | N32: -0.15 | Q32: 1.634
A33: Mississippi | B33: 2015-10-01 | C33: 2015-002 (10/15) | D33: -0.15 | E33: 0 | F33: -0.15 | G33: 1.669 | K33: Pending | M33: 2015-001 | N33: -0.15 | Q33: 1.669
A34: Missouri | B34: 2015-10-01 | C34: 2015-002 (10/15) | D34: -0.15 | E34: 0 | F34: -0.15 | G34: 1.634 | K34: Pending | M34: 2015-001 | N34: -0.15 | Q34: 1.634
A35: Montana | B35: 2015-10-01 | C35: 2015-002 (10/15) | D35: -0.15 | E35: 0 | F35: -0.15 | G35: 1.656 | K35: Pending | M35: 2015-001 | N35: -0.15 | Q35: 1.656
A36: Nebraska | B36: 2015-10-01 | C36: 2015-002 (10/15) | D36: -0.15 | E36: 0 | F36: -0.15 | G36: 1.608 | K36: Pending | M36: 2015-001 | N36: -0.15 | Q36: 1.608
A37: Nevada | B37: 2015-10-01 | C37: 2015-002 (10/15) | D37: -0.15 | E37: 0 | F37: -0.15 | G37: 1.675 | K37: Pending | M37: 2015-001 | N37: -0.15 | Q37: 1.675
A38: New Hampshire | B38: 2015-10-01 | C38: 2015-002 (10/15) | D38: -0.15 | E38: 0 | F38: -0.15 | G38: 1.634 | K38: Pending | M38: 2015-001 | N38: -0.15 | Q38: 1.634
A39: New Jersey | B39: 2015-10-01 | C39: 2015-002 (10/15) | D39: -0.15 | E39: 0 | F39: -0.15 | G39: 1.639 | K39: Pending | M39: 2015-001 | N39: -0.15 | Q39: 1.639
A40: New Mexico | B40: 2015-10-01 | C40: 2015-002 (10/15) | D40: -0.15 | E40: 0 | F40: -0.15 | G40: 1.661 | K40: Pending | M40: 2015-001 | N40: -0.15 | Q40: 1.661
A41: New York* | B41: 2014-04-01 | C41: 2013-008 (11/13) | D41: -0.451 | E41: 0.082 | F41: -0.406 | G41: 1.748 | K41: Not Yet Filed Not Yet Filed | M41: 2015-002 (10/15) 2013-004 (10/13) | N41: -15.0% -11.8%
A42: North Carolina | B42: 2015-10-01 | C42: 2015-002 (10/15) | D42: -0.15 | E42: 0 | F42: -0.15 | G42: 1.637 | K42: Pending | M42: 2015-001 | N42: -0.15 | Q42: 1.637
A43: North Dakota | B43: 2015-10-01 | C43: 2015-002 (10/15) | D43: -0.15 | E43: 0 | F43: -0.15 | G43: 1.629 | K43: Pending | M43: 2015-001 | N43: -0.15 | Q43: 1.629
A44: Ohio | B44: 2015-10-01 | C44: 2015-002 (10/15) | D44: -0.15 | E44: 0 | F44: -0.15 | G44: 1.647 | K44: Pending | M44: 2015-001 | N44: -0.15 | Q44: 1.647
A45: Oklahoma | B45: 2015-10-01 | C45: 2015-002 (10/15) | D45: -0.15 | E45: 0 | F45: -0.15 | G45: 1.642 | K45: Pending | M45: 2015-001 | N45: -0.15 | Q45: 1.642
A46: Oregon | B46: 2015-10-01 | C46: 2015-002 (10/15) | D46: -0.15 | E46: 0 | F46: -0.15 | G46: 1.642 | K46: Pending | M46: 2015-001 | N46: -0.15 | Q46: 1.642
A47: Pennsylvania | B47: 2015-10-01 | C47: 2015-002 (10/15) | D47: -0.15 | E47: 0 | F47: -0.15 | G47: 1.634 | K47: Pending | M47: 2015-001 | N47: -0.15 | Q47: 1.634
A48: Rhode Island | B48: 2015-10-01 | C48: 2015-002 (10/15) | D48: -0.15 | E48: 0 | F48: -0.15 | G48: 1.634 | K48: Pending | M48: 2015-001 | N48: -0.15 | Q48: 1.634
A49: South Carolina | B49: 2015-11-01 | C49: 2015-006 (11/15) | D49: -0.15 | E49: 0 | F49: -0.15 | G49: 1.634 | P49: -0.15 | Q49: 1.634
A50: South Dakota | B50: 2015-10-01 | C50: 2015-002 (10/15) | D50: -0.15 | E50: 0 | F50: -0.15 | G50: 1.647 | K50: Pending | M50: 2015-001 | N50: -0.15 | Q50: 1.647
A51: Tennessee | B51: 2015-10-01 | C51: 2015-002 (10/15) | D51: -0.15 | E51: 0 | F51: -0.15 | G51: 1.647 | K51: Pending | M51: 2015-001 | N51: -0.15 | Q51: 1.647
A52: Texas* | B52: 2012-02-06 | C52: 2011-006/012 (10/11) | D52: -0.168 | E52: 0 | F52: -0.168 | G52: 1.406 | K52: Not Yet Filed Not Yet Filed | M52: 2015-005 (10/15) 2013-004 (10/13) | N52: -15.0% -11.8% | R52: AHAC, AIG AC, AIG PCC, C&I, GSIC, INIC, NUFIC, NHIC, ISOP
A53: Utah | B53: 2015-10-01 | C53: 2015-002 (10/15) | D53: -0.15 | E53: 0 | F53: -0.15 | G53: 1.642 | K53: Pending | M53: 2015-001 | N53: -0.15 | Q53: 1.642
A54: Vermont | B54: 2015-10-01 | C54: 2015-002 (10/15) | D54: -0.15 | E54: 0 | F54: -0.15 | G54: 1.634 | K54: Pending | M54: 2015-001 | N54: -0.15 | Q54: 1.634
A55: Virginia | B55: 2015-10-01 | C55: 2015-002 (10/15) | D55: -0.15 | E55: 0 | F55: -0.15 | G55: 1.642 | K55: Pending | M55: 2015-001 | N55: -0.15 | Q55: 1.642
A56: Washington | B56: 2015-10-01 | C56: 2015-002 (10/15) | D56: -0.15 | E56: 0 | F56: -0.15 | G56: 1.905 | K56: Pending | M56: 2015-001 | N56: -0.15 | Q56: 1.905
A57: West Virginia | B57: 2015-10-01 | C57: 2015-002 (10/15) | D57: -0.15 | E57: 0 | F57: -0.15 | G57: 1.639 | K57: Pending | M57: 2015-001 | N57: -0.15 | Q57: 1.639
A58: Wisconsin | B58: 2015-10-01 | C58: 2015-002 (10/15) | D58: -0.15 | E58: 0 | F58: -0.15 | G58: 1.634 | K58: Pending | M58: 2015-001 | N58: -0.15 | Q58: 1.634
A59: Wyoming | B59: 2015-10-01 | C59: 2015-002 (10/15) | D59: -0.15 | E59: 0 | F59: -0.15 | G59: 1.603 | K59: Pending | M59: 2015-001 | N59: -0.15 | Q59: 1.603
A62: * LCM cannot be placed on file for future revisions. | O62: + AIP, AIU LC filings not maintained after 4/2009
B63: # NY Cos. Were effective on 1/1/00. | D63: 0 | E63: -0.217 | F63: -0.217 | G63: 1.681
C64: 9/5/07 NY Co. & NH Co. pages were combined as the only difference between the two groupings is that NH Cos. Have an additional rating plan designed by HSB.

Sheet FIDELITY
A1: FIDELITY (SFAA Program) LOSS COST FILING STATUS | G1: POOLED COMPANIES | Q1: As of: | R1: =TODAY() -> 2018-10-02
R2: (data not updated since 07/07/14)
A3: CURRENT: | G3: PENDING:
C5: Loss | G5: Actuarial | L5: Proposed/ | M5: Loss
B6: Effective | C6: Cost | D6: Expense | E6: Overall | F6: Loss Cost | G6: Support | K6: Pending/ | L6: Effective | M6: Cost | N6: Expense | P6: Overall | Q6: Loss Cost
A7: State | B7: Date | C7: Change | D7: Change | E7: Change | F7: Multiplier | G7: Prepared | K7: Approved | L7: Date | M7: Change | N7: Change | P7: Change | Q7: Multiplier | R7: Companies Filed
A9: ALABAMA | B9: 2004-06-01 | C9: 0.073 | D9: 0 | E9: 0.073 | F9: 1.412 | R9: NHIC/GSIC/AHAC/NUFIC/ISOP/C&I/AIG AC
A10: ALASKA | B10: 2004-06-01 | C10: 0.073 | D10: 0 | E10: 0.073 | F10: 1.41 | R10: NHIC/GSIC/INIC/AIG PCC/AHAC/NUFIC/ISOP/C&I/AIG AC
A11: ARIZONA | B11: 2004-06-17 | C11: 0.073 | D11: 0 | E11: 0.073 | F11: 1.397 | R11: NHIC/GSIC/AHAC/NUFIC/ISOP/C&I/AIG PCC
A12: ARKANSAS | B12: 2004-06-01 | C12: 0.073 | D12: 0 | E12: 0.073 | F12: 1.406 | R12: NHIC/GSIC/AHAC/NUFIC/ISOP/C&I
A13: CALIFORNIA * | B13: 2014-08-25 | R13: NHIC/GSIC/AHAC/NUFIC/ISOP/C&I/BF
A14: COLORADO | B14: 2004-09-01 | C14: 0.073 | D14: 0 | E14: 0.073 | F14: 1.401 | R14: NHIC/GSIC/AIP/AIG AC/AHAC/NUFIC/ISOP/C&I/AIG PCC
A15: CONNECTICUT | B15: 2004-06-01 | C15: 0.073 | D15: 0 | E15: 0.073 | F15: 1.393 | R15: NHIC/GSIC/AHAC/NUFIC/ISOP/C&I/AIG AC
A16: DELAWARE | B16: 2004-08-19 | C16: 0.073 | D16: 0 | E16: 0.076 | F16: 1.401 | R16: NHIC/AHAC/NUFIC/ISOP/C&I/AIG AC
A17: DIST.OF COL. | B17: 2004-06-01 | C17: 0.073 | D17: 0 | E17: 0.073 | F17: 1.403 | R17: NHIC/GSIC/AIG PCC/AHAC/NUFIC/ISOP/C&I/AIG AC
A18: FLORIDA * | B18: 2004-08-01 | C18: 0.073 | D18: -0.024 | E18: 0.047 | F18: 1.284 | R18: NHIC/GSIC/AHAC/NUFIC/ISOP/C&I/AIG AC
A19: GEORGIA | B19: 2004-09-23 | C19: 0.073 | D19: 0 | E19: 0.073 | F19: 1.439 | R19: NHIC/GSIC/AIG PCC/AHAC/NUFIC/ISOP/C&I/AIG AC
A20: HAWAII * | B20: 2005-04-01 | C20: 0.073 | D20: 0 | E20: 0.073 | F20: 1.362 | R20: NHIC/GSIC/AHAC/NUFIC/ISOP/C&I/AIG AC
A21: IDAHO | B21: 2004-06-01 | C21: 0.073 | D21: 0 | E21: 0.073 | F21: 1.412 | R21: NHIC/GSIC/INIC/AHAC/NUFIC/ISOP/C&I/AIG AC
A22: ILLINOIS * | B22: 2004-08-01 | C22: 0.073 | D22: 0 | E22: 0.073 | F22: 1.397 | R22: NHIC/GSIC/INIC/AHAC/NUFIC/ISOP/C&I/AIG AC
A23: INDIANA | B23: 2004-06-28 | C23: 0.073 | D23: 0 | E23: 0.073 | F23: 1.397 | R23: NHIC/GSIC/INIC/AHAC/NUFIC/ISOP/C&I/AIG AC
A24: IOWA | B24: 2004-06-01 | C24: 0.073 | D24: 0 | E24: 0.073 | F24: 1.395 | R24: NHIC/GSIC/INIC/AHAC/NUFIC/ISOP/C&I/AIG AC
A25: KANSAS | B25: 1999-02-15 | C25: -0.032 | D25: 0.118 | E25: 0.082 | F25: 1.397 | R25: NHIC/GSIC/AHAC/NUFIC/ISOP/C&I/AIG AC
A26: KENTUCKY * | B26: 2004-06-01 | C26: 0.073 | D26: 0 | E26: 0.073 | F26: 1.635 | R26: NHIC/GSIC/AIG PCC/INIC/AHAC/NUFIC/ISOP/C&I/AIG AC
A27: LOUISIANA * + | B27: 2004-11-01 | C27: 0.039 | D27: -0.083 | E27: -0.047 | F27: 1.119 | R27: NHIC/GSIC/AHAC/NUFIC/ISOP/C&I/AIG AC
A28: MAINE | B28: 2004-06-01 | C28: 0.073 | D28: 0 | E28: 0.073 | F28: 1.397 | R28: NHIC/GSIC/INIC/AHAC/NUFIC/ISOP
A29: MARYLAND | B29: 2004-06-01 | C29: 0.073 | D29: 0 | E29: 0.073 | F29: 1.397 | R29: NHIC/GSIC/AIG PCC/INIC/AHAC/NUFIC/ISOP/C&I/AIG AC
A30: MASSACHUSETTS * | B30: 2004-09-01 | C30: 0.012 | D30: 0 | E30: 0.012 | F30: 1.403 | R30: NHIC/GSIC/AHAC/NUFIC/ISOP/C&I
A31: MICHIGAN | B31: 2004-06-01 | C31: 0.073 | D31: 0 | E31: 0.073 | F31: 1.383 | R31: NHIC/GSIC/INIC/AHAC/NUFIC/ISOP/C&I/AIG AC
A32: MINNESOTA * | B32: 2004-06-01 | C32: 0.073 | D32: 0 | E32: 0.073 | F32: 1.366 | R32: NHIC/GSIC/AHAC/NUFIC/ISOP/C&I/AIG AC
A33: MISSISSIPPI | B33: 2004-06-01 | C33: 0.073 | D33: 0 | E33: 0.073 | F33: 1.416 | R33: NHIC/GSIC/AIG PCC/AHAC/NUFIC/ISOP/C&I/AIG AC
A34: MISSOURI | B34: 2004-06-01 | C34: 0.073 | D34: 0 | E34: 0.073 | F34: 1.397 | R34: NHIC/GSIC/INIC/AHAC/NUFIC/ISOP/C&I/AIG AC
A35: MONTANA | B35: 2004-06-01 | C35: 0.073 | D35: 0 | E35: 0.073 | F35: 1.412 | R35: NHIC/GSIC/INIC/AIG PCC/AHAC/NUFIC/ISOP/C&I/AIG AC
A36: NEBRASKA | B36: 2004-06-14 | C36: 0.073 | D36: 0 | E36: 0.073 | F36: 1.377 | R36: NHIC/GSIC/INIC/AHAC/NUFIC/ISOP/C&I/AIG AC
A37: NEVADA | B37: 2004-06-01 | C37: 0.073 | D37: 0 | E37: 0.073 | F37: 1.427 | R37: NHIC/GSIC/INIC/AHAC/NUFIC/ISOP/C&I/AIG AC
A38: NEW HAMPSHIRE | B38: 2004-06-01 | C38: 0.073 | D38: 0 | E38: 0.073 | F38: 1.397 | R38: NHIC/GSIC/INIC/AIS/AHAC/NUFIC/ISOP/C&I/AIG AC
A39: NEW JERSEY | B39: 1998-09-01 | C39: -0.032 | D39: 0.029 | E39: -0.004 | F39: 1.401 | R39: NHIC/GSIC/INIC/AHAC/NUFIC/ISOP/C&I
A40: NEW MEXICO * | B40: 2004-07-07 | C40: 0.073 | D40: 0.025 | E40: 0.1 | F40: 1.42 | R40: NHIC/GSIC/INIC/AIG PCC/AHAC/NUFIC/ISOP/C&I/AIG AC
A41: NEW YORK * | B41: 2012-10-01 | C41: 0 | D41: 0 | E41: 0 | F41: 1.372 | R41: NHIC/GSIC/INIC/AHAC/NUFIC/ISOP/C&I/AIG AC
A42: NORTH CAROLINA | B42: 2004-06-01 | C42: 0.073 | D42: 0 | E42: 0.073 | F42: 1.393 | R42: NHIC/GSIC/AIG PCC/AHAC/NUFIC/ISOP/C&I/AIG AC
A43: NORTH DAKOTA | B43: 2004-06-01 | C43: 0.073 | D43: 0 | E43: 0.073 | F43: 1.393 | R43: NHIC/GSIC/INIC/AIG PCC/AHAC/NUFIC/ISOP/C&I/AIG AC
A44: OHIO | B44: 2004-06-01 | C44: 0.073 | D44: 0 | E44: 0.073 | F44: 1.406 | R44: NHIC/GSIC/INIC/AHAC/NUFIC/ISOP/C&I/AIG AC
A45: OKLAHOMA | B45: 2004-06-01 | C45: 0.073 | D45: 0 | E45: 0.073 | F45: 1.401 | R45: GSIC/AIG PCC/AHAC/NUFIC/ISOP/C&I/AIG AC
A46: OREGON | B46: 2004-06-01 | C46: 0.073 | D46: 0 | E46: 0.073 | F46: 1.403 | R46: NHIC/GSIC/AHAC/NUFIC/ISOP/C&I/AIG AC
A47: PENNSYLVANIA | B47: 2004-06-01 | C47: 0.073 | D47: 0 | E47: 0.073 | F47: 1.397 | R47: NHIC/GSIC/AIG PCC/AHAC/NUFIC/ISOP/C&I/AIG AC
A48: RHODE ISLAND | B48: 1998-09-01 | C48: -0.032 | D48: 0.14 | E48: 0.104 | F48: 1.397 | R48: NHIC/GSIC/INIC/AIG PCC/AHAC/NUFIC/ISOP/C&I/AIG AC
A49: SOUTH CAROLINA | B49: 2004-06-01 | C49: 0.073 | D49: 0 | E49: 0.073 | F49: 1.412 | R49: NHIC/GSIC/AIG PCC/AHAC/NUFIC/ISOP/C&I/AIG AC
A50: SOUTH DAKOTA | B50: 2004-06-01 | C50: 0.073 | D50: 0 | E50: 0.073 | F50: 1.406 | R50: NHIC/GSIC/INIC/AHAC/NUFIC/ISOP/C&I/AIG AC
A51: TENNESSEE | B51: 2004-06-01 | C51: 0.073 | D51: 0 | E51: 0.073 | F51: 1.406 | R51: NHIC/GSIC/AHAC/NUFIC/ISOP/C&I
A52: TEXAS * | B52: 2004-11-01 | C52: 0.073 | D52: -0.023 | E52: 0.048 | F52: 1.311 | R52: NHIC/GSIC/INIC/AHAC/NUFIC/ISOP/C&I/AIG AC
A53: UTAH | B53: 2004-06-01 | C53: 0.073 | D53: 0 | E53: 0.073 | F53: 1.403 | R53: NHIC/GSIC/INIC/AHAC/NUFIC/ISOP/C&I/AIG AC
A54: VERMONT | B54: 2004-06-01 | C54: 0.073 | D54: 0 | E54: 0.073 | F54: 1.397 | R54: NHIC/GSIC/INIC/AHAC/NUFIC/ISOP/C&I/AIG AC
A55: VIRGINIA | B55: 2004-06-01 | C55: 0.073 | D55: 0 | E55: 0.073 | F55: 1.403 | R55: NHIC/GSIC/AHAC/NUFIC/ISOP/C&I/AIG AC
A56: WASHINGTON | B56: 2004-07-01 | C56: 0.073 | D56: 0 | E56: 0.073 | F56: 1.453 | R56: NHIC/GSIC/AHAC/NUFIC/ISOP/C&I/AIG AC
A57: WEST VIRGINIA | B57: 2004-06-01 | C57: 0.073 | D57: 0 | E57: 0.073 | F57: 1.416 | R57: NHIC/GSIC/INIC/AHAC/NUFIC/ISOP/C&I/AIG AC
A58: WISCONSIN | B58: 2004-06-01 | C58: 0.073 | D58: 0 | E58: 0.073 | F58: 1.397 | R58: NHIC/GSIC/AHAC/NUFIC/ISOP/C&I/AIG AC
A59: WYOMING | B59: 1998-09-01 | C59: -0.032 | D59: 0.073 | E59: 0.039 | F59: 1.374 | R59: NHIC/GSIC/INIC/AHAC/NUFIC/ISOP/C&I/AIG AC
R62: LIC LC filings not maintained after 4/2009

Sheet SURETY
A1: SURETY (SFAA Program) LOSS COST FILING STATUS | F1: POOLED COMPANIES | P1: As of: | Q1: =TODAY() -> 2018-10-02
Q2: (data not updated since 07/07/14)
A3: CURRENT: | G3: PENDING:
C5: Loss | F5: Loss | G5: Actuarial | L5: Proposed/ | M5: Loss | Q5: Loss
B6: Effective | C6: Cost | D6: Expense | E6: Overall | F6: Cost | G6: Support | K6: Pending/ | L6: Effective | M6: Cost | N6: Expense | P6: Overall | Q6: Cost
A7: State | B7: Date | C7: Change | D7: Change | E7: Change | F7: Multiplier | G7: Prepared | K7: Approved | L7: Date | M7: Change | N7: Change | P7: Change | Q7: Multiplier
A9: ALABAMA | B9: 2005-09-01 | C9: 0.005 | D9: 0 | E9: 0.005 | F9: 1.453
A10: ALASKA | B10: 2004-07-01 | C10: 0.147 | D10: 0 | E10: 0.147 | F10: 1.453
A11: ARIZONA | B11: 2005-09-01 | C11: 0.005 | D11: 0 | E11: 0.005 | F11: 1.453
A12: ARKANSAS | B12: 2005-09-01 | C12: 0.005 | D12: 0 | E12: 0.005 | F12: 1.453
A13: CALIFORNIA | B13: 2014-08-25 | E13: -0.4 | F13: 1.453
A14: COLORADO | B14: 2005-09-01 | C14: 0.005 | D14: 0 | E14: 0.005 | F14: 1.453
A15: CONNECTICUT | B15: 2005-09-01 | C15: 0.005 | D15: 0 | E15: 0.005 | F15: 1.453
A16: DELAWARE * | B16: 2005-10-01 | C16: 0.005 | D16: 0 | E16: 0.005 | F16: 1.453
A17: DIST. OF COLUMBIA | B17: 2005-09-01 | C17: 0.005 | D17: 0 | E17: 0.005 | F17: 1.453
A18: FLORIDA * | B18: 1995-10-01 | E18: -0.381 | F18: 1.499
A19: GEORGIA | B19: 2005-09-20 | C19: 0.005 | D19: 0 | E19: 0.005 | F19: 1.453
A20: HAWAII * | B20: 2012-06-25 | C20: -0.043 | D20: 0 | E20: -0.043 | F20: 1.453
A21: IDAHO | B21: 2005-09-01 | C21: 0.005 | D21: 0 | E21: 0.005 | F21: 1.453
A22: ILLINOIS * | B22: 2006-01-01 | C22: 0.005 | D22: 0 | E22: 0.005 | F22: 1.453
A23: INDIANA | B23: 2005-09-01 | C23: 0.005 | D23: 0 | E23: 0.005 | F23: 1.453
A24: IOWA | B24: 2005-09-01 | C24: 0.005 | D24: 0 | E24: 0.005 | F24: 1.56
A25: KANSAS | B25: 2006-01-01 | C25: 0.017 | D25: 0 | E25: 0.017 | F25: 1.453
A26: KENTUCKY * | B26: 2005-09-01 | C26: 0.005 | D26: 0 | E26: 0.005 | F26: 1.836
A27: LOUISIANA * | B27: 2005-11-01 | C27: 0.005 | D27: 0 | E27: 0.005 | F27: 1.453
A28: MAINE | B28: 2005-09-01 | C28: 0.005 | D28: 0 | E28: 0.005 | F28: 1.453
A29: MARYLAND | B29: 2005-09-01 | C29: 0.005 | D29: 0 | E29: 0.005 | F29: 1.453
A30: MASSACHUSETTS * | B30: 2005-10-01 | C30: 0.005 | D30: 0 | E30: 0.005 | F30: 1.453
A31: MICHIGAN | B31: 2005-09-01 | C31: 0.005 | D31: 0 | E31: 0.005 | F31: 1.453
A32: MINNESOTA * | B32: 2005-09-01 | C32: 0.005 | D32: 0 | E32: 0.005 | F32: 1.453
A33: MISSISSIPPI | B33: 2005-09-01 | C33: 0.005 | D33: 0 | E33: 0.005 | F33: 1.453
A34: MISSOURI | B34: 2005-09-01 | C34: 0.005 | D34: 0 | E34: 0.005 | F34: 1.453
A35: MONTANA | B35: 2005-09-01 | C35: 0.005 | D35: 0 | E35: 0.005 | F35: 1.453
A36: NEBRASKA | B36: 2005-09-01 | C36: 0.005 | D36: 0 | E36: 0.005 | F36: 1.453
A37: NEVADA | B37: 2005-09-01 | C37: 0.005 | D37: 0 | E37: 0.005 | F37: 1.453
A38: NEW HAMPSHIRE | B38: 2005-09-01 | C38: 0.005 | D38: 0 | E38: 0.005 | F38: 1.453
A39: NEW JERSEY | B39: 2006-01-01 | C39: 0.017 | D39: 0 | E39: 0.017 | F39: 1.453
A40: NEW MEXICO * | B40: 2004-06-01 | C40: 0.012 | D40: 0 | E40: 0.012 | F40: 1.453
A41: NEW YORK * | B41: 2005-04-20 | C41: 0.012 | D41: 0.016 | E41: 0.028 | F41: 1.433
A42: NORTH CAROLINA | B42: 2005-09-01 | C42: 0.005 | D42: 0 | E42: 0.005 | F42: 1.52
A43: NORTH DAKOTA | B43: 2005-09-01 | C43: 0.005 | D43: 0 | E43: 0.005 | F43: 1.453
A44: OHIO | B44: 2005-09-01 | C44: 0.005 | D44: 0 | E44: 0.005 | F44: 1.453
A45: OKLAHOMA | B45: 2005-09-01 | C45: 0.005 | D45: 0 | E45: 0.005 | F45: 1.572
A46: OREGON | B46: 2005-09-01 | C46: 0.005 | D46: 0 | E46: 0.005 | F46: 1.453
A47: PENNSYLVANIA | B47: 2005-09-01 | C47: 0.005 | D47: 0 | E47: 0.005 | F47: 1.453
A48: RHODE ISLAND | B48: 2006-01-01 | C48: 0.017 | D48: 0 | E48: 0.017 | F48: 1.453
A49: SOUTH CAROLINA | B49: 2005-10-13 | C49: 0.005 | D49: 0 | E49: 0.005 | F49: 1.453
A50: SOUTH DAKOTA | B50: 2005-09-01 | C50: 0.005 | D50: 0 | E50: 0.005 | F50: 1.453
A51: TENNESSEE | B51: 2005-09-01 | C51: 0.005 | D51: 0 | E51: 0.005 | F51: 1.453
A52: TEXAS *
A53: UTAH | B53: 2005-09-01 | C53: 0.005 | D53: 0 | E53: 0.005 | F53: 1.453
A54: VERMONT | B54: 2005-09-01 | C54: 0.005 | D54: 0 | E54: 0.005 | F54: 1.453
A55: VIRGINIA | B55: 2005-09-01 | C55: 0.012 | D55: 0 | E55: 0.012 | F55: 1.453
A56: WASHINGTON | B56: 2005-09-01 | C56: 0.005 | D56: 0 | E56: 0.005 | F56: 1.41
A57: WEST VIRGINIA | B57: 2005-09-01 | C57: 0.005 | D57: 0 | E57: 0.005 | F57: 1.453
A58: WISCONSIN | B58: 2005-09-01 | C58: 0.005 | D58: 0 | E58: 0.005 | F58: 1.453
A59: WYOMING | B59: 2006-01-01 | C59: 0.017 | D59: 0 | E59: 0.017 | F59: 1.453

Sheet SUR-DEVS
F1: As of: | G1: =TODAY() -> 2018-10-02
A2: * * * * * * * * * * * SURETY LOSS COST MODIFICATIONS * * * * * * * * * * *
A4: State | C4: Sub-Standard | E4: Standard | G4: Preferred
A6: ALABAMA | C6: ISOP / C&I +50% , NUFIC +10% | E6: AIG PCC / NHIC | G6: AHAC -10%
A7: ALASKA | C7: ISOP / C&I +50% , NUFIC +10% | E7: AIG PCC / NHIC | G7: AHAC -10%
A8: ARIZONA | C8: ISOP / C&I +50% , NUFIC +10% | E8: AIG PCC / NHIC | G8: AHAC -10%
A9: ARKANSAS | C9: ISOP / C&I +50% , NUFIC +10% | E9: AIG PCC / NHIC | G9: AHAC -10%
A10: CALIFORNIA | C10: ISOP / C&I +50% , NUFIC +10% | G10: AHAC -10%
A11: COLORADO | C11: ISOP / C&I +50% , NUFIC +10% | E11: AIG PCC / NHIC | G11: AHAC -10%
A12: CONNECTICUT | C12: ISOP / C&I +50% , NUFIC +10% | E12: AIG PCC / AIG AC / NHIC | G12: AHAC -10%
A13: DELAWARE | C13: ISOP / C&I +50% , NUFIC +10% | E13: AIG PCC / NHIC | G13: AHAC -10%
A14: DIST. OF COLUMBIA | C14: ISOP / C&I +50% , NUFIC +10% | E14: AIG PCC / NHIC | G14: AHAC -10%
A15: FLORIDA | C15: ISOP / C&I +50% , NUFIC +10% | E15: AIG PCC / NHIC | G15: AHAC -10%
A16: GEORGIA | C16: ISOP / C&I +50% , NUFIC +10% | E16: AIG PCC / NHIC | G16: AHAC -10%
A17: HAWAII | C17: ISOP / C&I +50% , NUFIC +10% | E17: NHIC | G17: AHAC -10%
A18: IDAHACO | C18: ISOP / C&I +50% , NUFIC +10% | E18: AIG PCC / GSIC / NHIC | G18: AHAC -10%
A19: ILLINOIS | C19: ISOP / C&I +50% , NUFIC +10% | E19: AIG PCC / GSIC / INIC / NHIC | G19: AHAC -10%
A20: INDIANA | C20: ISOP / C&I +50% , NUFIC +10% | E20: AIG PCC / NHIC | G20: AHAC -10%
A21: IOWA | C21: ISOP / C&I +50% , NUFIC +10% | E21: AIG PCC / NHIC | G21: AHAC -10%
A22: KANSAS | C22: ISOP / C&I +50% , NUFIC +10% | E22: AIG PCC / NHIC | G22: AHAC -10%
A23: KENTUCKY | C23: ISOP / C&I +50% , NUFIC +10% | E23: AIG PCC / AIG AC / GSIC / INIC / NHIC | G23: AHAC -10%
A24: LOUISIANA | C24: ISOP / C&I +50% , NUFIC +10% | G24: AHAC -10%
A25: MAINE | C25: ISOP / C&I +50% , NUFIC +10% | E25: AIG PCC / NHIC | G25: AHAC -10%
A26: MARYLAND | C26: ISOP / C&I +50% , NUFIC +10% | E26: AIG PCC / NHIC | G26: AHAC -10%
A27: MASSACHUSETTS | C27: ISOP / C&I +50% , NUFIC +10% | E27: NHIC | G27: AHAC -10%
A28: MICHIGAN | C28: ISOP / C&I +50% , NUFIC +10% | E28: AIG PCC | G28: AHAC -10%
A29: MINNESOTA | C29: ISOP / C&I +50% , NUFIC +10% | E29: AIG PCC / NHIC | G29: AHAC -10%
A30: MISSISSIPPI | C30: ISOP / C&I +50% , NUFIC +10% | E30: AIG PCC / NHIC | G30: AHAC -10%
A31: MISSOURI | C31: ISOP / C&I +50% , NUFIC +10% | E31: AIG PCC | G31: AHAC -10%
A32: MONTANA | C32: ISOP / C&I +50% , NUFIC +10% | E32: AIG PCC / NHIC | G32: AHAC -10%
A33: NEBRASKA | C33: ISOP / C&I +50% , NUFIC +10% | E33: AIG PCC / NHIC | G33: AHAC -10%
A34: NEVADA | C34: ISOP / C&I +50% , NUFIC +10% | E34: AIG PCC / NHIC | G34: AHAC -10%
A35: NEW HAMPSHIRE | C35: ISOP / C&I +50% , NUFIC +10% | E35: AIG PCC / AIG AC / GSIC / INIC / NHIC | G35: AHAC -10%
A36: NEW JERSEY | C36: ISOP / C&I +50% , NUFIC +10% | G36: AHAC -10%
A37: NEW MEXICO | C37: ISOP / C&I +50% , NUFIC +10% | E37: AIG PCC | G37: AHAC -10%
A38: NEW YORK | C38: ISOP / C&I +50% , NUFIC +10% | G38: AHAC -10%
A39: NORTH CAROLINA | C39: ISOP / C&I +50% , NUFIC +10% | E39: AIG PCC / AIG AC / NHIC | G39: AHAC -10%
A40: NORTH DAKOTA | C40: ISOP / C&I +50% , NUFIC +10% | E40: AIG PCC / NHIC | G40: AHAC -10%
A41: OHIO | C41: ISOP / C&I +50% , NUFIC +10% | E41: AIG PCC / AIG AC / GSIC / INIC | G41: AHAC -10%
A42: OKLAHACOMA | C42: ISOP / C&I +50% , NUFIC +10% | E42: AIG PCC | G42: AHAC -10%
A43: OREGON | C43: ISOP / C&I +50% , NUFIC +10% | E43: AIG PCC / NHIC | G43: AHAC -10%
A44: PENNSYLVANIA | C44: ISOP / C&I +50% , NUFIC +10% | E44: AIG PCC / NHIC | G44: AHAC -10%
A45: RHODE ISLAND | C45: ISOP / C&I +50% , NUFIC +10% | E45: AIG PCC / NHIC | G45: AHAC -10%
A46: SORTH CAROLINA | C46: ISOP / C&I +50% , NUFIC +10% | E46: AIG PCC / NHIC | G46: AHAC -10%
A47: SOUTH DAKOTA | C47: ISOP / C&I +50% , NUFIC +10% | E47: AIG PCC / NHIC | G47: AHAC -10%
A48: TENNESSEE | C48: ISOP / C&I +50% , NUFIC +10% | E48: AIG PCC / NHIC | G48: AHAC -10%
A49: TEXAS
A50: UTAH | C50: ISOP / C&I +50% , NUFIC +10% | E50: AIG PCC / NHIC | G50: AHAC -10%
A51: VERMONT | C51: ISOP / C&I +50% , NUFIC +10% | E51: AIG PCC / NHIC | G51: AHAC -10%
A52: VIRGINIA | C52: ISOP / C&I +50% , NUFIC +10% | E52: AIG PCC / NHIC | G52: AHAC -10%
A53: WASHINGTON | C53: ISOP / C&I +50% , NUFIC +10% | E53: AIG PCC / NHIC | G53: AHAC -10%
A54: WEST VIRGINIA | C54: ISOP / C&I +50% , NUFIC +10% | E54: AIG PCC / NHIC | G54: AHAC -10%
A55: WISCONSIN | C55: ISOP / C&I +50% , NUFIC +10% | E55: AIG PCC / NHIC | G55: AHAC -10%
A56: WYOMING | C56: ISOP / C&I +50% , NUFIC +10% | E56: AIG PCC / AIG AC / GSIC / INIC / NHIC | G56: AHAC -10%
E58: +AIP, AIU, LIC LC filings not maintained after 4/2009

Sheet FARM
A1: FARM LOSS COST FILING STATUS | G1: POOLED COMPANIES | P1: As of: | Q1: =TODAY() -> 2018-10-02
A3: CURRENT: | H3: PENDING:
D5: Loss | G5: Loss | H5: Actuarial | K5: Pending/ | L5: Proposed/ | N5: Loss | Q5: Loss
B6: Effective | C6: Circular #'s | D6: Cost | E6: Expense | F6: Overall | G6: Cost | H6: Support | K6: Approved/ | L6: Effective | M6: Circular #'s | N6: Cost | O6: Expense | P6: Overall | Q6: Cost
A7: State | B7: Date | C7: (Edition Date) | D7: Change | E7: Change | F7: Change | G7: Multiplier | H7: Prepared | K7: Automatic | L7: Date | M7: (Edition Date) | N7: Change | O7: Change | P7: Change | Q7: Multiplier
A9: ALABAMA | B9: 2017-06-01 | C9: 2016-091 (6/17) | D9: -0.045 | E9: 0 | F9: -0.045 | G9: 1.504
A10: ALASKA | B10: 2011-08-01 | C10: FR-2011-041 (8/11) | D10: 0 | E10: 0 | F10: 0 | G10: 1.504
A11: ARIZONA | B11: 2017-06-01 | C11: 2016-105 (6/17) | D11: -0.13 | E11: 0 | F11: -0.13 | G11: 1.504
A12: ARKANSAS | B12: 2015-06-01 | C12: 2014-075 (6/15) | D12: -0.082 | E12: 0 | F12: -0.082 | G12: 1.504
A13: CALIFORNIA * | B13: 2011-07-01 | C13: FR-2008-046 (9/09) | D13: 0 | E13: 0 | F13: 0 | G13: 1.449 | K13: Not Yet Filed Not Yet Filed Not Yet Filed Not Yet Filed | M13: 2017-029 (8/17) 2015-095 (3/16) 2013-024 (6/13) 2011-078 (10/11) | N13: -13.5% -13.7% -12.0% 6.5%
A14: COLORADO | B14: 2017-06-01 | C14: 2016-071 (6/17) | D14: -0.077 | E14: 0 | F14: -0.077 | G14: 1.504
A15: CONNECTICUT | B15: 2017-06-01 | C15: 2016-096 (6/17) | D15: -0.081 | E15: 0 | F15: -0.081 | G15: 1.504
A16: DELAWARE * | B16: 2012-06-25 | C16: FR-2011-042 (6/11) | D16: -0.046 | E16: 0 | F16: -0.046 | G16: 1.504 | K16: Not Yet Filed Not Yet Filed | M16: 2015-001 (6/15) 2016-114 (6/17) | N16: -11.3% -9.0%
A17: DIST. OF COLUMBIA | C17: ISO has not filed Farm program in DC.
A18: FLORIDA * | K18: Not Yet Filed Not Yet Filed | M18: 2017-039 (11/17) 2015-091 (12/15) | N18: -13.6% -7.8%
A19: GEORGIA | B19: 2017-06-01 | C19: 2016-108 (6/17) | D19: -0.111 | E19: 0 | F19: -0.111 | G19: 1.504
A20: HAWAII * | B20: 2012-03-26 | C20: HIB 110062 | D20: 0 | E20: 0 | F20: 0 | G20: 1.504
A21: IDAHO | B21: 2017-09-01 | C21: 2017-020 (9/17) | D21: -0.07 | E21: 0 | F21: -0.07 | G21: 1.504 | S21: Idaho RB files Property and ISO files Liability. Each filed separately
A22: ILLINOIS * | B22: 2015-09-01 | C22: 2015-013 (9/15) | D22: -0.113 | E22: 0 | F22: -0.113 | G22: 1.504
A23: INDIANA | B23: 2017-06-01 | C23: 2016-095 (6/17) | D23: -0.051 | E23: 0 | F23: -0.051 | G23: 1.504
A24: IOWA | B24: 2017-06-01 | C24: 2016-073 (6/17) | D24: -0.077 | E24: 0 | F24: -0.077 | G24: 1.504
A25: KANSAS | B25: 2017-06-01 | C25: 2016-109 (6/17) | D25: 0.085 | E25: 0 | F25: 0.085 | G25: 1.504
A26: KENTUCKY * | B26: 2015-06-01 | C26: 2012-091 (6/13) 2014-068 (6/15) | D26: -0.207563 | E26: 0 | F26: -0.208 | G26: 1.504 | K26: Not Yet Filed | M26: 2016-090 (6/17) | N26: -0.074
A27: LOUISIANA *
A28: MAINE | B28: 2017-06-01 | C28: 2016-060 (6/17) | D28: -0.058 | E28: 0 | F28: -0.058 | G28: 0
A29: MARYLAND | B29: 2017-07-01 | C29: 2017-007 (7/17) | D29: -0.122 | E29: 0 | F29: -0.122 | G29: 1.504
A30: MASSACHUSETTS * | B30: 2012-06-25 | C30: FR-2011-073 (8/11) | D30: -0.025 | E30: 0 | F30: -0.025 | G30: 1.504 | K30: Not Yet Filed Not Yet Filed Not Yet Filed Not Yet Filed | M30: 2017 -048 (02/18) 2017-037 (10/17) 2015-009 (6/15) 2013-033 (7/13) | N30: 0.0% -13.7% -13.1% -9.2%
A31: MICHIGAN | B31: 2017-06-01 | C31: 2016-106 (6/17) | D31: -0.035 | E31: 0 | F31: -0.035 | G31: 1.504
A32: MINNESOTA * | B32: 2013-06-01 | C32: 2012-059 (6/13) | D32: 0.042 | E32: 0 | F32: 0.042 | G32: 1.504
A33: MISSISSIPPI | B33: 2011-08-01 | C33: FR-2011-062 (8/11) | D33: -0.076 | E33: 0 | F33: -0.076 | G33: 1.504 | K33: Automatic | L33: 2018-07-01 | M33: 2018-004 (7/18) | N33: -0.007 | O33: 0 | P33: -0.007 | Q33: 1.504
A34: MISSOURI | B34: 2015-06-01 | C34: 2014-079 (6/15) | D34: 0.012 | E34: 0 | F34: 0.012 | G34: 1.504
A35: MONTANA | B35: 2015-06-01 | C35: 2014-099 (6/15) | D35: -0.13 | E35: 0 | F35: -0.13 | G35: 1.504
A36: NEBRASKA | B36: 2017-06-01 | C36: 2016-081 (6/17) | D36: 0.017 | E36: 0 | F36: 0.017 | G36: 1.504
A37: NEVADA | B37: 2017-06-01 | C37: 2016-066 (6/17) | D37: -0.134 | E37: 0 | F37: -0.134 | G37: 1.504
A38: NEW HAMPSHIRE | B38: 2017-06-01 | C38: 2016-107 (6/17) | D38: -0.14 | E38: 0 | F38: -0.14 | G38: 1.504
A39: NEW JERSEY | B39: 2017-06-01 | C39: 2016-100 (6/17) | D39: -0.126 | E39: 0 | F39: -0.126 | G39: 1.504
A40: NEW MEXICO | B40: 2017-06-01 | C40: 2016-093 (6/17) | D40: -0.055 | E40: 0 | F40: -0.055 | G40: 1.504
A41: NEW YORK * | B41: 2011-10-01 | C41: FR-2011-043 (8/11) | D41: 0 | E41: 0 | F41: 0 | G41: 1.504 | K41: Not Yet Filed Not Yet Filed Not Yet Filed | M41: 2015-011 (7/15) 2012-083 (9/13) 2017-016 (9/17) | N41: -11.7% -11.8% -4.9%
A42: NORTH CAROLINA | B42: 2017-06-01 | C42: 2017-003 (6/17) | D42: -0.061 | E42: 0 | F42: -0.061 | G42: 1.504
A43: NORTH DAKOTA | B43: 2017-06-01 | C43: 2016-103 (6/17) | D43: -0.027 | E43: 0 | F43: -0.027 | G43: 1.504
A44: OHIO | B44: 2017-06-01 | C44: 2016-089 (6/17) | D44: -0.1 | E44: 0 | F44: -0.1 | G44: 1.504
A45: OKLAHOMA | B45: 2017-06-01 | C45: 2017-004 (6/17) | D45: -0.086 | E45: 0 | F45: -0.086 | G45: 1.504
A46: OREGON | B46: 2017-06-01 | C46: 2016-068 (6/17) | D46: -0.099 | E46: 0 | F46: -0.099 | G46: 1.504
A47: PENNSYLVANIA | B47: 2017-06-01 | C47: 2016-072 (6/17) | D47: -0.057 | E47: 0 | F47: -0.057 | G47: 1.504
A48: RHODE ISLAND | B48: 2015-09-01 | C48: 2015-025 (9/15) | D48: -0.069 | E48: 0 | F48: -0.069 | G48: 1.504
A49: SOUTH CAROLINA | B49: 2017-08-01 | C49: 2017-023 (8/17) | D49: -0.089 | E49: 0 | F49: -0.089 | G49: 1.504
A50: SOUTH DAKOTA | B50: 2015-06-01 | C50: 2014-088 (6/15) | D50: -0.061 | E50: 0 | F50: -0.061 | G50: 1.504
A51: TENNESSEE | B51: 2017-06-01 | C51: 2016-080 (6/17) | D51: -0.115 | E51: 0 | F51: -0.115 | G51: 1.504
A52: TEXAS * | B52: 2012-06-04 | C52: FR-2011-056 (8/11) | D52: 0.009 | E52: 0 | F52: 0.009 | G52: 1.504 | K52: Not Yet Filed Not Yet Filed Not Yet Filed | M52: 2017-022 (10/17) 2015-022 (9/15) 2013-034 (9/13) | N52: -2.2% 0.1% 3.5%
A53: UTAH | B53: 2017-06-01 | C53: 2016-094 (6/17) | D53: -0.062 | E53: 0 | F53: -0.062 | G53: 1.504
A54: VERMONT | B54: 2017-06-01 | C54: 2016-104 (6/17) | D54: -0.055 | E54: 0 | F54: -0.055 | G54: 1.504
A55: VIRGINIA | B55: 2017-06-01 | C55: 2017-014 (6/17) | D55: -0.132 | E55: 0 | F55: -0.132 | G55: 1.504
A56: WASHINGTON
A57: WEST VIRGINIA | B57: 2015-06-01 | C57: 2014-111 (6/15) | D57: -0.115 | E57: 0 | F57: -0.115 | G57: 1.504
A58: WISCONSIN | B58: 2015-06-01 | C58: 2014-089 (6/15) | D58: -0.056 | E58: 0 | F58: -0.056 | G58: 1.504
A59: WYOMING | B59: 2017-06-01 | C59: 2016-069 (6/17) | D59: -0.097 | E59: 0 | F59: -0.097 | G59: 1.504
A62: * LCM cannot be placed on file for future revisions.

Sheet FARM-DEVS
F1: As of: | G1: =TODAY() -> 2018-10-02
A2: * * * * * * * * * * * FARM LOSS COST MODIFICATIONS * * * * * * * * * * *
B4: NEW HAMPSHIRE COMPANIES
A5: State | B5: Sub-Standard | C5: Standard | D5: Preferred | E5: Super-Preferred
A7: ALABAMA | C7: GSIC, INIC | D7: NHIC -15%
A8: ALASKA | C8: GSIC, INIC, NHIC
A9: ARIZONA | B9: INIC +15% | C9: GSIC | D9: NHIC -15%
A10: ARKANSAS | C10: GSIC | D10: NHIC -15%
A11: CALIFORNIA | C11: GSIC, NHIC
A12: COLORADO | C12: GSIC, INIC | D12: NHIC -15%
A13: CONNECTICUT | C13: GSIC, INIC | D13: NHIC -15%
A14: DELAWARE | B14: INIC +15% | C14: GSIC | D14: NHIC -15%
A15: DIST. OF COLUMBIA | F15: Farm program unavailable in DC.
A16: FLORIDA | C16: AIG AC
A17: GEORGIA | B17: INIC +15% | C17: GSIC | D17: NHIC -15%
A18: HAWAII | B18: INIC +15% | C18: GSIC | D18: NHIC -15%
A19: IDAHACO | C19: GSIC, INIC | D19: NHIC -15%
A20: ILLINOIS | C20: GSIC, INIC | D20: NHIC -15%
A21: INDIANA | B21: INIC +15% | C21: GSIC | D21: NHIC -15%
A22: IOWA | C22: GSIC, INIC | D22: NHIC -15%
A23: KANSAS | C23: GSIC, INIC | D23: NHIC -15%
A24: KENTUCKY | B24: INIC +15% | C24: GSIC | D24: NHIC -15%
A25: LOUISIANA | F25: Waiting for PIAL to approve ISO filing.
A26: MAINE | F26: Farm program not filed for use in Maine.
A27: MARYLAND | B27: INIC +15% | C27: GSIC | D27: NHIC -15%
A28: MASSACHUSETTS | C28: GSIC | D28: NHIC -15%
A29: MICHIGAN | C29: GSIC, INIC | D29: NHIC -15%
A30: MINNESOTA | B30: INIC +15% | C30: GSIC | D30: NHIC -15%
A31: MISSISSIPPI | C31: GSIC | D31: NHIC -15%
A32: MISSOURI | B32: INIC +15% | C32: GSIC | D32: NHIC -15%
A33: MONTANA | C33: GSIC, INIC | D33: NHIC -15%
A34: NEBRASKA | C34: GSIC, INIC, NHIC
A35: NEVADA | C35: GSIC, INIC | D35: NHIC -15%
A36: NEW HAMPSHIRE | B36: INIC +15% | C36: GSIC | D36: NHIC -15%
A37: NEW JERSEY | C37: GSIC, INIC | D37: NHIC -15%
A38: NEW MEXICO | C38: GSIC, INIC | D38: NHIC -15%
A39: NEW YORK | C39: GSIC, INIC, NHIC
A40: NORTH CAROLINA | C40: GSIC | D40: NHIC -15%
A41: NORTH DAKOTA | C41: GSIC, INIC, NHIC
A42: OHIO | C42: GSIC, INIC | D42: NHIC -15%
A43: OKLAHACOMA | C43: GSIC, INIC, NHIC
A44: OREGON | B44: INIC +15% | C44: GSIC | D44: NHIC -15%
A45: PENNSYLVANIA | B45: INIC +15% | C45: GSIC | D45: NHIC -15%
A46: RHODE ISLAND | C46: GSIC, INIC | D46: NHIC -15%
A47: SOUTH CAROLINA | C47: GSIC, INIC | D47: NHIC -15%
A48: SOUTH DAKOTA | B48: INIC +15% | C48: GSIC | D48: NHIC -15%
A49: TENNESSEE | C49: GSIC, INIC | D49: NHIC -15%
A50: TEXAS | B50: INIC +15% | C50: GSIC | D50: NHIC -15%
A51: UTAH | B51: INIC +15% | C51: GSIC | D51: NHIC -15%
A52: VERMONT | C52: GSIC, INIC | D52: NHIC -15%
A53: VIRGINIA | C53: GSIC | D53: NHIC -15%
A54: WASHINGTON | C54: GSIC, INIC | D54: NHIC -15%
A55: WEST VIRGINIA | B55: INIC +15% | C55: GSIC | D55: NHIC -15%
A56: WISCONSIN | B56: INIC +15% | C56: GSIC | D56: NHIC -15%
A57: WYOMING
F59: + AIU LC filings not maintained after 4/2009

Sheet PMF
A1: PACKAGE MODIFICATION FACTOR STATUS | D1: POOLED COMPANIES | M1: As of: | N1: =TODAY() -> 2018-10-02 | O1: 2017-10-09
N2: (data not updated since 07/07/14)
A3: CURRENT: | E3: PENDING:
E5: Actuarial | L5: Proposed/
B6: Effective | C6: Circular #'s | D6: Overall | E6: Support | K6: Pending/ | L6: Effective | M6: Circular #'s | N6: Overall
A7: State | B7: Date | C7: (Edition Date) | D7: Change | E7: Prepared | K7: Approved | L7: Date | M7: (Edition Date) | N7: Change
A9: Alabama | B9: 2010-11-01 | C9: 2010-009 (11/10) | D9: 0.008 | L9: 2017-12-01 | M9: 2017-022 (12/17) | N9: -0.009
A10: Alaska | B10: 2012-11-01 | C10: 2012-023 (11/12) | D10: -0.039
A11: Arizona | B11: 2014-01-01 | C11: 2013-007 (01/14) | D11: 0.036 | L11: 2018-01-01 | M11: 2017-024 (1/18) | N11: -0.01
A12: Arkansas | B12: 2015-10-01 | C12: 2015-003 (10/15) | D12: 0.021 | L12: 2017-11-01 | M12: 2017-026 (11/17) | N12: -0.03
A13: California a | B13: 1989-06-01 | C13: PMF'S VARY BY COMPANY | L13: 1/1/2015 3/26/2018 | M13: 2014-035 (1/15) 'Independent Submission of Modification Factors | N13: 3.9% -2.2%
A14: Colorado * | B14: 2010-01-01 | C14: 2009-005 (1/10) | D14: -0.009 | L14: 2015-10-01 | M14: 2015-002 (10/15)
A15: Connecticut | B15: 2011-01-01 | C15: 2010-010 (1/11) | D15: 0.012 | L15: 2018-02-01 | M15: 2017-027 (2/18) | N15: 0.002
A16: Delaware | B16: 2016-01-01 | C16: 2015-028 (1/16) | D16: -0.004
A17: District of Columbia | B17: 2017-02-01 | C17: 2016-035 (2/17) | D17: -0.008 | L17: 2018-01-01 | M17: 2017-031 (1/18) | N17: 0.007
A18: Florida | B18: 2007-03-01 | C18: 2006-034 (3/07) | D18: 0.052
A19: Georgia | B19: 2017-12-11 | C19: 2017-030 (12/17) | D19: 0
A20: Hawaii | B20: 2012-02-06 | C20: HIB 2011-01 (publication # 110057) | D20: 0.113
A21: Idaho | B21: 2010-02-01 | C21: 2009-023 (2/10) | D21: 0.01 | L21: 2017-11-01 | M21: 2017-025 (11/17) | N21: -0.001
A22: Illinois * | B22: 2017-05-01 | C22: 2016 - 061 (5/17) | D22: 0.03
A23: Indiana | B23: 2012-10-01 | C23: 2012-008 (10/12) | D23: 0.038
A24: Iowa | B24: 2017-04-01 | C24: 2016 - 051 (04/17) | D24: -0.004
A25: Kansas | B25: 2017-04-01 | C25: 2016 - 068 (04/17) | D25: 0.027
A26: Kentucky * | B26: 2016-07-01 | C26: 2016-002 (7/16) | D26: -0.038
A27: Louisiana | B27: 2016-03-01 | C27: 2015-031 (3/16) | D27: 0.058
A28: Maine | B28: 2017-02-01 | C28: 2016 - 045 (1/17) | D28: 0.026
A29: Maryland | B29: 2015-12-01 | C29: 2015-018 (12/15) | D29: -0.002
A30: Massachusetts | B30: 2017-04-01 | C30: 2016-049 (4/17) | D30: -0.013
A31: Michigan | B31: 2016-06-01 | C31: 2016-003 (6/16) | D31: 0.037
A32: Minnesota | B32: 2014-10-01 | C32: 2014-007 (10/14) | D32: -0.037
A33: Mississippi | B33: 2017-08-07 | C33: 2017-008 (8/17) | D33: 0.029
A34: Missouri | B34: 2014-11-01 | C34: 2014-008 (11/14) | D34: 0.038
A35: Montana | B35: 2015-11-01 | C35: 2015-007 (11/15) | D35: 0.016
A36: Nebraska | B36: 2016-07-01 | C36: 2016-018 (7/16) | D36: 0.035
A37: Nevada | B37: 2010-02-01 | C37: 2009-026 (2/10) | D37: -0.007 | L37: 2017-10-01 | M37: 2017-013 (10/17) | N37: -0.023
A38: New Hampshire | B38: 2015-12-01 | C38: 2015-022 (12/15) | D38: 0.012
A39: New Jersey | B39: 2015-11-01 | C39: 2015-013 (11/15) | D39: 0.006
A40: New Mexico | B40: 2010-10-01 | C40: 2010-020 (10/10) | D40: 0.02 | L40: 2017-12-01 | M40: 2017-028 (12/17) | N40: 0.006
A41: New York * | B41: 2007-07-01 | C41: 2006-046 (7/07) | D41: -0.054 | L41: 2016-10-01 | M41: 2016-020 (10/16) | N41: -0.037
A42: No. Carolina | B42: 2016-02-01 | C42: 2015-030 (2/16) | D42: 0.038 | L42: 2018-01-01 | M42: 2017-023 (1/18) | N42: -0.03
A43: No. Dakota | B43: 2010-01-01 | C43: 2009-012 (1/10) | D43: -0.008 | L43: 2017-11-01 | M43: 2017-015 (11/17) | N43: 0.018
A44: Ohio | B44: 2012-10-01 | C44: 2012-010 (10/12) | D44: 0.036
A45: Oklahoma | B45: 2014-10-01 | C45: 2014-014 (10/14) | D45: 0.03
A46: Oregon | B46: 2016-06-01 | C46: 2016-007 (06/16) | D46: -0.001
A47: Pennsylvania | B47: 2017-04-01 | C47: 2016-056 (04/17) | D47: -0.019
A48: Rhode Island | B48: 2014-03-01 | C48: 2013-030 (3/14) | D48: 0.033
A49: So. Carolina | B49: 2016-11-01 | C49: 2016-029 (11/16) | D49: 0.007
A50: So. Dakota | B50: 2010-02-01 | C50: 2009-031 (2/10) | D50: -0.006 | L50: 2017-11-01 | M50: 2017-019 (11/17) | N50: 0.011
A51: Tennessee | B51: 2012-11-01 | C51: 2012-014 (11/12) | D51: 0.048
A52: Texas | B52: 2011-04-01 | C52: 2010-064 (4/11) | D52: 0.125 | L52: 2015-01-01 | M52: 2014-037 (1/15) | N52: 0.034
A53: Utah | B53: 2017-05-01 | C53: 2016-071 (5/17) | D53: 0.032
A54: Vermont | B54: 2017-02-01 | C54: 2016-044 (2/17) | D54: -0.007
A55: Virginia | B55: 2017-02-01 | C55: 2016-047 (2/17) | D55: 0.026
A56: Washington | B56: 2012-06-01 | C56: WSRB 2012-05 (6/12) | D56: 0.067
A57: West Virginia | B57: 2014-02-01 | C57: 2013-028 (2/14) | D57: 0.015
A58: Wisconsin | B58: 2011-01-01 | C58: 2010-029 (1/11) | D58: -0.036
A59: Wyoming | B59: 2010-11-01 | C59: 2010-027 (11/10) | D59: 0.005
B61: Indicates LCM is not on file with DOI
A62: * ISO revisions are NOT automatic adoptions.
A64: a FILING NUMBER: AIG-17-MP-02

Sheet PMF-DEVS
F1: As of: | G1: =TODAY() -> 2018-10-02
A2: * * * * * * * * * * * PMF MODIFICATIONS * * * * * * * * * * *
A4: STATE | C4: Standard (ISO) | E4: Preferred | G4: Super-Preferred
A6: ALABAMA | C6: AHAC / NUFIC / ISOP / C&I / AIG AC / NHIC / GSIC
A7: ALASKA | C7: AIG PCC / AIG AC / AHAC / C&I / GSIC / INIC / NUFIC / NHIC / ISOP
A8: ARIZONA | C8: AIG PCC / AIG AC / AHAC / C&I / GSIC / INIC / NUFIC / NHIC / ISOP
A9: ARKANSAS | C9: AIG AC / AHAC / C&I / GSIC / NUFIC / NHIC / ISOP
A10: CALIFORNIA | E10: GSIC (Independent) | G10: NHIC (Independent)
A11: COLORADO | C11: AIG PCC / AIG AC / AHAC / C&I / GSIC / INIC / NUFIC / NHIC / ISOP
A12: CONNECTICUT | C12: AIG PCC / AIG AC / AHAC / C&I / GSIC / INIC / NUFIC / NHIC / ISOP
A13: DELAWARE | C13: AIG PCC / AIG AC / AHAC / C&I / GSIC / INIC / NUFIC / NHIC / ISOP
A14: DIST.OF COL. | C14: AIG PCC / AIG AC / AHAC / C&I / GSIC / INIC / NUFIC / NHIC / ISOP
A15: FLORIDA + | C15: AIG PCC / AIU / AIG AC / AHAC / C&I / GSIC / INIC / NUFIC / NHIC / ISOP
A16: GEORGIA | C16: AIG PCC / AIG AC / AHAC / C&I / GSIC / INIC / NUFIC / NHIC / ISOP
A17: HAWAII | C17: AIG PCC / AIG AC / AHAC / C&I / GSIC / INIC / NUFIC / NHIC / ISOP
A18: IDAHACO | C18: AIG PCC / AIG AC / AHAC / C&I / GSIC / INIC / NUFIC / NHIC / ISOP
A19: ILLINOIS | C19: AIG PCC / AIG AC / AHAC / C&I / GSIC / INIC / NUFIC / NHIC / ISOP
A20: INDIANA | C20: AIG PCC / AIG AC / AHAC / C&I / GSIC / INIC / NUFIC / NHIC / ISOP
A21: IOWA | C21: AIG PCC / AIG AC / AHAC / C&I / GSIC / INIC / NUFIC / NHIC / ISOP
A22: KANSAS | C22: AIG PCC / AIG AC / AHAC / C&I / GSIC / INIC / NUFIC / NHIC / ISOP
A23: KENTUCKY | C23: AIG PCC / AIG AC / AHAC / C&I / GSIC / INIC / NUFIC / NHIC / ISOP
A24: LOUISIANA | C24: AIG AC / AHAC / C&I / GSIC / NUFIC / NHIC / ISOP
A25: MAINE | C25: AIG AC / AHAC / C&I / GSIC / NUFIC / NHIC / ISOP
A26: MARYLAND | C26: AIG PCC / AIG AC / AHAC / C&I / GSIC / INIC / NUFIC / NHIC / ISOP
A27: MASSACHUSETTS | C27: AIG AC / AHAC / C&I / GSIC / NUFIC / NHIC / ISOP
A28: MICHIGAN | C28: AIG PCC / AIG AC / AHAC / C&I / GSIC / INIC / NUFIC / NHIC / ISOP
A29: MINNESOTA | C29: AIG AC / AHAC / C&I / GSIC / INIC / NUFIC / NHIC / ISOP
A30: MISSISSIPPI | C30: AIG PCC / AIG AC / AHAC / C&I / GSIC / INIC / NUFIC / NHIC / ISOP
A31: MISSOURI | C31: AIG PCC / AIG AC / AHAC / C&I / GSIC / INIC / NUFIC / NHIC / ISOP
A32: MONTANA | C32: AIG PCC / AIG AC / AHAC / C&I / GSIC / INIC / NUFIC / NHIC / ISOP
A33: NEBRASKA + | C33: AIG PCC / AIG AC / AHAC / C&I / INIC / NUFIC / NHIC / ISOP | E33: GSIC-15%
A34: NEVADA | C34: AIG PCC / AIG AC / AHAC / C&I / GSIC / INIC / NUFIC / NHIC / ISOP
A35: NEW HAMPSHIRE | C35: AIG PCC / AIG AC / AHAC / C&I / GSIC / INIC / NUFIC / NHIC / ISOP
A36: NEW JERSEY | C36: AIG AC / AHAC / C&I / GSIC / INIC / NUFIC / NHIC / ISOP
A37: NEW MEXICO | C37: AIG PCC / AIG AC / AHAC / C&I / GSIC / NUFIC / NHIC / ISOP
A38: NEW YORK | C38: AIG AC / AHAC / C&I / INIC / NUFIC / NHIC / ISOP | E38: GSIC -15%
A39: NO.CAROLINA | C39: AIG AC / AHAC / C&I / GSIC / NUFIC / NHIC / ISOP
A40: NORTH DAKOTA | C40: AIG PCC / AIG AC / AHAC / C&I / GSIC / INIC / NUFIC / NHIC / ISOP
A41: OHIO | C41: AIG PCC / AIG AC / AHAC / C&I / GSIC / INIC / NUFIC / NHIC / ISOP
A42: OKLAHACOMA | C42: AIG PCC / AIG AC / AHAC / C&I / INIC / NUFIC / NHIC / ISOP | E42: GSIC -15%
A43: OREGON | C43: AIG PCC / AIG AC / AHAC / C&I / GSIC / INIC / NUFIC / NHIC / ISOP
A44: PENNSYLVANIA | C44: AIG PCC / AIG AC / AHAC / C&I / GSIC / INIC / NUFIC / NHIC / ISOP
A45: RHODE ISLAND | C45: AIG PCC / AIG AC / AHAC / C&I / GSIC / INIC / NUFIC / NHIC / ISOP
A46: SO.CAROLINA | C46: AIG PCC / AIG AC / AHAC / C&I / GSIC / INIC / NUFIC / NHIC / ISOP
A47: SOUTH DAKOTA | C47: AIG PCC / AIG AC / AHAC / C&I / GSIC / INIC / NUFIC / NHIC / ISOP
A48: TENNESSEE | C48: AIG PCC / AIG AC / AHAC / C&I / GSIC / INIC / NUFIC / NHIC / ISOP
A49: TEXAS | C49: AIG PCC / AIG AC / AHAC / C&I / GSIC / INIC / NUFIC / NHIC / ISOP
A50: UTAHAC | C50: AIG PCC / AIG AC / AHAC / C&I / GSIC / INIC / NUFIC / NHIC / ISOP
A51: UTAH | C51: AIG PCC / AHAC / C&I / GSIC / INIC / NUFIC / NHIC / ISOP
A52: VIRGINIA | C52: AIG PCC / AHAC / C&I / GSIC / NUFIC / NHIC / ISOP
A53: VIRGINIA | C53: AIG PCC / AIG AC / AHAC / C&I / GSIC / INIC / NUFIC / NHIC / ISOP
A54: WEST VIRGINIA | C54: AIG PCC / AIG AC / AHAC / C&I / GSIC / INIC / NUFIC / NHIC / ISOP
A55: WEST VIRGINIA | C55: AIG PCC / AIG AC / AHAC / C&I / GSIC / INIC / NUFIC / NHIC / ISOP
A56: WYOMING | C56: AIG PCC / AIG AC / AHAC / C&I / INIC / NUFIC / NHIC / ISOP | E56: GSIC -20%
A58: + INIC PMF factor = 1.000 | E58: +AIP, AIU, AUD, LIC LC filings not maintained after 4/2009

Sheet NonFiled Inland
A1: COMMERCIAL NON-FILED Inland Marine Classes FILING STATUS | G1: POOLED COMPANIES | P1: As of: | Q1: =TODAY() -> 2018-10-02
A3: CURRENT: | H3: PENDING:
D5: Loss | H5: Actuarial | L5: Proposed/ | N5: Loss
B6: Effective | C6: Circular #'s | D6: Cost | E6: Expense | F6: Overall | G6: Loss Cost | H6: Support | K6: Pending/ | L6: Effective | M6: Circular #'s | N6: Cost | O6: Expense | P6: Overall | Q6: Loss Cost
A7: STATE | B7: Date | C7: (Edition Date) | D7: Change | E7: Change | F7: Change | G7: Multiplier | H7: Prepared | K7: Approved | L7: Date | M7: (Edition Date) | N7: Change | O7: Change | P7: Change | Q7: Multiplier
A9: ALABAMA
A10: ALASKA
A11: ARIZONA
A12: ARKANSAS
A13: CALIFORNIA | B13: 2015-10-21 | C13: AAIS-2000-6R, AAIS-99-25-1R, AAIS-2004-9R-4, AAIS-2007-63R, AAIS-2009-13LC-1 | D13: 0 | E13: 0 | F13: 0 | G13: 1.479
A14: COLORADO | B14: 2012-11-08 | C14: AAIS-23005-100,2006-23 IMG,2006-61&63, 2009-13LC | D14: 0 | E14: 0 | F14: 0 | G14: 1.639
A15: CONNECTICUT
A16: DELAWARE
A17: DIST.OF COL.
A18: FLORIDA
A19: GEORGIA
A20: HAWAII
A21: IDAHO
A22: ILLINOIS
A23: INDIANA
A24: IOWA
A25: KANSAS
A26: KENTUCKY | B26: 2012-06-25 | C26: AAIS-23005-100,2006-23 IMG,2006-61&63, 2009-13LC | D26: 0 | E26: 0 | F26: 0 | G26: 1.748
A27: LOUISIANA
A28: MAINE
A29: MARYLAND
A30: MASSACHUSETTS
A31: MICHIGAN
A32: MINNESOTA
A33: MISSISSIPPI
A34: MISSOURI
A35: MONTANA | B35: 2012-07-25 | C35: AAIS-2004-9R, 2004-29, 2007-9R, 2009-13LC | D35: 0 | E35: 0 | F35: 0 | G35: 1.724
A36: NEBRASKA | B36: 2012-07-25 | C36: AAIS-98.58, 2000-6, 2002-IMG, 2004-9R, 2004-63R, 2009-13LC | D36: 0 | E36: 0 | F36: 0 | G36: 1.695
A37: NEVADA
A38: NEW HAMPSHIRE
A39: NEW JERSEY
A40: NEW MEXICO
A41: NEW YORK | B41: 2013-11-01 | C41: Buidlers Risk Classes AAIS 151-640-288 | D41: 0 | E41: 0 | F41: 0 | G41: 1.724
A42: NORTH CAROLINA
A43: NORTH DAKOTA
A44: OHIO | B44: 2013-07-01 | C44: AAIS | D44: 0 | E44: 0 | F44: 0 | G44: 1.718
A45: OKLAHOMA
A46: OREGON
A47: PENNSYLVANIA
A48: RHODE ISLAND
A49: SOUTH CAROLINA
A50: SOUTH DAKOTA
A51: TENNESSEE
A52: TEXAS | B52: 2012-07-25 | C52: AAIS-2000-22LC, 2002-FAR-1,2002-82-EDP, 2004-65, 2009-29, | D52: 0 | E52: 0 | F52: 0 | G52: 1.712
A53: UTAH
A54: VERMONT
A55: VIRGINIA
A56: WASHINGTON
A57: WEST VIRGINIA
A58: WISCONSIN
A59: WYOMING
B61: Indicates LCM is not on file with DOI

Sheet NonFiled Dev
F1: As of: | G1: =TODAY() -> 2018-10-02
A2: * * * * * * * * * * * COMMERCIAL NON-FILED Inland Marine Classes LOSS COST MODIFICATIONS * * * * * * * * * * *
B4: NEW HAMPSHIRE COMPANIES | F4: NEW YORK COMPANIES +
A5: State | B5: Sub-Standard | C5: Standard | D5: Preferred | E5: Super-Preferred | F5: Standard
A7: ALABAMA
A8: ALASKA
A9: ARIZONA
A10: ARKANSAS
A11: CALIFORNIA | C11: NHIC / GSIC = 1.509
A12: COLORADO | C12: GSIC / INIC =1.639 | D12: NHIC = 1.393
A13: CONNECTICUT
A14: DELAWARE
A15: DIST. OF COLUMBIA
A16: FLORIDA
A17: GEORGIA
A18: HAWAII
A19: IDAHO
A20: ILLINOIS
A21: INDIANA
A22: IOWA
A23: KANSAS
A24: KENTUCKY | B24: INIC = 1.949 | C24: GSIC = 1.748 | D24: NHIC = 1.486
A25: LOUISIANA
A26: MAINE
A27: MARYLAND
A28: MASSACHUSETTS
A29: MICHIGAN
A30: MINNESOTA
A31: MISSISSIPPI
A32: MISSOURI
A33: MONTANA | C33: GSIC / INIC = 1.724 | D33: NHIC = 1.466
A34: NEBRASKA | C34: NHIC/ GSIC / INIC = 1.695
A35: NEVADA
A36: NEW HAMPSHIRE
A37: NEW JERSEY
A38: NEW MEXICO
A39: NEW YORK
A40: NORTH CAROLINA
A41: NORTH DAKOTA
A42: OHIO | C42: GSIC / INI = 1.718 | D42: NHIC = 1.460
A43: OKLAHOMA
A44: OREGON
A45: PENNSYLVANIA
A46: RHODE ISLAND
A47: SOUTH CAROLINA
A48: SOUTH DAKOTA
A49: TENNESSEE
A50: TEXAS | B50: INIC = 1.969 | C50: GSIC = 1.712 | D50: NHIC = 1.455
A51: UTAH
A52: VERMONT
A53: VIRGINIA
A54: WASHINGTON
A55: WEST VIRGINIA
A56: WISCONSIN
A57: WYOMING
B59: States with no LCM displayed use the ISO Inland LCM because of their no file requirement.
B60: 2012 Filings were made in only 3 companies, GS, INI & NH.

Sheet BOP
A1: ISO BOP - Business Owners Program FILING STATUS | P1: As of: | Q1: =Cutoff_Date -> 2018-09-14
A3: CURRENT: | H3: PENDING:
D5: Loss | H5: Actuarial | K5: Pending/ | L5: Proposed/ | N5: Loss
B6: Effective | C6: Circular #'s | D6: Cost | E6: Expense | F6: Overall | G6: Loss Cost | H6: Support | K6: Approved/ | L6: Effective | M6: Circular #'s | N6: Cost | O6: Expense | P6: Overall | Q6: Loss Cost
A7: STATE | B7: Date | C7: (Edition Date) | D7: Change | E7: Change | F7: Change | G7: Multiplier | H7: Prepared | K7: Automatic | L7: Date | M7: (Edition Date) | N7: Change | O7: Change | P7: Change | Q7: Multiplier
A9: ALABAMA | B9: 2017-11-01 | C9: 2017-037 (11/17) | D9: -0.089 | E9: 0 | F9: -0.089 | G9: 1.706
A10: ALASKA | B10: 2015-09-01 | C10: 2015-012 (9/15) | D10: 0.017 | E10: 0 | F10: 0.017 | G10: 1.701 | K10: Automatic | L10: 2018-11-01 | M10: 2018-056 (11/18) | N10: -0.055 | O10: 0 | P10: -0.055 | Q10: 1.701
A11: ARIZONA | B11: 2018-04-01 | C11: 2017-092 (4/18) | D11: -0.07 | E11: 0 | F11: -0.07 | G11: 1.751
A12: ARKANSAS | B12: 2018-01-01 | C12: 2017-070 (1/18) | D12: -0.117 | E12: 0 | F12: -0.117 | G12: 1.757 | K12: Automatic | L12: 2019-01-01 | M12: 2018-060 (1/19) | N12: -0.006 | O12: 0 | P12: -0.006 | Q12: 1.757
A13: CALIFORNIA * | B13: 2016-11-21 | C13: N/A | D13: 0 | E13: 0 | F13: 0 | G13: 1.706 | K13: Not Yet Filed Not Yet Filed Not Yet Filed | M13: 2018-026 (10-18) '2015-081 (11/15) 2014-137 (11/14) | N13: -4.3% 1.2% 11.5%
A14: COLORADO | B14: 2018-04-01 | C14: 2017-103 (4/18) | D14: 0.165 | E14: 0 | F14: 0.165 | G14: 1.727
A15: CONNECTICUT | B15: 2018-01-01 | C15: 2017-040 (1/18) | D15: -0.043 | E15: 0 | F15: -0.043 | G15: 1.718 | K15: Automatic | L15: 2019-01-01 | M15: 2018-034 (1/19) | N15: -0.008 | O15: 0 | P15: -0.008 | Q15: 1.718
A16: DELAWARE * | B16: 2016-06-30 | C16: 2015-132 (1/16) 2014-194 (1/15) 2013-200 (2/14) 2012-274 (7/13) | D16: 0 | E16: 0 | F16: 0 | G16: 1.724 | K16: Not Yet Filed Not Yet Filed | M16: 2017-084 (1/18) 2016-146 (3/17) | N16: -2.4% -3.5%
A17: DIST.OF COL. | B17: 2018-01-01 | C17: 2017-071 (1/18) | D17: 0.024 | E17: 0 | F17: 0.024 | G17: 1.754
A18: FLORIDA * | K18: Not Yet Filed | M18: 2016-006 (5/16) | N18: -0.081
A19: GEORGIA | B19: 2017-12-01 | C19: 2017-061 (12/17) | D19: -0.052 | E19: 0 | F19: -0.052 | G19: 1.745 | K19: Automatic | L19: 2019-01-01 | M19: 2018-048 (1/19) | N19: -0.052 | O19: 0 | P19: -0.052 | Q19: 1.745
A20: HAWAII * | B20: 2014-03-01 | C20: HIB Publication 110064 | D20: 0 | E20: 0 | F20: 0 | G20: 1.828
A21: IDAHO | B21: 2018-07-01 | C21: 2018-005 (7/18) | D21: -0.052 | E21: 0 | F21: -0.052 | G21: 1.701
A22: ILLINOIS * | C22: 2014-082 (11/14) 2015-055 (11/15) | D22: 0 | E22: 0 | F22: 0 | G22: 1.724 | K22: Not Yet Filed Not Yet Filed Not Yet Filed | M22: 2018-031 (11/18) 2017-036 (1/18) 2016-081 (1/17) | N22: 5.7% -17.9% -5.4%
A23: INDIANA | B23: 2018-07-01 | C23: 2018-006 (7/18) | D23: -0.002 | E23: 0 | F23: -0.002 | G23: 1.672
A24: IOWA | B24: 2018-08-01 | C24: 2018-016 (8/18) | D24: -0.086 | E24: 0 | F24: -0.086 | G24: 1.653
A25: KANSAS | B25: 2018-04-01 | C25: 2017-106 (4/18) | D25: -0.12 | E25: 0 | F25: -0.12 | G25: 1.724
A26: KENTUCKY | B26: 2018-06-01 | C26: 2017-104 (6/18) | D26: -0.089 | E26: 0 | F26: -0.089 | G26: 1.724
A27: LOUISIANA (a)* | B27: 2014-03-31 | C27: LI-BP-2013-052 (9/13) | D27: 0 | E27: 0 | F27: 0 | G27: 1.07 | K27: Not Yet Filed Not Yet Filed Not Yet Filed | M27: 2014-079 (11/14) 2017-002 (7/17) 2017 - 112 (4/18) | N27: -15.1% -7.5% 0.0%
A28: MAINE | B28: 2018-01-01 | C28: 2017-079 (1/18) | D28: -0.089 | E28: 0 | F28: -0.089 | G28: 1.776 | K28: Automatic | L28: 2019-01-01 | M28: 2018-070 (1/19) | N28: 0.01 | O28: 0 | P28: 0.01 | Q28: 1.776
A29: MARYLAND | B29: 2018-02-01 | C29: 2017-072 (2/18) | D29: 0.067 | E29: 0 | F29: 0.067 | G29: 1.712 | K29: Automatic | L29: 2019-02-01 | M29: 2018-063 (2/19) | N29: -0.02 | O29: 0 | P29: -0.02 | Q29: 1.712
A30: MASSACHUSETTS * | B30: 2016-06-30 | C30: 2016-001 (5/16) 2014-235 (3/15) 2014-004 (5/14) | D30: 0 | E30: 0.024 | F30: 0 | G30: 1.724 | K30: Not Yet Filed Not Yet Filed Not Yet Filed | M30: 2016-159 (5/17) 2017-089 (3/18) 2018-065 (3/19) | N30: 4.2% -4.7% 5.5%
A31: MICHIGAN | B31: 2017-10-01 | C31: 2017-038 (10/17) | D31: -0.103 | E31: 0 | F31: -0.103 | G31: 1.718 | K31: Automatic | L31: 2018-10-01 | M31: 2018-032 (10/18) | N31: -0.034 | O31: 0 | P31: -0.034 | Q31: 1.718
A32: MINNESOTA | B32: 2018-08-01 | C32: 2018-007 (8/18) | D32: -0.018 | E32: 0 | F32: -0.018 | G32: 1.718
A33: MISSISSIPPI | B33: 2016-08-01 | C33: 2016-046 (8/16) | D33: -0.084 | E33: 0 | F33: -0.084 | G33: 1.786
A34: MISSOURI | B34: 2018-02-01 | C34: 2017-069 (2/18) | D34: -0.116 | E34: 0 | F34: -0.116 | G34: 1.709 | K34: Automatic | L34: 2019-02-01 | M34: 2018-066 (2/19) | N34: 0.036 | O34: 0 | P34: 0.036 | Q34: 1.709
A35: MONTANA | B35: 2018-08-01 | C35: 2018-009 (8/18) | D35: 0.022 | E35: 0 | F35: 0.022 | G35: 1.779
A36: NEBRASKA | B36: 2018-04-01 | C36: 2017-105 (4/18) | D36: 0.02 | E36: 0 | F36: 0.02 | G36: 1.73
A37: NEVADA | B37: 2018-04-01 | C37: 2017-101 (4/18) | D37: 0.042 | E37: 0 | F37: 0.042 | G37: 1.802
A38: NEW HAMPSHIRE | B38: 2017-11-01 | C38: 2017-039 (11/17) | D38: -0.003 | E38: 0 | F38: -0.003 | G38: 1.733 | K38: Automatic | L38: 2018-11-01 | M38: 2018-036 (11/18) | N38: -0.008 | O38: 0 | P38: -0.008 | Q38: 1.733
A39: NEW JERSEY | B39: 2017-10-01 | C39: 2017-045 (10/17) | D39: -0.092 | E39: 0 | F39: -0.092 | G39: 1.757 | K39: Automatic | L39: 2018-11-01 | M39: 2018-037 (11/18) | N39: 0.042 | O39: 0 | P39: 0.042 | Q39: 1.757
A40: NEW MEXICO | B40: 2018-07-01 | C40: 2018-010 (7/18) | D40: 0 | E40: 0 | F40: 0 | G40: 1.786
A41: NEW YORK * | B41: 2016-06-20 | C41: 2015-136 (6/16) | D41: 0 | E41: 0.009 | F41: 0 | G41: 1.724 | K41: Not Yet Filed Not Yet Filed | M41: 2016-171 (6/17) 2017-114 (3/18) | N41: -5.2% -2.4%
A42: NORTH CAROLINA | B42: 2018-01-01 | C42: 2017-063 (1/18) | D42: -0.058 | E42: 0 | F42: -0.058 | G42: 1.709 | K42: Automatic | L42: 2019-01-01 | M42: 2018-058 (1/19) | N42: 0.093 | O42: 0 | P42: 0.093 | Q42: 1.709
A43: NORTH DAKOTA | B43: 2017-03-01 | C43: 2016-167 (3/17) | D43: -0.049 | E43: 0 | F43: -0.049 | G43: 1.748
A44: OHIO | B44: 2018-07-01 | C44: 2018-004 (7/18) | D44: -0.005 | E44: 0 | F44: -0.005 | G44: 1.678
A45: OKLAHOMA | B45: 2018-08-01 | C45: 2018-019 (8/18) | D45: -0.098 | E45: 0 | F45: -0.098 | G45: 1.764
A46: OREGON | B46: 2018-03-01 | C46: 2017-093 (3/18) | D46: -0.06 | E46: 0 | F46: -0.06 | G46: 1.754
A47: PENNSYLVANIA | B47: 2018-01-01 | C47: 2017-074 (1/18) | D47: -0.049 | E47: 0 | F47: -0.049 | G47: 1.684 | K47: Automatic | L47: 2019-01-01 | M47: 2018-069(1/19) | N47: -0.041 | O47: 0 | P47: -0.041 | Q47: 1.684
A48: RHODE ISLAND | B48: 2017-03-01 | C48: 2016-116 (3/17) | D48: -0.046 | E48: 0 | F48: -0.046 | G48: 1.754 | K48: Automatic | L48: 2019-01-01 | M48: 2018-049 (1/19) | N48: 0.001 | O48: 0 | P48: 0.001 | Q48: 1.754
A49: SOUTH CAROLINA | B49: 2017-12-01 | C49: 2017-066 (12/17) | D49: -0.047 | E49: 0 | F49: -0.047 | G49: 1.724 | K49: Automatic | L49: 2019-01-01 | M49: 2018-052 (1/19) | N49: 0.06 | O49: 0 | P49: 0.06 | Q49: 1.724
A50: SOUTH DAKOTA | B50: 2017-04-01 | C50: 2016-165 (4/17) | D50: 0.059 | E50: 0 | F50: 0.059 | G50: 1.773
A51: TENNESSEE | B51: 2018-04-01 | C51: 2017-094 (4/18) | D51: -0.156 | E51: 0 | F51: -0.156 | G51: 1.77
A52: TEXAS * | B52: 2016-06-23 | C52: 2015-130 (4/16) 2015-045 (9/15) 2014-054 (7/14) | D52: 0 | E52: 0 | F52: 0 | G52: 1.724 | K52: Not Yet Filed | M52: 2017-085 (4/18) | N52: 0.022
A53: UTAH | B53: 2018-08-01 | C53: 2018-018 (8/18) | D53: 0.059 | E53: 0 | F53: 0.059 | G53: 1.764
A54: VERMONT | B54: 2017-11-01 | C54: 2017-049 (11/17) | D54: 0.006 | E54: 0 | F54: 0.006 | G54: 1.754 | K54: Automatic | L54: 2018-11-01 | M54: 2018-051 (11/18) | N54: -0.014 | O54: 0 | P54: -0.014 | Q54: 1.754
A55: VIRGINIA | B55: 2017-12-01 | C55: 2017-065 (12/17) | D55: -0.042 | E55: 0 | F55: -0.042 | G55: 1.718 | K55: Automatic | L55: 2018-12-01 | M55: 2018-057 (12/18) | N55: 0.1 | O55: 0 | P55: 0.1 | Q55: 1.718
A56: WASHINGTON * | B56: 2016-09-01 | C56: 2015-08 | D56: 0 | E56: 0 | F56: 0 | G56: 1.708
A57: WEST VIRGINIA | B57: 2018-04-01 | C57: 2017-110 (4/18) | D57: -0.058 | E57: 0 | F57: -0.058 | G57: 1.818
A58: WISCONSIN | B58: 2018-08-01 | C58: 2018-015 (8/18) | D58: -0.068 | E58: 0 | F58: -0.068 | G58: 1.661
A59: WYOMING | B59: 2018-08-01 | C59: 2018-017 (8/18) | D59: -0.009 | E59: 0 | F59: -0.009 | G59: 1.718
B62: BOP is only filed in New Hampsire Insurance Company
B63: (a) Louisiana PIAL files rates, the 1.07 factor adjusts for additional expense needs.
